Body Name,Body,Service Area Catergorisation,Service Division Catergorisation,Responsible Unit,Expenses Type,Detailed Expenses Type,Expenses Code,Date,Transaction Number,Amount,Supplier Name,Capital / Revenue,Supplier ID
NORTH EAST LINCOLNSHIRE COUNCIL,http://statistics.data.gov.uk/id/local-authority/00FC,People,Childrens Services,Adapt/Equip-Disabled Children,Cap Land/Build-Build Enh Wrk,Cap Land/Build-Build Enh Wrk,YA102,09/09/2014,301395,1870.38,E S RUDKIN LTD,CAPITAL,100632
NORTH EAST LINCOLNSHIRE COUNCIL,http://statistics.data.gov.uk/id/local-authority/00FC,People,Schools,Cap Alloc Devolved To Schools,Cap Land/Build-Build Enh Wrk,Cap Land/Build-Build Enh Wrk,YA102,9/29/2014,306658,1315,KES BUILDING MAINTENANCE LIMITED,CAPITAL,100786
NORTH EAST LINCOLNSHIRE COUNCIL,http://statistics.data.gov.uk/id/local-authority/00FC,People,Schools,Cap Alloc Devolved To Schools,Cap Land/Build-Build Enh Wrk,Cap Land/Build-Build Enh Wrk,YA102,9/29/2014,305922,6947.9,UNIBUILD BUILDING CONT LTD,CAPITAL,101469
NORTH EAST LINCOLNSHIRE COUNCIL,http://statistics.data.gov.uk/id/local-authority/00FC,People,Schools,Cap Alloc Devolved To Schools,Cap Land/Build-Build Enh Wrk,Cap Land/Build-Build Enh Wrk,YA102,9/29/2014,305923,8209.19,UNIBUILD BUILDING CONT LTD,CAPITAL,101469
NORTH EAST LINCOLNSHIRE COUNCIL,http://statistics.data.gov.uk/id/local-authority/00FC,People,Schools,Cap Alloc Devolved To Schools,Cap Land/Build-Build Enh Wrk,Cap Land/Build-Build Enh Wrk,YA102,9/29/2014,306681,1532,LINCS ELECTRICAL SERVICES LTD,CAPITAL,102044
NORTH EAST LINCOLNSHIRE COUNCIL,http://statistics.data.gov.uk/id/local-authority/00FC,People,Schools,Cap Alloc Devolved To Schools,Cap Land/Build-Build Enh Wrk,Cap Land/Build-Build Enh Wrk,YA102,9/29/2014,306682,3097,LINCS ELECTRICAL SERVICES LTD,CAPITAL,102044
NORTH EAST LINCOLNSHIRE COUNCIL,http://statistics.data.gov.uk/id/local-authority/00FC,People,Schools,Cap Alloc Devolved To Schools,Cap Land/Build-Build Enh Wrk,Cap Land/Build-Build Enh Wrk,YA102,9/29/2014,306706,1666,LINCS ELECTRICAL SERVICES LTD,CAPITAL,102044
NORTH EAST LINCOLNSHIRE COUNCIL,http://statistics.data.gov.uk/id/local-authority/00FC,People,Schools,Cap Alloc Devolved To Schools,Cap Land/Build-Build Enh Wrk,Cap Land/Build-Build Enh Wrk,YA102,9/30/2014,306942,709,UNIBUILD BUILDING CONT LTD,CAPITAL,101469
NORTH EAST LINCOLNSHIRE COUNCIL,http://statistics.data.gov.uk/id/local-authority/00FC,People,Schools,Cap Alloc Devolved To Schools,Cap Land/Build-Build Enh Wrk,Cap Land/Build-Build Enh Wrk,YA102,9/29/2014,305931,1220.25,FRED MARGARSON LTD,CAPITAL,100592
NORTH EAST LINCOLNSHIRE COUNCIL,http://statistics.data.gov.uk/id/local-authority/00FC,People,Schools,Cap Alloc Devolved To Schools,Cap Land/Build-Build Enh Wrk,Cap Land/Build-Build Enh Wrk,YA102,9/18/2014,303903,3315,E S RUDKIN LTD,CAPITAL,100632
NORTH EAST LINCOLNSHIRE COUNCIL,http://statistics.data.gov.uk/id/local-authority/00FC,People,Schools,Cap Alloc Devolved To Schools,Cap Land/Build-Build Enh Wrk,Cap Land/Build-Build Enh Wrk,YA102,9/30/2014,307327,5233,E S RUDKIN LTD,CAPITAL,100632
NORTH EAST LINCOLNSHIRE COUNCIL,http://statistics.data.gov.uk/id/local-authority/00FC,People,Schools,Cap Alloc Devolved To Schools,Cap Land/Build-Build Enh Wrk,Cap Land/Build-Build Enh Wrk,YA102,9/18/2014,304244,11885.86,G S KELSEY LIMITED,CAPITAL,101154
NORTH EAST LINCOLNSHIRE COUNCIL,http://statistics.data.gov.uk/id/local-authority/00FC,People,Schools,Backlog Mainteneance Schools,Cap Land/Build-Prof Fees,Cap Land/Build-Prof Fees,YA103,9/18/2014,303662,3000,COFELY WORKPLACE LIMITED,CAPITAL,123983
NORTH EAST LINCOLNSHIRE COUNCIL,http://statistics.data.gov.uk/id/local-authority/00FC,People,Schools,Backlog Mainteneance Schools,Cap Land/Build-Build Enh Wrk,Cap Land/Build-Build Enh Wrk,YA102,09/04/2014,302156,1892.08,KES BUILDING MAINTENANCE LIMITED,CAPITAL,100786
NORTH EAST LINCOLNSHIRE COUNCIL,http://statistics.data.gov.uk/id/local-authority/00FC,People,Schools,Backlog Mainteneance Schools,Cap Land/Build-Build Enh Wrk,Cap Land/Build-Build Enh Wrk,YA102,9/18/2014,303533,1909,JAMES BRATTON & CO LTD,CAPITAL,100714
NORTH EAST LINCOLNSHIRE COUNCIL,http://statistics.data.gov.uk/id/local-authority/00FC,People,Schools,Backlog Mainteneance Schools,Cap Land/Build-Build Enh Wrk,Cap Land/Build-Build Enh Wrk,YA102,9/23/2014,305175,5750,TOPCON CONSTRUCTION LTD,CAPITAL,108462
NORTH EAST LINCOLNSHIRE COUNCIL,http://statistics.data.gov.uk/id/local-authority/00FC,People,Schools,Backlog Mainteneance Schools,Cap Land/Build-Build Enh Wrk,Cap Land/Build-Build Enh Wrk,YA102,9/30/2014,305491,540,GRADE 3 LIMITED,CAPITAL,101924
NORTH EAST LINCOLNSHIRE COUNCIL,http://statistics.data.gov.uk/id/local-authority/00FC,People,Schools,Backlog Mainteneance Schools,Cap Land/Build-Build Enh Wrk,Cap Land/Build-Build Enh Wrk,YA102,9/29/2014,305916,763.01,UNIBUILD BUILDING CONT LTD,CAPITAL,101469
NORTH EAST LINCOLNSHIRE COUNCIL,http://statistics.data.gov.uk/id/local-authority/00FC,People,Schools,Backlog Mainteneance Schools,Cap Land/Build-Build Enh Wrk,Cap Land/Build-Build Enh Wrk,YA102,9/29/2014,305918,890,UNIBUILD BUILDING CONT LTD,CAPITAL,101469
NORTH EAST LINCOLNSHIRE COUNCIL,http://statistics.data.gov.uk/id/local-authority/00FC,People,Schools,Backlog Mainteneance Schools,Cap Land/Build-Build Enh Wrk,Cap Land/Build-Build Enh Wrk,YA102,9/29/2014,305920,624.96,UNIBUILD BUILDING CONT LTD,CAPITAL,101469
NORTH EAST LINCOLNSHIRE COUNCIL,http://statistics.data.gov.uk/id/local-authority/00FC,People,Schools,Backlog Mainteneance Schools,Cap Land/Build-Build Enh Wrk,Cap Land/Build-Build Enh Wrk,YA102,9/25/2014,305906,82058.1,SANGWIN,CAPITAL,104041
NORTH EAST LINCOLNSHIRE COUNCIL,http://statistics.data.gov.uk/id/local-authority/00FC,People,Schools,Backlog Mainteneance Schools,Cap Land/Build-Build Enh Wrk,Cap Land/Build-Build Enh Wrk,YA102,09/01/2014,301645,1408,GRADE 3 LIMITED,CAPITAL,101924
NORTH EAST LINCOLNSHIRE COUNCIL,http://statistics.data.gov.uk/id/local-authority/00FC,People,Schools,Backlog Mainteneance Schools,Cap Land/Build-Build Enh Wrk,Cap Land/Build-Build Enh Wrk,YA102,9/30/2014,306807,8802.9,HAITHS HEATING LTD,CAPITAL,101342
NORTH EAST LINCOLNSHIRE COUNCIL,http://statistics.data.gov.uk/id/local-authority/00FC,People,Schools,Sufficiency Of School Places,Cap Land/Build-Build Enh Wrk,Cap Land/Build-Build Enh Wrk,YA102,9/29/2014,305956,1567.2,MANTA BRC LTD,CAPITAL,102230
NORTH EAST LINCOLNSHIRE COUNCIL,http://statistics.data.gov.uk/id/local-authority/00FC,People,Schools,Sufficiency Of School Places,Cap Land/Build-Build Enh Wrk,Cap Land/Build-Build Enh Wrk,YA102,9/29/2014,305953,2270,MANTA BRC LTD,CAPITAL,102230
NORTH EAST LINCOLNSHIRE COUNCIL,http://statistics.data.gov.uk/id/local-authority/00FC,People,Schools,Sufficiency Of School Places,Cap Land/Build-Prof Fees,Cap Land/Build-Prof Fees,YA103,9/18/2014,303665,2877.42,COFELY WORKPLACE LIMITED,CAPITAL,123983
NORTH EAST LINCOLNSHIRE COUNCIL,http://statistics.data.gov.uk/id/local-authority/00FC,People,Schools,Sufficiency Of School Places,Cap Land/Build-Build Enh Wrk,Cap Land/Build-Build Enh Wrk,YA102,9/23/2014,305172,7071.5,F PARKINSON LTD,CAPITAL,123944
NORTH EAST LINCOLNSHIRE COUNCIL,http://statistics.data.gov.uk/id/local-authority/00FC,People,Schools,Sufficiency Of School Places,Cap Land/Build-Prof Fees,Cap Land/Build-Prof Fees,YA103,9/18/2014,303667,400,COFELY WORKPLACE LIMITED,CAPITAL,123983
NORTH EAST LINCOLNSHIRE COUNCIL,http://statistics.data.gov.uk/id/local-authority/00FC,People,Schools,Sufficiency Of School Places,Cap Land/Build-Build Enh Wrk,Cap Land/Build-Build Enh Wrk,YA102,9/23/2014,305174,63670.18,THE GELDER GROUP,CAPITAL,103601
NORTH EAST LINCOLNSHIRE COUNCIL,http://statistics.data.gov.uk/id/local-authority/00FC,People,Schools,Sufficiency Of School Places,Cap Land/Build-Prof Fees,Cap Land/Build-Prof Fees,YA103,9/16/2014,303678,5000,COFELY WORKPLACE LIMITED,CAPITAL,123983
NORTH EAST LINCOLNSHIRE COUNCIL,http://statistics.data.gov.uk/id/local-authority/00FC,People,Schools,Sufficiency Of School Places,Cap Land/Build-Prof Fees,Cap Land/Build-Prof Fees,YA103,9/18/2014,303670,2000,COFELY WORKPLACE LIMITED,CAPITAL,123983
NORTH EAST LINCOLNSHIRE COUNCIL,http://statistics.data.gov.uk/id/local-authority/00FC,People,Schools,Sufficiency Of School Places,Cap Land/Build-Build Enh Wrk,Cap Land/Build-Build Enh Wrk,YA102,09/01/2014,301821,69300,E S RUDKIN LTD,CAPITAL,100632
NORTH EAST LINCOLNSHIRE COUNCIL,http://statistics.data.gov.uk/id/local-authority/00FC,People,Schools,Sufficiency Of School Places,Cap Land/Build-Prof Fees,Cap Land/Build-Prof Fees,YA103,9/18/2014,303666,2500,COFELY WORKPLACE LIMITED,CAPITAL,123983
NORTH EAST LINCOLNSHIRE COUNCIL,http://statistics.data.gov.uk/id/local-authority/00FC,People,Schools,Sufficiency Of School Places,Cap Land/Build-Build Enh Wrk,Cap Land/Build-Build Enh Wrk,YA102,9/18/2014,303420,5561.61,EXCELL ELECTRICAL CONTRACTORS,CAPITAL,100601
NORTH EAST LINCOLNSHIRE COUNCIL,http://statistics.data.gov.uk/id/local-authority/00FC,People,Schools,Sufficiency Of School Places,Cap Land/Build-Build Enh Wrk,Cap Land/Build-Build Enh Wrk,YA102,09/04/2014,302157,1989.52,KES BUILDING MAINTENANCE LIMITED,CAPITAL,100786
NORTH EAST LINCOLNSHIRE COUNCIL,http://statistics.data.gov.uk/id/local-authority/00FC,People,Schools,Sufficiency Of School Places,Cap Land/Build-Build Enh Wrk,Cap Land/Build-Build Enh Wrk,YA102,9/16/2014,303287,2389.74,HAITHS HEATING LTD,CAPITAL,101342
NORTH EAST LINCOLNSHIRE COUNCIL,http://statistics.data.gov.uk/id/local-authority/00FC,People,Schools,Sufficiency Of School Places,Cap Land/Build-Build Enh Wrk,Cap Land/Build-Build Enh Wrk,YA102,9/18/2014,303421,1036,J MELTON LTD,CAPITAL,100636
NORTH EAST LINCOLNSHIRE COUNCIL,http://statistics.data.gov.uk/id/local-authority/00FC,People,Schools,Sufficiency Of School Places,Cap Land/Build-Build Enh Wrk,Cap Land/Build-Build Enh Wrk,YA102,9/25/2014,305976,880,LINDSEY TREE SERVICES LTD,CAPITAL,100981
NORTH EAST LINCOLNSHIRE COUNCIL,http://statistics.data.gov.uk/id/local-authority/00FC,People,Schools,Woodlands Primary New Build,Cap Land/Build-Build Enh Wrk,Cap Land/Build-Build Enh Wrk,YA102,9/24/2014,305431,1835,SYLVESTER-KEAL LTD,CAPITAL,100593
NORTH EAST LINCOLNSHIRE COUNCIL,http://statistics.data.gov.uk/id/local-authority/00FC,People,Schools,Woodlands Primary New Build,Cap Land/Build-Build Enh Wrk,Cap Land/Build-Build Enh Wrk,YA102,9/23/2014,305171,139098.7,BUILT OFFSITE LIMITED,CAPITAL,123685
NORTH EAST LINCOLNSHIRE COUNCIL,http://statistics.data.gov.uk/id/local-authority/00FC,People,Schools,Woodlands Primary New Build,Cap Land/Build-Prof Fees,Cap Land/Build-Prof Fees,YA103,9/18/2014,303669,2000,COFELY WORKPLACE LIMITED,CAPITAL,123983
NORTH EAST LINCOLNSHIRE COUNCIL,http://statistics.data.gov.uk/id/local-authority/00FC,People,Schools,Woodlands Primary New Build,Cap Veh Plt Eqp-Build Enh Wrk,Cap Veh Plt Eqp-Build Enh Wrk,YB102,9/23/2014,304878,12193,GAIA TECHNOLOGIES PLC,CAPITAL,102572
NORTH EAST LINCOLNSHIRE COUNCIL,http://statistics.data.gov.uk/id/local-authority/00FC,People,Schools,Woodlands Primary New Build,Cap Land/Build-Prof Fees,Cap Land/Build-Prof Fees,YA103,9/16/2014,303679,3000,COFELY WORKPLACE LIMITED,CAPITAL,123983
NORTH EAST LINCOLNSHIRE COUNCIL,http://statistics.data.gov.uk/id/local-authority/00FC,People,Schools,Woodlands Primary New Build,Cap Land/Build-Prof Fees,Cap Land/Build-Prof Fees,YA103,9/16/2014,303680,1500,COFELY WORKPLACE LIMITED,CAPITAL,123983
NORTH EAST LINCOLNSHIRE COUNCIL,http://statistics.data.gov.uk/id/local-authority/00FC,People,Schools,Ict / Demolition Pcp,Cap Land/Build-Build Enh Wrk,Cap Land/Build-Build Enh Wrk,YA102,09/01/2014,301891,9079.9,BRITISH GAS BUSINESS,CAPITAL,127297
NORTH EAST LINCOLNSHIRE COUNCIL,http://statistics.data.gov.uk/id/local-authority/00FC,People,Schools,Ict / Demolition Pcp,Cap Land/Build-Build Enh Wrk,Cap Land/Build-Build Enh Wrk,YA102,09/08/2014,302585,893.25,BRITISH GAS BUSINESS,CAPITAL,127297
NORTH EAST LINCOLNSHIRE COUNCIL,http://statistics.data.gov.uk/id/local-authority/00FC,People,Schools,Targeted Basic Need,Cap Land/Build-Build Enh Wrk,Cap Land/Build-Build Enh Wrk,YA102,9/18/2014,304120,75305.02,THE GELDER GROUP,CAPITAL,103601
NORTH EAST LINCOLNSHIRE COUNCIL,http://statistics.data.gov.uk/id/local-authority/00FC,People,Schools,Targeted Basic Need,Cap Land/Build-Prof Fees,Cap Land/Build-Prof Fees,YA103,9/18/2014,303664,5000,COFELY WORKPLACE LIMITED,CAPITAL,123983
NORTH EAST LINCOLNSHIRE COUNCIL,http://statistics.data.gov.uk/id/local-authority/00FC,People,Schools,Universal Infant Free Sch Meal,Cap Land/Build-Build Enh Wrk,Cap Land/Build-Build Enh Wrk,YA102,9/29/2014,306689,7755,LINCS ELECTRICAL SERVICES LTD,CAPITAL,102044
NORTH EAST LINCOLNSHIRE COUNCIL,http://statistics.data.gov.uk/id/local-authority/00FC,People,Schools,Universal Infant Free Sch Meal,Cap Land/Build-Build Enh Wrk,Cap Land/Build-Build Enh Wrk,YA102,9/18/2014,304250,60185.1,SYLVESTER-KEAL LTD,CAPITAL,100593
NORTH EAST LINCOLNSHIRE COUNCIL,http://statistics.data.gov.uk/id/local-authority/00FC,People,Schools,Universal Infant Free Sch Meal,Cap Land/Build-Build Enh Wrk,Cap Land/Build-Build Enh Wrk,YA102,9/29/2014,306791,7473,TOPCON CONSTRUCTION LTD,CAPITAL,108462
NORTH EAST LINCOLNSHIRE COUNCIL,http://statistics.data.gov.uk/id/local-authority/00FC,People,Schools,Universal Infant Free Sch Meal,Cap Land/Build-Build Enh Wrk,Cap Land/Build-Build Enh Wrk,YA102,9/29/2014,306578,326.78,LINCS ELECTRICAL SERVICES LTD,CAPITAL,102044
NORTH EAST LINCOLNSHIRE COUNCIL,http://statistics.data.gov.uk/id/local-authority/00FC,Resources,Commission & Business Support,Information System,Cap Intangible Assets,Cap Intangible Assets,YH101,9/18/2014,286573,1050,PERMANENT FUTURES LTD,CAPITAL,126134
NORTH EAST LINCOLNSHIRE COUNCIL,http://statistics.data.gov.uk/id/local-authority/00FC,Resources,Commission & Business Support,Information System,Cap Intangible Assets,Cap Intangible Assets,YH101,9/18/2014,288254,1750,PERMANENT FUTURES LTD,CAPITAL,126134
NORTH EAST LINCOLNSHIRE COUNCIL,http://statistics.data.gov.uk/id/local-authority/00FC,Resources,Commission & Business Support,Information System,Cap Intangible Assets,Cap Intangible Assets,YH101,9/18/2014,289467,1750,PERMANENT FUTURES LTD,CAPITAL,126134
NORTH EAST LINCOLNSHIRE COUNCIL,http://statistics.data.gov.uk/id/local-authority/00FC,Resources,Commission & Business Support,Information System,Cap Intangible Assets,Cap Intangible Assets,YH101,9/18/2014,290439,1750,PERMANENT FUTURES LTD,CAPITAL,126134
NORTH EAST LINCOLNSHIRE COUNCIL,http://statistics.data.gov.uk/id/local-authority/00FC,Resources,Commission & Business Support,Information System,Cap Intangible Assets,Cap Intangible Assets,YH101,9/18/2014,292392,1750,PERMANENT FUTURES LTD,CAPITAL,126134
NORTH EAST LINCOLNSHIRE COUNCIL,http://statistics.data.gov.uk/id/local-authority/00FC,Resources,Commission & Business Support,Information System,Cap Intangible Assets,Cap Intangible Assets,YH101,9/18/2014,294364,1750,PERMANENT FUTURES LTD,CAPITAL,126134
NORTH EAST LINCOLNSHIRE COUNCIL,http://statistics.data.gov.uk/id/local-authority/00FC,Resources,Commission & Business Support,Information System,Cap Intangible Assets,Cap Intangible Assets,YH101,9/18/2014,296476,1750,PERMANENT FUTURES LTD,CAPITAL,126134
NORTH EAST LINCOLNSHIRE COUNCIL,http://statistics.data.gov.uk/id/local-authority/00FC,Resources,Commission & Business Support,Information System,Cap Intangible Assets,Cap Intangible Assets,YH101,9/18/2014,301098,1400,PERMANENT FUTURES LTD,CAPITAL,126134
NORTH EAST LINCOLNSHIRE COUNCIL,http://statistics.data.gov.uk/id/local-authority/00FC,Resources,Commission & Business Support,Information System,Cap Intangible Assets,Cap Intangible Assets,YH101,9/18/2014,297355,1750,PERMANENT FUTURES LTD,CAPITAL,126134
NORTH EAST LINCOLNSHIRE COUNCIL,http://statistics.data.gov.uk/id/local-authority/00FC,Resources,Commission & Business Support,Information System,Cap Intangible Assets,Cap Intangible Assets,YH101,9/18/2014,298839,1575,PERMANENT FUTURES LTD,CAPITAL,126134
NORTH EAST LINCOLNSHIRE COUNCIL,http://statistics.data.gov.uk/id/local-authority/00FC,Resources,Commission & Business Support,Information System,Cap Intangible Assets,Cap Intangible Assets,YH101,9/18/2014,299752,1750,PERMANENT FUTURES LTD,CAPITAL,126134
NORTH EAST LINCOLNSHIRE COUNCIL,http://statistics.data.gov.uk/id/local-authority/00FC,Resources,Commission & Business Support,Information System,Cap Intangible Assets,Cap Intangible Assets,YH101,9/18/2014,303222,1400,PERMANENT FUTURES LTD,CAPITAL,126134
NORTH EAST LINCOLNSHIRE COUNCIL,http://statistics.data.gov.uk/id/local-authority/00FC,Resources,Commission & Business Support,Information System,Cap Intangible Assets,Cap Intangible Assets,YH101,9/25/2014,304674,1750,PERMANENT FUTURES LTD,CAPITAL,126134
NORTH EAST LINCOLNSHIRE COUNCIL,http://statistics.data.gov.uk/id/local-authority/00FC,Resources,Commission & Business Support,Information System,Cap Intangible Assets,Cap Intangible Assets,YH101,09/04/2014,301656,450,JOHN BURWELL EDUCATION CONSULTANT LTD,CAPITAL,123758
NORTH EAST LINCOLNSHIRE COUNCIL,http://statistics.data.gov.uk/id/local-authority/00FC,Resources,Commission & Business Support,New Ict Framework,Cap Veh Plt Eqp-Purchase,Cap Veh Plt Eqp-Purchase,YB101,9/24/2014,304100,11645,VIRGIN MEDIA,CAPITAL,107612
NORTH EAST LINCOLNSHIRE COUNCIL,http://statistics.data.gov.uk/id/local-authority/00FC,Resources,Commission & Business Support,New Ict Framework,Cap Veh Plt Eqp-Prof Fees,Cap Veh Plt Eqp-Prof Fees,YB103,09/02/2014,291005,12995,CAPITA BUSINESS SERVICES,CAPITAL,111926
NORTH EAST LINCOLNSHIRE COUNCIL,http://statistics.data.gov.uk/id/local-authority/00FC,Resources,Commission & Business Support,Replacement/Refurbishment  It,Cap Veh Plt Eqp-Purchase,Cap Veh Plt Eqp-Purchase,YB101,9/24/2014,304105,65916,VIRGIN MEDIA,CAPITAL,107612
NORTH EAST LINCOLNSHIRE COUNCIL,http://statistics.data.gov.uk/id/local-authority/00FC,Resources,Commission & Business Support,Replacement/Refurbishment  It,Cap Veh Plt Eqp-Purchase,Cap Veh Plt Eqp-Purchase,YB101,9/25/2014,304634,904.25,MATRIX SCM LTD,CAPITAL,108117
NORTH EAST LINCOLNSHIRE COUNCIL,http://statistics.data.gov.uk/id/local-authority/00FC,Resources,Commission & Business Support,Replacement/Refurbishment  It,Cap Veh Plt Eqp-Purchase,Cap Veh Plt Eqp-Purchase,YB101,9/18/2014,304129,977.55,MATRIX SCM LTD,CAPITAL,108117
NORTH EAST LINCOLNSHIRE COUNCIL,http://statistics.data.gov.uk/id/local-authority/00FC,Resources,Commission & Business Support,Replacement/Refurbishment  It,Cap Veh Plt Eqp-Purchase,Cap Veh Plt Eqp-Purchase,YB101,9/26/2014,306117,36300,BYTES SOFTWARE SERVICES,CAPITAL,127499
NORTH EAST LINCOLNSHIRE COUNCIL,http://statistics.data.gov.uk/id/local-authority/00FC,Place,Environment,Fleet Replacement Programme,Cap Veh Plt Eqp-Purchase,Cap Veh Plt Eqp-Purchase,YB101,09/04/2014,299045,159298,TERBERG MATEC UK LTD,CAPITAL,101293
NORTH EAST LINCOLNSHIRE COUNCIL,http://statistics.data.gov.uk/id/local-authority/00FC,Place,Environment,Fleet Replacement Programme,Cap Veh Plt Eqp-Purchase,Cap Veh Plt Eqp-Purchase,YB101,9/23/2014,304976,24750,WR MATERIAL HANDLING LTD,CAPITAL,101388
NORTH EAST LINCOLNSHIRE COUNCIL,http://statistics.data.gov.uk/id/local-authority/00FC,Place,Environment,Fleet Replacement Programme,Cap Veh Plt Eqp-Purchase,Cap Veh Plt Eqp-Purchase,YB101,09/04/2014,299045,6425,TERBERG MATEC UK LTD,CAPITAL,101293
NORTH EAST LINCOLNSHIRE COUNCIL,http://statistics.data.gov.uk/id/local-authority/00FC,Place,Environment,Fleet Replacement Programme,Cap Veh Plt Eqp-Purchase,Cap Veh Plt Eqp-Purchase,YB101,9/23/2014,304708,-6425,TERBERG MATEC UK LTD,CAPITAL,101293
NORTH EAST LINCOLNSHIRE COUNCIL,http://statistics.data.gov.uk/id/local-authority/00FC,Place,Environment,Fleet Replacement Programme,Cap Veh Plt Eqp-Purchase,Cap Veh Plt Eqp-Purchase,YB101,9/15/2014,303721,1775,OVERTON UK LIMITED,CAPITAL,100906
NORTH EAST LINCOLNSHIRE COUNCIL,http://statistics.data.gov.uk/id/local-authority/00FC,Place,Environment,Fleet Replacement Programme,Cap Veh Plt Eqp-Purchase,Cap Veh Plt Eqp-Purchase,YB101,9/16/2014,303916,46450,TERBERG MATEC UK LTD,CAPITAL,101293
NORTH EAST LINCOLNSHIRE COUNCIL,http://statistics.data.gov.uk/id/local-authority/00FC,Place,Economy,Hps-Disabled Fac. Grants,Cap Grants To O/Side Sources,Cap Grants To O/Side Sources,YJ101,9/15/2014,303523,320,M J QUICKFALL,CAPITAL,102499
NORTH EAST LINCOLNSHIRE COUNCIL,http://statistics.data.gov.uk/id/local-authority/00FC,Place,Economy,Hps-Disabled Fac. Grants,Cap Grants To O/Side Sources,Cap Grants To O/Side Sources,YJ101,09/11/2014,302824,4790.53,MARK BENNETT,CAPITAL,101838
NORTH EAST LINCOLNSHIRE COUNCIL,http://statistics.data.gov.uk/id/local-authority/00FC,Place,Economy,Hps-Disabled Fac. Grants,Cap Grants To O/Side Sources,Cap Grants To O/Side Sources,YJ101,9/30/2014,306120,3275.3,OBAM LIFT SERVICES LTD,CAPITAL,112666
NORTH EAST LINCOLNSHIRE COUNCIL,http://statistics.data.gov.uk/id/local-authority/00FC,Place,Economy,Hps-Disabled Fac. Grants,Cap Grants To O/Side Sources,Cap Grants To O/Side Sources,YJ101,9/25/2014,305570,4696,STANNAH LIFT SERVICES LTD,CAPITAL,100622
NORTH EAST LINCOLNSHIRE COUNCIL,http://statistics.data.gov.uk/id/local-authority/00FC,Place,Economy,Hps-Disabled Fac. Grants,Cap Grants To O/Side Sources,Cap Grants To O/Side Sources,YJ101,9/25/2014,305607,5194.73,F R TOWNSEND & CO LTD,CAPITAL,104217
NORTH EAST LINCOLNSHIRE COUNCIL,http://statistics.data.gov.uk/id/local-authority/00FC,Place,Economy,Hps-Disabled Fac. Grants,Cap Grants To O/Side Sources,Cap Grants To O/Side Sources,YJ101,9/24/2014,305642,4390.58,VIC HANSEN BUILDING & JOINERY LTD,CAPITAL,103981
NORTH EAST LINCOLNSHIRE COUNCIL,http://statistics.data.gov.uk/id/local-authority/00FC,Place,Economy,Hps-Disabled Fac. Grants,Cap Grants To O/Side Sources,Cap Grants To O/Side Sources,YJ101,9/22/2014,303425,3298.53,OBAM LIFT SERVICES LTD,CAPITAL,112666
NORTH EAST LINCOLNSHIRE COUNCIL,http://statistics.data.gov.uk/id/local-authority/00FC,Place,Economy,Hps-Disabled Fac. Grants,Cap Grants To O/Side Sources,Cap Grants To O/Side Sources,YJ101,09/09/2014,302771,18310.94,KES BUILDING MAINTENANCE LIMITED,CAPITAL,100786
NORTH EAST LINCOLNSHIRE COUNCIL,http://statistics.data.gov.uk/id/local-authority/00FC,Place,Economy,Hps-Disabled Fac. Grants,Cap Grants To O/Side Sources,Cap Grants To O/Side Sources,YJ101,09/11/2014,299741,6989.57,MEARS LTD,CAPITAL,102433
NORTH EAST LINCOLNSHIRE COUNCIL,http://statistics.data.gov.uk/id/local-authority/00FC,Place,Economy,Hps-Disabled Fac. Grants,Cap Grants To O/Side Sources,Cap Grants To O/Side Sources,YJ101,9/24/2014,305125,7269.31,F R TOWNSEND & CO LTD,CAPITAL,104217
NORTH EAST LINCOLNSHIRE COUNCIL,http://statistics.data.gov.uk/id/local-authority/00FC,Place,Economy,Hps-Disabled Fac. Grants,Cap Grants To O/Side Sources,Cap Grants To O/Side Sources,YJ101,9/26/2014,306121,3286.77,OBAM LIFT SERVICES LTD,CAPITAL,112666
NORTH EAST LINCOLNSHIRE COUNCIL,http://statistics.data.gov.uk/id/local-authority/00FC,Place,Economy,Hps-Disabled Fac. Grants,Cap Grants To O/Side Sources,Cap Grants To O/Side Sources,YJ101,9/29/2014,306417,4610,CLEVELAND JOINERY,CAPITAL,102580
NORTH EAST LINCOLNSHIRE COUNCIL,http://statistics.data.gov.uk/id/local-authority/00FC,Place,Economy,Hps-Disabled Fac. Grants,Cap Grants To O/Side Sources,Cap Grants To O/Side Sources,YJ101,9/30/2014,306444,6525.84,MEARS LTD,CAPITAL,102433
NORTH EAST LINCOLNSHIRE COUNCIL,http://statistics.data.gov.uk/id/local-authority/00FC,Place,Economy,Hps-Disabled Fac. Grants,Cap Grants To O/Side Sources,Cap Grants To O/Side Sources,YJ101,9/29/2014,306157,4398,MARK BENNETT,CAPITAL,101838
NORTH EAST LINCOLNSHIRE COUNCIL,http://statistics.data.gov.uk/id/local-authority/00FC,Place,Economy,Local Transport Plan Schemes,Cap Land/Build-Build Enh Wrk,Cap Land/Build-Build Enh Wrk,YA102,09/11/2014,301541,258.38,J MCCANN & CO LTD,CAPITAL,100841
NORTH EAST LINCOLNSHIRE COUNCIL,http://statistics.data.gov.uk/id/local-authority/00FC,Place,Economy,Local Transport Plan Schemes,Cap Infrastr-Build Enh Wrk,Cap Infrastr-Build Enh Wrk,YC102,9/18/2014,303406,325.38,NORTHERN POWERGRID (YORKSHIRE) PLC,CAPITAL,108328
NORTH EAST LINCOLNSHIRE COUNCIL,http://statistics.data.gov.uk/id/local-authority/00FC,Place,Economy,Local Transport Plan Schemes,Cap Infrastr-Build Enh Wrk,Cap Infrastr-Build Enh Wrk,YC102,9/18/2014,303407,325.38,NORTHERN POWERGRID (YORKSHIRE) PLC,CAPITAL,108328
NORTH EAST LINCOLNSHIRE COUNCIL,http://statistics.data.gov.uk/id/local-authority/00FC,Place,Economy,Local Transport Plan Schemes,Cap Infrastr-Build Enh Wrk,Cap Infrastr-Build Enh Wrk,YC102,9/18/2014,303408,325.38,NORTHERN POWERGRID (YORKSHIRE) PLC,CAPITAL,108328
NORTH EAST LINCOLNSHIRE COUNCIL,http://statistics.data.gov.uk/id/local-authority/00FC,Place,Economy,Local Transport Plan Schemes,Cap Infrastr-Build Enh Wrk,Cap Infrastr-Build Enh Wrk,YC102,9/24/2014,303410,483.6,NORTHERN POWERGRID (YORKSHIRE) PLC,CAPITAL,108328
NORTH EAST LINCOLNSHIRE COUNCIL,http://statistics.data.gov.uk/id/local-authority/00FC,Place,Economy,Local Transport Plan Schemes,Cap Land/Build-Build Enh Wrk,Cap Land/Build-Build Enh Wrk,YA102,9/29/2014,306102,1616.4,P H CONSTRUCTION SERVICES LTD,CAPITAL,102107
NORTH EAST LINCOLNSHIRE COUNCIL,http://statistics.data.gov.uk/id/local-authority/00FC,Place,Economy,Local Transport Plan Schemes,Cap Land/Build-Build Enh Wrk,Cap Land/Build-Build Enh Wrk,YA102,9/29/2014,306119,815.15,SPECIALIST SURFACING LIMITED,CAPITAL,100579
NORTH EAST LINCOLNSHIRE COUNCIL,http://statistics.data.gov.uk/id/local-authority/00FC,Place,Economy,Local Transport Plan Schemes,Cap Infrastr-Build Enh Wrk,Cap Infrastr-Build Enh Wrk,YC102,9/24/2014,304744,2400,TMS CONSULTANCY,CAPITAL,125091
NORTH EAST LINCOLNSHIRE COUNCIL,http://statistics.data.gov.uk/id/local-authority/00FC,Place,Economy,Local Transport Plan Schemes,Cap Land/Build-Build Enh Wrk,Cap Land/Build-Build Enh Wrk,YA102,9/16/2014,303400,348.21,NORTHERN POWERGRID (YORKSHIRE) PLC,CAPITAL,108328
NORTH EAST LINCOLNSHIRE COUNCIL,http://statistics.data.gov.uk/id/local-authority/00FC,Place,Economy,Local Transport Plan Schemes,Cap Land/Build-Build Enh Wrk,Cap Land/Build-Build Enh Wrk,YA102,9/15/2014,303276,539.99,NORTHERN POWERGRID (YORKSHIRE) PLC,CAPITAL,108328
NORTH EAST LINCOLNSHIRE COUNCIL,http://statistics.data.gov.uk/id/local-authority/00FC,Place,Economy,Local Transport Plan Schemes,Cap Land/Build-Build Enh Wrk,Cap Land/Build-Build Enh Wrk,YA102,9/16/2014,303278,2629.25,NORTHERN POWERGRID (YORKSHIRE) PLC,CAPITAL,108328
NORTH EAST LINCOLNSHIRE COUNCIL,http://statistics.data.gov.uk/id/local-authority/00FC,Place,Economy,Local Transport Plan Schemes,Cap Land/Build-Build Enh Wrk,Cap Land/Build-Build Enh Wrk,YA102,9/15/2014,303284,1453.72,NORTHERN POWERGRID (YORKSHIRE) PLC,CAPITAL,108328
NORTH EAST LINCOLNSHIRE COUNCIL,http://statistics.data.gov.uk/id/local-authority/00FC,Place,Economy,Local Transport Plan Schemes,Cap Land/Build-Build Enh Wrk,Cap Land/Build-Build Enh Wrk,YA102,9/15/2014,303281,1741.05,NORTHERN POWERGRID (YORKSHIRE) PLC,CAPITAL,108328
NORTH EAST LINCOLNSHIRE COUNCIL,http://statistics.data.gov.uk/id/local-authority/00FC,Place,Economy,Local Transport Plan Schemes,Cap Land/Build-Build Enh Wrk,Cap Land/Build-Build Enh Wrk,YA102,9/15/2014,303283,1157.19,NORTHERN POWERGRID (YORKSHIRE) PLC,CAPITAL,108328
NORTH EAST LINCOLNSHIRE COUNCIL,http://statistics.data.gov.uk/id/local-authority/00FC,Place,Economy,Local Transport Plan Schemes,Cap Land/Build-Build Enh Wrk,Cap Land/Build-Build Enh Wrk,YA102,9/18/2014,303295,696.42,NORTHERN POWERGRID (YORKSHIRE) PLC,CAPITAL,108328
NORTH EAST LINCOLNSHIRE COUNCIL,http://statistics.data.gov.uk/id/local-authority/00FC,Place,Economy,Local Transport Plan Schemes,Cap Land/Build-Build Enh Wrk,Cap Land/Build-Build Enh Wrk,YA102,9/24/2014,303293,348.21,NORTHERN POWERGRID (YORKSHIRE) PLC,CAPITAL,108328
NORTH EAST LINCOLNSHIRE COUNCIL,http://statistics.data.gov.uk/id/local-authority/00FC,Place,Economy,Local Transport Plan Schemes,Cap Land/Build-Build Enh Wrk,Cap Land/Build-Build Enh Wrk,YA102,9/18/2014,303384,348.21,NORTHERN POWERGRID (YORKSHIRE) PLC,CAPITAL,108328
NORTH EAST LINCOLNSHIRE COUNCIL,http://statistics.data.gov.uk/id/local-authority/00FC,Place,Economy,Local Transport Plan Schemes,Cap Land/Build-Build Enh Wrk,Cap Land/Build-Build Enh Wrk,YA102,9/24/2014,303270,348.21,NORTHERN POWERGRID (YORKSHIRE) PLC,CAPITAL,108328
NORTH EAST LINCOLNSHIRE COUNCIL,http://statistics.data.gov.uk/id/local-authority/00FC,Place,Economy,Local Transport Plan Schemes,Cap Land/Build-Build Enh Wrk,Cap Land/Build-Build Enh Wrk,YA102,9/18/2014,303296,696.42,NORTHERN POWERGRID (YORKSHIRE) PLC,CAPITAL,108328
NORTH EAST LINCOLNSHIRE COUNCIL,http://statistics.data.gov.uk/id/local-authority/00FC,Place,Economy,Local Transport Plan Schemes,Cap Land/Build-Build Enh Wrk,Cap Land/Build-Build Enh Wrk,YA102,9/15/2014,303282,2045.39,NORTHERN POWERGRID (YORKSHIRE) PLC,CAPITAL,108328
NORTH EAST LINCOLNSHIRE COUNCIL,http://statistics.data.gov.uk/id/local-authority/00FC,Place,Economy,Local Transport Plan Schemes,Cap Land/Build-Build Enh Wrk,Cap Land/Build-Build Enh Wrk,YA102,9/15/2014,303277,696.42,NORTHERN POWERGRID (YORKSHIRE) PLC,CAPITAL,108328
NORTH EAST LINCOLNSHIRE COUNCIL,http://statistics.data.gov.uk/id/local-authority/00FC,Place,Economy,Local Transport Plan Schemes,Cap Infrastr-Build Enh Wrk,Cap Infrastr-Build Enh Wrk,YC102,9/29/2014,304920,21436.39,SPECIALIST SURFACING LIMITED,CAPITAL,100579
NORTH EAST LINCOLNSHIRE COUNCIL,http://statistics.data.gov.uk/id/local-authority/00FC,Place,Economy,Local Transport Plan Schemes,Cap Land/Build-Build Enh Wrk,Cap Land/Build-Build Enh Wrk,YA102,9/29/2014,304758,3000,AUDIO ISLAND LTD,CAPITAL,119206
NORTH EAST LINCOLNSHIRE COUNCIL,http://statistics.data.gov.uk/id/local-authority/00FC,Place,Economy,Local Transport Plan Schemes,Cap Infrastr-Purchase,Cap Infrastr-Purchase,YC101,9/24/2014,304928,2890,HORIZON SIGNS LTD,CAPITAL,103466
NORTH EAST LINCOLNSHIRE COUNCIL,http://statistics.data.gov.uk/id/local-authority/00FC,Place,Economy,Local Transport Plan Schemes,Cap Infrastr-Build Enh Wrk,Cap Infrastr-Build Enh Wrk,YC102,09/08/2014,302138,18144.57,SPECIALIST SURFACING LIMITED,CAPITAL,100579
NORTH EAST LINCOLNSHIRE COUNCIL,http://statistics.data.gov.uk/id/local-authority/00FC,Place,Economy,Local Transport Plan Schemes,Cap Land/Build-Build Enh Wrk,Cap Land/Build-Build Enh Wrk,YA102,9/26/2014,304692,350,ADVANTAGE TSC & D LTD,CAPITAL,109136
NORTH EAST LINCOLNSHIRE COUNCIL,http://statistics.data.gov.uk/id/local-authority/00FC,Place,Economy,Local Transport Plan Schemes,Cap Land/Build-Build Enh Wrk,Cap Land/Build-Build Enh Wrk,YA102,09/02/2014,301603,8805,PELL FRISCHMANN CONSULTANTS,CAPITAL,100880
NORTH EAST LINCOLNSHIRE COUNCIL,http://statistics.data.gov.uk/id/local-authority/00FC,Place,Economy,Local Transport Plan Schemes,Cap Land/Build-Build Enh Wrk,Cap Land/Build-Build Enh Wrk,YA102,09/11/2014,295353,12601.5,PELL FRISCHMANN CONSULTANTS,CAPITAL,100880
NORTH EAST LINCOLNSHIRE COUNCIL,http://statistics.data.gov.uk/id/local-authority/00FC,Place,Economy,Local Transport Plan Schemes,Cap Land/Build-Build Enh Wrk,Cap Land/Build-Build Enh Wrk,YA102,09/11/2014,301602,409.5,PELL FRISCHMANN CONSULTANTS,CAPITAL,100880
NORTH EAST LINCOLNSHIRE COUNCIL,http://statistics.data.gov.uk/id/local-authority/00FC,Place,Economy,Local Transport Plan Schemes,Cap Infrastr-Prof Fees,Cap Infrastr-Prof Fees,YC103,9/18/2014,303548,8700,SIAS LIMITED,CAPITAL,102445
NORTH EAST LINCOLNSHIRE COUNCIL,http://statistics.data.gov.uk/id/local-authority/00FC,Place,Economy,Freeman Street Regeneration,Cap Land/Build-Build Enh Wrk,Cap Land/Build-Build Enh Wrk,YA102,09/09/2014,302321,3965,FURNITUBES INTERNATIONAL LIMITED,CAPITAL,109382
NORTH EAST LINCOLNSHIRE COUNCIL,http://statistics.data.gov.uk/id/local-authority/00FC,Place,Economy,Freeman Street Regeneration,Cap Invest Prop-Build Enh Wrk,Cap Invest Prop-Build Enh Wrk,YE102,9/16/2014,303107,7467,MR PETER & MRS SUSAN BLENDELL,CAPITAL,121753
NORTH EAST LINCOLNSHIRE COUNCIL,http://statistics.data.gov.uk/id/local-authority/00FC,Place,Economy,Housing Assist Grants And Loan,Cap Grants To O/Side Sources,Cap Grants To O/Side Sources,YJ101,09/02/2014,301851,6423,VIC HANSEN BUILDING & JOINERY LTD,CAPITAL,103981
NORTH EAST LINCOLNSHIRE COUNCIL,http://statistics.data.gov.uk/id/local-authority/00FC,Place,Economy,Housing Assist Grants And Loan,Cap Grants To O/Side Sources,Cap Grants To O/Side Sources,YJ101,09/08/2014,302191,350,VIC HANSEN BUILDING & JOINERY LTD,CAPITAL,103981
NORTH EAST LINCOLNSHIRE COUNCIL,http://statistics.data.gov.uk/id/local-authority/00FC,Place,Economy,Housing Assist Grants And Loan,Cap Grants To O/Side Sources,Cap Grants To O/Side Sources,YJ101,9/15/2014,302822,6680.4,D THORPE PLUMBING & HEATING SERVICES,CAPITAL,118800
NORTH EAST LINCOLNSHIRE COUNCIL,http://statistics.data.gov.uk/id/local-authority/00FC,Place,Economy,Housing Assist Grants And Loan,Cap Grants To O/Side Sources,Cap Grants To O/Side Sources,YJ101,09/09/2014,302770,7251.6,D THORPE PLUMBING & HEATING SERVICES,CAPITAL,118800
NORTH EAST LINCOLNSHIRE COUNCIL,http://statistics.data.gov.uk/id/local-authority/00FC,Place,Economy,Housing Assist Grants And Loan,Cap Grants To O/Side Sources,Cap Grants To O/Side Sources,YJ101,9/15/2014,302861,1458,MAYNE GAS HEATING LTD,CAPITAL,101861
NORTH EAST LINCOLNSHIRE COUNCIL,http://statistics.data.gov.uk/id/local-authority/00FC,Place,Economy,Housing Assist Grants And Loan,Cap Grants To O/Side Sources,Cap Grants To O/Side Sources,YJ101,9/15/2014,303591,13504,VIC HANSEN BUILDING & JOINERY LTD,CAPITAL,103981
NORTH EAST LINCOLNSHIRE COUNCIL,http://statistics.data.gov.uk/id/local-authority/00FC,Place,Economy,Housing Assist Grants And Loan,Cap Grants To O/Side Sources,Cap Grants To O/Side Sources,YJ101,9/29/2014,305155,5620,DEAN WILLETT & SONS,CAPITAL,101982
NORTH EAST LINCOLNSHIRE COUNCIL,http://statistics.data.gov.uk/id/local-authority/00FC,Place,Economy,Housing Assist Grants And Loan,Cap Grants To O/Side Sources,Cap Grants To O/Side Sources,YJ101,9/18/2014,303545,10686,A.B. BUILDING & GROUNDWORKS,CAPITAL,127349
NORTH EAST LINCOLNSHIRE COUNCIL,http://statistics.data.gov.uk/id/local-authority/00FC,Place,Economy,Housing Assist Grants And Loan,Cap Grants To O/Side Sources,Cap Grants To O/Side Sources,YJ101,9/18/2014,303254,36712.56,SHEFFIELD CITY COUNCIL,CAPITAL,119344
NORTH EAST LINCOLNSHIRE COUNCIL,http://statistics.data.gov.uk/id/local-authority/00FC,Place,Economy,Local Sustainable Trans Fund,Cap Infrastr-Build Enh Wrk,Cap Infrastr-Build Enh Wrk,YC102,9/16/2014,303375,650.76,NORTHERN POWERGRID (YORKSHIRE) PLC,CAPITAL,108328
NORTH EAST LINCOLNSHIRE COUNCIL,http://statistics.data.gov.uk/id/local-authority/00FC,Place,Economy,Local Sustainable Trans Fund,Cap Infrastr-Build Enh Wrk,Cap Infrastr-Build Enh Wrk,YC102,9/18/2014,303374,386.26,NORTHERN POWERGRID (YORKSHIRE) PLC,CAPITAL,108328
NORTH EAST LINCOLNSHIRE COUNCIL,http://statistics.data.gov.uk/id/local-authority/00FC,Place,Economy,Local Sustainable Trans Fund,Cap Infrastr-Build Enh Wrk,Cap Infrastr-Build Enh Wrk,YC102,9/15/2014,303394,612.48,NORTHERN POWERGRID (YORKSHIRE) PLC,CAPITAL,108328
NORTH EAST LINCOLNSHIRE COUNCIL,http://statistics.data.gov.uk/id/local-authority/00FC,Place,Economy,Local Sustainable Trans Fund,Cap Infrastr-Build Enh Wrk,Cap Infrastr-Build Enh Wrk,YC102,9/18/2014,302789,275,COMMUTAPORTS LTD,CAPITAL,120108
NORTH EAST LINCOLNSHIRE COUNCIL,http://statistics.data.gov.uk/id/local-authority/00FC,Place,Economy,Street Light Low Energy Scheme,Cap Land/Build-Build Enh Wrk,Cap Land/Build-Build Enh Wrk,YA102,9/29/2014,306552,348.21,NORTHERN POWERGRID (YORKSHIRE) PLC,CAPITAL,108328
NORTH EAST LINCOLNSHIRE COUNCIL,http://statistics.data.gov.uk/id/local-authority/00FC,Place,Economy,Street Light Low Energy Scheme,Cap Land/Build-Build Enh Wrk,Cap Land/Build-Build Enh Wrk,YA102,9/15/2014,303395,757.3,NORTHERN POWERGRID (YORKSHIRE) PLC,CAPITAL,108328
NORTH EAST LINCOLNSHIRE COUNCIL,http://statistics.data.gov.uk/id/local-authority/00FC,Place,Economy,Street Light Low Energy Scheme,Cap Land/Build-Build Enh Wrk,Cap Land/Build-Build Enh Wrk,YA102,9/15/2014,303387,348.21,NORTHERN POWERGRID (YORKSHIRE) PLC,CAPITAL,108328
NORTH EAST LINCOLNSHIRE COUNCIL,http://statistics.data.gov.uk/id/local-authority/00FC,Place,Economy,Street Light Low Energy Scheme,Cap Land/Build-Build Enh Wrk,Cap Land/Build-Build Enh Wrk,YA102,9/16/2014,303402,348.21,NORTHERN POWERGRID (YORKSHIRE) PLC,CAPITAL,108328
NORTH EAST LINCOLNSHIRE COUNCIL,http://statistics.data.gov.uk/id/local-authority/00FC,Place,Economy,Street Light Low Energy Scheme,Cap Land/Build-Build Enh Wrk,Cap Land/Build-Build Enh Wrk,YA102,9/16/2014,303280,539.99,NORTHERN POWERGRID (YORKSHIRE) PLC,CAPITAL,108328
NORTH EAST LINCOLNSHIRE COUNCIL,http://statistics.data.gov.uk/id/local-authority/00FC,Place,Economy,Street Light Low Energy Scheme,Cap Land/Build-Build Enh Wrk,Cap Land/Build-Build Enh Wrk,YA102,9/16/2014,303286,696.42,NORTHERN POWERGRID (YORKSHIRE) PLC,CAPITAL,108328
NORTH EAST LINCOLNSHIRE COUNCIL,http://statistics.data.gov.uk/id/local-authority/00FC,Place,Economy,Street Light Low Energy Scheme,Cap Land/Build-Build Enh Wrk,Cap Land/Build-Build Enh Wrk,YA102,9/15/2014,303385,348.21,NORTHERN POWERGRID (YORKSHIRE) PLC,CAPITAL,108328
NORTH EAST LINCOLNSHIRE COUNCIL,http://statistics.data.gov.uk/id/local-authority/00FC,Place,Economy,Street Light Low Energy Scheme,Cap Land/Build-Build Enh Wrk,Cap Land/Build-Build Enh Wrk,YA102,9/15/2014,303393,949.08,NORTHERN POWERGRID (YORKSHIRE) PLC,CAPITAL,108328
NORTH EAST LINCOLNSHIRE COUNCIL,http://statistics.data.gov.uk/id/local-authority/00FC,Place,Economy,Street Light Low Energy Scheme,Cap Land/Build-Build Enh Wrk,Cap Land/Build-Build Enh Wrk,YA102,9/16/2014,303401,1392.84,NORTHERN POWERGRID (YORKSHIRE) PLC,CAPITAL,108328
NORTH EAST LINCOLNSHIRE COUNCIL,http://statistics.data.gov.uk/id/local-authority/00FC,Place,Economy,Street Light Low Energy Scheme,Cap Land/Build-Build Enh Wrk,Cap Land/Build-Build Enh Wrk,YA102,9/26/2014,306032,124512,COFELY WORKPLACE LIMITED,CAPITAL,123983
NORTH EAST LINCOLNSHIRE COUNCIL,http://statistics.data.gov.uk/id/local-authority/00FC,Place,Economy,Street Light Low Energy Scheme,Cap Land/Build-Build Enh Wrk,Cap Land/Build-Build Enh Wrk,YA102,9/26/2014,306035,41504,COFELY WORKPLACE LIMITED,CAPITAL,123983
NORTH EAST LINCOLNSHIRE COUNCIL,http://statistics.data.gov.uk/id/local-authority/00FC,Place,Economy,Street Light Low Energy Scheme,Cap Land/Build-Build Enh Wrk,Cap Land/Build-Build Enh Wrk,YA102,9/26/2014,306037,101750,COFELY WORKPLACE LIMITED,CAPITAL,123983
NORTH EAST LINCOLNSHIRE COUNCIL,http://statistics.data.gov.uk/id/local-authority/00FC,Place,Economy,Street Light Low Energy Scheme,Cap Land/Build-Build Enh Wrk,Cap Land/Build-Build Enh Wrk,YA102,9/16/2014,303396,2211.02,NORTHERN POWERGRID (YORKSHIRE) PLC,CAPITAL,108328
NORTH EAST LINCOLNSHIRE COUNCIL,http://statistics.data.gov.uk/id/local-authority/00FC,Place,Economy,Street Light Low Energy Scheme,Cap Land/Build-Build Enh Wrk,Cap Land/Build-Build Enh Wrk,YA102,09/08/2014,302219,46368,COFELY WORKPLACE LIMITED,CAPITAL,123983
NORTH EAST LINCOLNSHIRE COUNCIL,http://statistics.data.gov.uk/id/local-authority/00FC,Place,Economy,Street Light Low Energy Scheme,Cap Land/Build-Build Enh Wrk,Cap Land/Build-Build Enh Wrk,YA102,9/29/2014,306399,56885,COFELY WORKPLACE LIMITED,CAPITAL,123983
NORTH EAST LINCOLNSHIRE COUNCIL,http://statistics.data.gov.uk/id/local-authority/00FC,Place,Economy,Street Light Low Energy Scheme,Cap Land/Build-Build Enh Wrk,Cap Land/Build-Build Enh Wrk,YA102,9/15/2014,303386,1236.41,NORTHERN POWERGRID (YORKSHIRE) PLC,CAPITAL,108328
NORTH EAST LINCOLNSHIRE COUNCIL,http://statistics.data.gov.uk/id/local-authority/00FC,Place,Economy,Street Light Low Energy Scheme,Cap Land/Build-Build Enh Wrk,Cap Land/Build-Build Enh Wrk,YA102,9/15/2014,303389,1105.51,NORTHERN POWERGRID (YORKSHIRE) PLC,CAPITAL,108328
NORTH EAST LINCOLNSHIRE COUNCIL,http://statistics.data.gov.uk/id/local-authority/00FC,Place,Economy,Street Light Low Energy Scheme,Cap Land/Build-Build Enh Wrk,Cap Land/Build-Build Enh Wrk,YA102,9/15/2014,303390,3482.1,NORTHERN POWERGRID (YORKSHIRE) PLC,CAPITAL,108328
NORTH EAST LINCOLNSHIRE COUNCIL,http://statistics.data.gov.uk/id/local-authority/00FC,Place,Economy,Street Light Low Energy Scheme,Cap Land/Build-Build Enh Wrk,Cap Land/Build-Build Enh Wrk,YA102,9/16/2014,303428,1044.63,NORTHERN POWERGRID (YORKSHIRE) PLC,CAPITAL,108328
NORTH EAST LINCOLNSHIRE COUNCIL,http://statistics.data.gov.uk/id/local-authority/00FC,Place,Economy,Street Light Low Energy Scheme,Cap Land/Build-Build Enh Wrk,Cap Land/Build-Build Enh Wrk,YA102,9/23/2014,305169,348.21,NORTHERN POWERGRID (YORKSHIRE) PLC,CAPITAL,108328
NORTH EAST LINCOLNSHIRE COUNCIL,http://statistics.data.gov.uk/id/local-authority/00FC,Place,Economy,Street Light Low Energy Scheme,Cap Land/Build-Build Enh Wrk,Cap Land/Build-Build Enh Wrk,YA102,9/18/2014,303424,949.08,NORTHERN POWERGRID (YORKSHIRE) PLC,CAPITAL,108328
NORTH EAST LINCOLNSHIRE COUNCIL,http://statistics.data.gov.uk/id/local-authority/00FC,Place,Economy,Street Light Low Energy Scheme,Cap Land/Build-Build Enh Wrk,Cap Land/Build-Build Enh Wrk,YA102,9/18/2014,303417,1801.93,NORTHERN POWERGRID (YORKSHIRE) PLC,CAPITAL,108328
NORTH EAST LINCOLNSHIRE COUNCIL,http://statistics.data.gov.uk/id/local-authority/00FC,Place,Economy,Street Light Low Energy Scheme,Cap Land/Build-Build Enh Wrk,Cap Land/Build-Build Enh Wrk,YA102,9/24/2014,303271,348.21,NORTHERN POWERGRID (YORKSHIRE) PLC,CAPITAL,108328
NORTH EAST LINCOLNSHIRE COUNCIL,http://statistics.data.gov.uk/id/local-authority/00FC,Place,Economy,Street Light Low Energy Scheme,Cap Land/Build-Build Enh Wrk,Cap Land/Build-Build Enh Wrk,YA102,9/18/2014,303416,348.21,NORTHERN POWERGRID (YORKSHIRE) PLC,CAPITAL,108328
NORTH EAST LINCOLNSHIRE COUNCIL,http://statistics.data.gov.uk/id/local-authority/00FC,Place,Economy,Street Light Low Energy Scheme,Cap Land/Build-Build Enh Wrk,Cap Land/Build-Build Enh Wrk,YA102,9/18/2014,303405,348.21,NORTHERN POWERGRID (YORKSHIRE) PLC,CAPITAL,108328
NORTH EAST LINCOLNSHIRE COUNCIL,http://statistics.data.gov.uk/id/local-authority/00FC,Place,Economy,Street Light Low Energy Scheme,Cap Land/Build-Build Enh Wrk,Cap Land/Build-Build Enh Wrk,YA102,9/24/2014,303411,1392.84,NORTHERN POWERGRID (YORKSHIRE) PLC,CAPITAL,108328
NORTH EAST LINCOLNSHIRE COUNCIL,http://statistics.data.gov.uk/id/local-authority/00FC,Place,Economy,Street Light Low Energy Scheme,Cap Land/Build-Build Enh Wrk,Cap Land/Build-Build Enh Wrk,YA102,9/24/2014,303412,348.21,NORTHERN POWERGRID (YORKSHIRE) PLC,CAPITAL,108328
NORTH EAST LINCOLNSHIRE COUNCIL,http://statistics.data.gov.uk/id/local-authority/00FC,Place,Economy,Street Light Low Energy Scheme,Cap Land/Build-Build Enh Wrk,Cap Land/Build-Build Enh Wrk,YA102,9/18/2014,303415,1453.72,NORTHERN POWERGRID (YORKSHIRE) PLC,CAPITAL,108328
NORTH EAST LINCOLNSHIRE COUNCIL,http://statistics.data.gov.uk/id/local-authority/00FC,Place,Economy,Street Light Low Energy Scheme,Cap Land/Build-Build Enh Wrk,Cap Land/Build-Build Enh Wrk,YA102,9/18/2014,303404,409.09,NORTHERN POWERGRID (YORKSHIRE) PLC,CAPITAL,108328
NORTH EAST LINCOLNSHIRE COUNCIL,http://statistics.data.gov.uk/id/local-authority/00FC,Place,Economy,Street Light Low Energy Scheme,Cap Land/Build-Build Enh Wrk,Cap Land/Build-Build Enh Wrk,YA102,9/18/2014,303413,2054.59,NORTHERN POWERGRID (YORKSHIRE) PLC,CAPITAL,108328
NORTH EAST LINCOLNSHIRE COUNCIL,http://statistics.data.gov.uk/id/local-authority/00FC,Place,Economy,Street Light Low Energy Scheme,Cap Land/Build-Build Enh Wrk,Cap Land/Build-Build Enh Wrk,YA102,9/18/2014,303414,1505.4,NORTHERN POWERGRID (YORKSHIRE) PLC,CAPITAL,108328
NORTH EAST LINCOLNSHIRE COUNCIL,http://statistics.data.gov.uk/id/local-authority/00FC,Place,Economy,Street Light Low Energy Scheme,Cap Land/Build-Build Enh Wrk,Cap Land/Build-Build Enh Wrk,YA102,9/18/2014,303403,1236.41,NORTHERN POWERGRID (YORKSHIRE) PLC,CAPITAL,108328
NORTH EAST LINCOLNSHIRE COUNCIL,http://statistics.data.gov.uk/id/local-authority/00FC,Place,Economy,Street Light Low Energy Scheme,Cap Land/Build-Build Enh Wrk,Cap Land/Build-Build Enh Wrk,YA102,9/16/2014,303397,696.42,NORTHERN POWERGRID (YORKSHIRE) PLC,CAPITAL,108328
NORTH EAST LINCOLNSHIRE COUNCIL,http://statistics.data.gov.uk/id/local-authority/00FC,Place,Economy,Street Light Low Energy Scheme,Cap Land/Build-Build Enh Wrk,Cap Land/Build-Build Enh Wrk,YA102,9/16/2014,303398,1105.51,NORTHERN POWERGRID (YORKSHIRE) PLC,CAPITAL,108328
NORTH EAST LINCOLNSHIRE COUNCIL,http://statistics.data.gov.uk/id/local-authority/00FC,Place,Economy,Cartergate Development,Cap Infrastr-Build Enh Wrk,Cap Infrastr-Build Enh Wrk,YC102,9/22/2014,303473,501.6,TRAFFIC SYSTEMS CONTRACTORS LTD.,CAPITAL,100844
NORTH EAST LINCOLNSHIRE COUNCIL,http://statistics.data.gov.uk/id/local-authority/00FC,Place,Economy,Pinchpoint Scheme,Cap Land/Build-Build Enh Wrk,Cap Land/Build-Build Enh Wrk,YA102,9/29/2014,304755,56636.54,VOLKERLASER LTD,CAPITAL,126094
NORTH EAST LINCOLNSHIRE COUNCIL,http://statistics.data.gov.uk/id/local-authority/00FC,Place,Culture Leisure And Sport,New Leisure Centre At Grimsby,Cap Land/Build-Build Enh Wrk,Cap Land/Build-Build Enh Wrk,YA102,9/23/2014,305173,33283.5,TOPCON CONSTRUCTION LTD,CAPITAL,108462
NORTH EAST LINCOLNSHIRE COUNCIL,http://statistics.data.gov.uk/id/local-authority/00FC,Place,Culture Leisure And Sport,Cleethorpes Leis Cent Refurb,Cap Land/Build-Build Enh Wrk,Cap Land/Build-Build Enh Wrk,YA102,9/24/2014,303262,1152,REDHILL ANALYSTS LTD,CAPITAL,109169
NORTH EAST LINCOLNSHIRE COUNCIL,http://statistics.data.gov.uk/id/local-authority/00FC,Place,Culture Leisure And Sport,Cleethorpes Leis Cent Refurb,Cap Land/Build-Build Enh Wrk,Cap Land/Build-Build Enh Wrk,YA102,9/18/2014,304156,1452,COUNTRY LEISURE FIBREGLASS LTD,CAPITAL,127245
NORTH EAST LINCOLNSHIRE COUNCIL,http://statistics.data.gov.uk/id/local-authority/00FC,Place,Culture Leisure And Sport,Cleethorpes Leis Cent Refurb,Cap Land/Build-Build Enh Wrk,Cap Land/Build-Build Enh Wrk,YA102,9/16/2014,303272,435,LINCS ELECTRICAL SERVICES LTD,CAPITAL,102044
NORTH EAST LINCOLNSHIRE COUNCIL,http://statistics.data.gov.uk/id/local-authority/00FC,Place,Culture Leisure And Sport,Cleethorpes Leis Cent Refurb,Cap Land/Build-Build Enh Wrk,Cap Land/Build-Build Enh Wrk,YA102,9/24/2014,305497,300.7,POLYMAX,CAPITAL,127652
NORTH EAST LINCOLNSHIRE COUNCIL,http://statistics.data.gov.uk/id/local-authority/00FC,Place,Culture Leisure And Sport,Immingham Pool,Cap Land/Build-Build Enh Wrk,Cap Land/Build-Build Enh Wrk,YA102,9/15/2014,303565,1736.6,THE GELDER GROUP,CAPITAL,103601
NORTH EAST LINCOLNSHIRE COUNCIL,http://statistics.data.gov.uk/id/local-authority/00FC,Place,Culture Leisure And Sport,Immingham Pool,Cap Land/Build-Build Enh Wrk,Cap Land/Build-Build Enh Wrk,YA102,09/04/2014,302437,2525,THE GELDER GROUP,CAPITAL,103601
NORTH EAST LINCOLNSHIRE COUNCIL,http://statistics.data.gov.uk/id/local-authority/00FC,Place,Culture Leisure And Sport,Immingham Muga,Cap Land/Build-Build Enh Wrk,Cap Land/Build-Build Enh Wrk,YA102,9/16/2014,303532,33706.59,THORNTON CONTRACTS LTD,CAPITAL,126929
NORTH EAST LINCOLNSHIRE COUNCIL,http://statistics.data.gov.uk/id/local-authority/00FC,Place,Assets,Backlog Maintenance,Cap Land/Build-Build Enh Wrk,Cap Land/Build-Build Enh Wrk,YA102,09/08/2014,302211,2750,HODSON & KAUSS,CAPITAL,100620
NORTH EAST LINCOLNSHIRE COUNCIL,http://statistics.data.gov.uk/id/local-authority/00FC,Place,Assets,Backlog Maintenance,Cap Land/Build-Build Enh Wrk,Cap Land/Build-Build Enh Wrk,YA102,9/24/2014,304801,2430,BURROWS DAVIES LIMITED,CAPITAL,102722
NORTH EAST LINCOLNSHIRE COUNCIL,http://statistics.data.gov.uk/id/local-authority/00FC,Place,Assets,Backlog Maintenance,Cap Land/Build-Build Enh Wrk,Cap Land/Build-Build Enh Wrk,YA102,9/30/2014,307007,1897.5,MANTA BRC LTD,CAPITAL,102230
NORTH EAST LINCOLNSHIRE COUNCIL,http://statistics.data.gov.uk/id/local-authority/00FC,Place,Assets,Backlog Maintenance,Cap Land/Build-Prof Fees,Cap Land/Build-Prof Fees,YA103,9/25/2014,304769,1002.24,COFELY WORKPLACE LIMITED,CAPITAL,123983
NORTH EAST LINCOLNSHIRE COUNCIL,http://statistics.data.gov.uk/id/local-authority/00FC,Place,Assets,Backlog Maintenance,Cap Land/Build-Build Enh Wrk,Cap Land/Build-Build Enh Wrk,YA102,9/29/2014,306701,2827,HAITHS HEATING LTD,CAPITAL,101342
NORTH EAST LINCOLNSHIRE COUNCIL,http://statistics.data.gov.uk/id/local-authority/00FC,Place,Assets,Backlog Maintenance,Cap Land/Build-Build Enh Wrk,Cap Land/Build-Build Enh Wrk,YA102,9/18/2014,303422,3407.23,HAITHS HEATING LTD,CAPITAL,101342
NORTH EAST LINCOLNSHIRE COUNCIL,http://statistics.data.gov.uk/id/local-authority/00FC,Place,Assets,Backlog Maintenance,Cap Land/Build-Build Enh Wrk,Cap Land/Build-Build Enh Wrk,YA102,9/29/2014,304802,586,HAITHS HEATING LTD,CAPITAL,101342
NORTH EAST LINCOLNSHIRE COUNCIL,http://statistics.data.gov.uk/id/local-authority/00FC,Place,Assets,Backlog Maintenance,Cap Land/Build-Build Enh Wrk,Cap Land/Build-Build Enh Wrk,YA102,9/29/2014,306823,1125,HIRST CONSERVATION,CAPITAL,108145
NORTH EAST LINCOLNSHIRE COUNCIL,http://statistics.data.gov.uk/id/local-authority/00FC,Place,Assets,Saltings Allotments Developmt,Cap Infrastr-Build Enh Wrk,Cap Infrastr-Build Enh Wrk,YC102,9/16/2014,303297,396.98,NORTHERN POWERGRID (YORKSHIRE) PLC,CAPITAL,108328
NORTH EAST LINCOLNSHIRE COUNCIL,http://statistics.data.gov.uk/id/local-authority/00FC,Place,Assets,Property Rationalisation Prog,Cap Land/Build-Build Enh Wrk,Cap Land/Build-Build Enh Wrk,YA102,9/29/2014,305864,30788.6,KES BUILDING MAINTENANCE LIMITED,CAPITAL,100786
NORTH EAST LINCOLNSHIRE COUNCIL,http://statistics.data.gov.uk/id/local-authority/00FC,Place,Assets,Property Rationalisation Prog,Cap Land/Build-Build Enh Wrk,Cap Land/Build-Build Enh Wrk,YA102,9/18/2014,303530,66974.29,MANTA BRC LTD,CAPITAL,102230
NORTH EAST LINCOLNSHIRE COUNCIL,http://statistics.data.gov.uk/id/local-authority/00FC,Place,Assets,Property Rationalisation Prog,Cap Land/Build-Build Enh Wrk,Cap Land/Build-Build Enh Wrk,YA102,9/16/2014,303703,768.2,BELL WASTE CONTROL,CAPITAL,101433
NORTH EAST LINCOLNSHIRE COUNCIL,http://statistics.data.gov.uk/id/local-authority/00FC,Place,Assets,Property Rationalisation Prog,Cap Infrastr-Purchase,Cap Infrastr-Purchase,YC101,09/11/2014,301322,3370,IMERJA LTD,CAPITAL,102238
NORTH EAST LINCOLNSHIRE COUNCIL,http://statistics.data.gov.uk/id/local-authority/00FC,Place,Assets,Property Rationalisation Prog,Cap Infrastr-Purchase,Cap Infrastr-Purchase,YC101,09/11/2014,301322,2845,IMERJA LTD,CAPITAL,102238
NORTH EAST LINCOLNSHIRE COUNCIL,http://statistics.data.gov.uk/id/local-authority/00FC,Place,Assets,Property Rationalisation Prog,Cap Land/Build-Build Enh Wrk,Cap Land/Build-Build Enh Wrk,YA102,9/23/2014,304768,8000,COFELY WORKPLACE LIMITED,CAPITAL,123983
NORTH EAST LINCOLNSHIRE COUNCIL,http://statistics.data.gov.uk/id/local-authority/00FC,Public Health,Public Health,Director Public Health,Direct Employee Expenses,Agency Staff,EA105,09/04/2014,302449,-6000,NHS ENGLAND RE PCT SHA CLOSURE,REVENUE,127120
NORTH EAST LINCOLNSHIRE COUNCIL,http://statistics.data.gov.uk/id/local-authority/00FC,Public Health,Public Health,Director Public Health,Equip / Furniture / Materials,Promotions,LA124,9/18/2014,303921,1704.58,WOMENS AID,REVENUE,100326
NORTH EAST LINCOLNSHIRE COUNCIL,http://statistics.data.gov.uk/id/local-authority/00FC,Public Health,Public Health,Director Public Health,Private Contractors,Contract Payments,PH105,9/30/2014,307388,10966.28,NHS BUSINESS SERVICES AUTHORITY,REVENUE,127751
NORTH EAST LINCOLNSHIRE COUNCIL,http://statistics.data.gov.uk/id/local-authority/00FC,Public Health,Public Health,Director Public Health,Private Contractors,Contract Payments,PH105,9/30/2014,307419,30352.33,NHS BUSINESS SERVICES AUTHORITY,REVENUE,127751
NORTH EAST LINCOLNSHIRE COUNCIL,http://statistics.data.gov.uk/id/local-authority/00FC,Public Health,Public Health,Director Public Health,Private Contractors,Contract Payments,PH105,9/30/2014,307422,30914.45,NHS BUSINESS SERVICES AUTHORITY,REVENUE,127751
NORTH EAST LINCOLNSHIRE COUNCIL,http://statistics.data.gov.uk/id/local-authority/00FC,Public Health,Public Health,Director Public Health,Private Contractors,Contract Payments,PH105,9/30/2014,307423,29953.54,NHS BUSINESS SERVICES AUTHORITY,REVENUE,127751
NORTH EAST LINCOLNSHIRE COUNCIL,http://statistics.data.gov.uk/id/local-authority/00FC,Public Health,Public Health,Director Public Health,Private Contractors,Contract Payments,PH105,9/30/2014,307427,31509.01,NHS BUSINESS SERVICES AUTHORITY,REVENUE,127751
NORTH EAST LINCOLNSHIRE COUNCIL,http://statistics.data.gov.uk/id/local-authority/00FC,Public Health,Public Health,Director Public Health,Private Contractors,Contract Payments,PH105,9/30/2014,307429,28795.82,NHS BUSINESS SERVICES AUTHORITY,REVENUE,127751
NORTH EAST LINCOLNSHIRE COUNCIL,http://statistics.data.gov.uk/id/local-authority/00FC,Public Health,Public Health,Director Public Health,Private Contractors,Contract Payments,PH105,9/30/2014,307432,28914.9,NHS BUSINESS SERVICES AUTHORITY,REVENUE,127751
NORTH EAST LINCOLNSHIRE COUNCIL,http://statistics.data.gov.uk/id/local-authority/00FC,Public Health,Public Health,Sexual Health,Private Contractors,Third Party Prov - Private,PH101,9/16/2014,303201,317.6,COTTINGHAM PHARMACY,REVENUE,104020
NORTH EAST LINCOLNSHIRE COUNCIL,http://statistics.data.gov.uk/id/local-authority/00FC,Public Health,Public Health,Sexual Health,Other Agencies,Health Charges,PJ131,09/02/2014,301655,276,SHEFFIELD TEACHING HOSPITALS NHS TRUST,REVENUE,101211
NORTH EAST LINCOLNSHIRE COUNCIL,http://statistics.data.gov.uk/id/local-authority/00FC,Public Health,Public Health,Sexual Health,Other Agencies,Other,PJ121,9/30/2014,306835,560,DR K S KOONAR,REVENUE,110808
NORTH EAST LINCOLNSHIRE COUNCIL,http://statistics.data.gov.uk/id/local-authority/00FC,Other Corporate Budgets,Other Corp Budgets - Technical,Appropriations,Indirect Employee Expenses,Pension P/Ment Pension Inc Act,EB105,9/18/2014,302918,994.42,LINCOLNSHIRE COUNTY COUNCIL,REVENUE,100389
NORTH EAST LINCOLNSHIRE COUNCIL,http://statistics.data.gov.uk/id/local-authority/00FC,Other Corporate Budgets,Other Corp Budgets - Financing,Borrowing Costs,Other Agencies,Fees Comm Clf Logotech Charges,PJ142,9/15/2014,302839,650,PSLIVE LTD,REVENUE,125043
NORTH EAST LINCOLNSHIRE COUNCIL,http://statistics.data.gov.uk/id/local-authority/00FC,Other Corporate Budgets,Other Corp Budgets - Financing,Borrowing Costs,Other Agencies,Fees & Commissions (Clf),PJ141,09/09/2014,302846,1495.89,KING & SHAXSON LIMITED,REVENUE,127358
NORTH EAST LINCOLNSHIRE COUNCIL,http://statistics.data.gov.uk/id/local-authority/00FC,People,Schools,Schools,Equip / Furniture / Materials,Non-Teaching Resources,LA118,09/08/2014,290519,-20,COUNTRYWISE WATER COOLERS LTD,REVENUE,102131
NORTH EAST LINCOLNSHIRE COUNCIL,http://statistics.data.gov.uk/id/local-authority/00FC,People,Schools,Schools,Equip / Furniture / Materials,Non-Teaching Resources,LA118,09/04/2014,295902,-7.95,LYRECO UK LIMITED,REVENUE,101120
NORTH EAST LINCOLNSHIRE COUNCIL,http://statistics.data.gov.uk/id/local-authority/00FC,People,Schools,Schools,Miscellaneous Expenses,Exam Fees,LL115,09/04/2014,295896,-14.35,PEARSON,REVENUE,121279
NORTH EAST LINCOLNSHIRE COUNCIL,http://statistics.data.gov.uk/id/local-authority/00FC,People,Schools,Schools,Other Agencies,Educational Visits,PJ152,9/26/2014,305861,460,WEELSBY PARK RIDING SCHOOL,REVENUE,105320
NORTH EAST LINCOLNSHIRE COUNCIL,http://statistics.data.gov.uk/id/local-authority/00FC,People,Schools,Schools,Rep Alterations Maint Building,Buildings - Repairs And Maint,GA102,9/29/2014,306438,340,GRIMSBY SUNBLINDS,REVENUE,100535
NORTH EAST LINCOLNSHIRE COUNCIL,http://statistics.data.gov.uk/id/local-authority/00FC,People,Schools,Schools,Rep Alterations Maint Building,Buildings - Repairs And Maint,GA102,9/29/2014,306437,810,GRIMSBY SUNBLINDS,REVENUE,100535
NORTH EAST LINCOLNSHIRE COUNCIL,http://statistics.data.gov.uk/id/local-authority/00FC,People,Schools,Schools,Rep Alterations Maint Building,Buildings - Repairs And Maint,GA102,9/29/2014,305958,401.5,FUTURE CLEANING SERVICES LTD,REVENUE,102557
NORTH EAST LINCOLNSHIRE COUNCIL,http://statistics.data.gov.uk/id/local-authority/00FC,People,Schools,Schools,Rep Alterations Maint Building,Buildings - Repairs And Maint,GA102,9/29/2014,305934,996,HAITHS HEATING LTD,REVENUE,101342
NORTH EAST LINCOLNSHIRE COUNCIL,http://statistics.data.gov.uk/id/local-authority/00FC,People,Schools,Schools,Rep Alterations Maint Building,Buildings - Repairs And Maint,GA102,9/26/2014,306104,327.8,KES BUILDING MAINTENANCE LIMITED,REVENUE,100786
NORTH EAST LINCOLNSHIRE COUNCIL,http://statistics.data.gov.uk/id/local-authority/00FC,People,Schools,Schools,Rep Alterations Maint Building,Buildings - Repairs And Maint,GA102,9/30/2014,306436,840,LINKS TURF LAYERS (UK),REVENUE,127502
NORTH EAST LINCOLNSHIRE COUNCIL,http://statistics.data.gov.uk/id/local-authority/00FC,People,Schools,Schools,Rep Alterations Maint Building,Buildings - Repairs And Maint,GA102,9/30/2014,306435,1851.2,LINKS TURF LAYERS (UK),REVENUE,127502
NORTH EAST LINCOLNSHIRE COUNCIL,http://statistics.data.gov.uk/id/local-authority/00FC,People,Schools,Schools,Equip / Furniture / Materials,Teaching Materials,LA117,9/30/2014,306433,264.8,BENTHAM LTD T/A IJT,REVENUE,101193
NORTH EAST LINCOLNSHIRE COUNCIL,http://statistics.data.gov.uk/id/local-authority/00FC,People,Schools,Schools,Communications And Computing,Computer H/Ware - Purchases,LF105,9/22/2014,304551,1020,TECHNOLOGY SUPPORT SOLUTIONS LTD,REVENUE,119571
NORTH EAST LINCOLNSHIRE COUNCIL,http://statistics.data.gov.uk/id/local-authority/00FC,People,Schools,Schools,Consultancy,Consultancy - Curriculum,PL102,9/29/2014,306073,250,O H SERVICES LTD,REVENUE,127432
NORTH EAST LINCOLNSHIRE COUNCIL,http://statistics.data.gov.uk/id/local-authority/00FC,People,Schools,Schools,Energy Costs,Electricity,GB102,9/15/2014,303080,770.45,NPOWER LIMITED,REVENUE,101414
NORTH EAST LINCOLNSHIRE COUNCIL,http://statistics.data.gov.uk/id/local-authority/00FC,People,Schools,Schools,Energy Costs,Gas,GB101,9/18/2014,303228,-76.86,BRITISH GAS TRADING LTD,REVENUE,101507
NORTH EAST LINCOLNSHIRE COUNCIL,http://statistics.data.gov.uk/id/local-authority/00FC,People,Schools,Schools,Energy Costs,Gas,GB101,9/18/2014,303229,-33.47,BRITISH GAS TRADING LTD,REVENUE,101507
NORTH EAST LINCOLNSHIRE COUNCIL,http://statistics.data.gov.uk/id/local-authority/00FC,People,Schools,Schools,Cleaning And Domestic Supplies,Cleaning - Services,GH102,9/24/2014,305367,340.19,BUSY BEES DOMESTIC CLEANING SERVICES,REVENUE,123772
NORTH EAST LINCOLNSHIRE COUNCIL,http://statistics.data.gov.uk/id/local-authority/00FC,People,Schools,Schools,Cleaning And Domestic Supplies,Cleaning - Services,GH102,09/11/2014,303038,523.36,BUSY BEES DOMESTIC CLEANING SERVICES,REVENUE,123772
NORTH EAST LINCOLNSHIRE COUNCIL,http://statistics.data.gov.uk/id/local-authority/00FC,People,Schools,Schools,Print Stationery / Gen Off Exp,Photocopier - Running Costs,LD102,9/15/2014,303078,660.06,UNITED CARLTON OFFICE SYSTEMS LTD,REVENUE,101652
NORTH EAST LINCOLNSHIRE COUNCIL,http://statistics.data.gov.uk/id/local-authority/00FC,People,Schools,Schools,Energy Costs,Electricity,GB102,9/29/2014,305986,1350.73,NPOWER LIMITED,REVENUE,101414
NORTH EAST LINCOLNSHIRE COUNCIL,http://statistics.data.gov.uk/id/local-authority/00FC,People,Schools,Schools,Energy Costs,Gas,GB101,9/29/2014,305904,-100.46,BRITISH GAS TRADING LTD,REVENUE,101507
NORTH EAST LINCOLNSHIRE COUNCIL,http://statistics.data.gov.uk/id/local-authority/00FC,People,Schools,Schools,Water Services,Water,GE101,9/23/2014,304885,329.04,ANGLIAN WATER,REVENUE,100508
NORTH EAST LINCOLNSHIRE COUNCIL,http://statistics.data.gov.uk/id/local-authority/00FC,People,Schools,Schools,Cleaning And Domestic Supplies,Refuse Collection,GH104,9/29/2014,306112,348.84,BIFFA WASTE SERVICES LTD,REVENUE,100515
NORTH EAST LINCOLNSHIRE COUNCIL,http://statistics.data.gov.uk/id/local-authority/00FC,People,Schools,Schools,Equip / Furniture / Materials,Teaching Materials,LA117,9/25/2014,305985,417.83,EDUCATIONAL PRINTING SERVS LTD,REVENUE,100681
NORTH EAST LINCOLNSHIRE COUNCIL,http://statistics.data.gov.uk/id/local-authority/00FC,People,Schools,Schools,Equip / Furniture / Materials,Teaching Materials,LA117,9/25/2014,305983,487,EAST RIDING OF YORKSHIRE COUNCIL,REVENUE,100654
NORTH EAST LINCOLNSHIRE COUNCIL,http://statistics.data.gov.uk/id/local-authority/00FC,People,Schools,Schools,Print Stationery / Gen Off Exp,Photocopier - Running Costs,LD102,9/23/2014,304900,656.98,UNITED CARLTON OFFICE SYSTEMS LTD,REVENUE,101652
NORTH EAST LINCOLNSHIRE COUNCIL,http://statistics.data.gov.uk/id/local-authority/00FC,People,Schools,Schools,Consultancy,Consultancy - Curriculum,PL102,9/23/2014,304825,1150,LINCS INSPIRE LTD,REVENUE,120610
NORTH EAST LINCOLNSHIRE COUNCIL,http://statistics.data.gov.uk/id/local-authority/00FC,People,Schools,Schools,Energy Costs,Electricity,GB102,9/29/2014,306566,580,C & G ENGINEERING SERVICES,REVENUE,100637
NORTH EAST LINCOLNSHIRE COUNCIL,http://statistics.data.gov.uk/id/local-authority/00FC,People,Schools,Schools,Equip / Furniture / Materials,Equipment - Teaching,LA109,9/15/2014,303563,6000,WALL CLIMBER LTD,REVENUE,127496
NORTH EAST LINCOLNSHIRE COUNCIL,http://statistics.data.gov.uk/id/local-authority/00FC,People,Schools,Schools,Customer And Client Receipts,Sales - School Meals - Pupils,VC108,09/09/2014,302305,1828,HEALING PRIMARY ACADEMY,REVENUE,127192
NORTH EAST LINCOLNSHIRE COUNCIL,http://statistics.data.gov.uk/id/local-authority/00FC,People,Schools,Schools,Indirect Employee Expenses,Staff Training,EB122,9/18/2014,303609,255,SINGLETON ASSOCIATES,REVENUE,104901
NORTH EAST LINCOLNSHIRE COUNCIL,http://statistics.data.gov.uk/id/local-authority/00FC,People,Schools,Schools,Indirect Employee Expenses,Staff Training,EB122,9/18/2014,303883,-475,FOCUS EDUCATION (UK) LTD,REVENUE,101394
NORTH EAST LINCOLNSHIRE COUNCIL,http://statistics.data.gov.uk/id/local-authority/00FC,People,Schools,Schools,Indirect Employee Expenses,Staff Training,EB122,9/25/2014,305310,2500,RUTH MISKIN LITERACY LTD,REVENUE,103122
NORTH EAST LINCOLNSHIRE COUNCIL,http://statistics.data.gov.uk/id/local-authority/00FC,People,Schools,Schools,Indirect Employee Expenses,Staff Training,EB122,9/16/2014,303604,420,SINGLETON ASSOCIATES,REVENUE,104901
NORTH EAST LINCOLNSHIRE COUNCIL,http://statistics.data.gov.uk/id/local-authority/00FC,People,Schools,Schools,Energy Costs,Electricity,GB102,9/16/2014,303606,776.72,NPOWER LIMITED,REVENUE,101414
NORTH EAST LINCOLNSHIRE COUNCIL,http://statistics.data.gov.uk/id/local-authority/00FC,People,Schools,Schools,Energy Costs,Electricity,GB102,9/16/2014,303602,957.79,NPOWER LIMITED,REVENUE,101414
NORTH EAST LINCOLNSHIRE COUNCIL,http://statistics.data.gov.uk/id/local-authority/00FC,People,Schools,Schools,Cleaning And Domestic Supplies,Cleaning - Consumables,GH103,9/25/2014,305311,342.42,PETER HOGARTH & SONS LTD,REVENUE,100815
NORTH EAST LINCOLNSHIRE COUNCIL,http://statistics.data.gov.uk/id/local-authority/00FC,People,Schools,Schools,Cleaning And Domestic Supplies,Refuse Collection,GH104,9/24/2014,303585,1259.44,BIFFA WASTE SERVICES LTD,REVENUE,100515
NORTH EAST LINCOLNSHIRE COUNCIL,http://statistics.data.gov.uk/id/local-authority/00FC,People,Schools,Schools,Equip / Furniture / Materials,Equipment - Teaching,LA109,9/15/2014,303612,501,RUFF TUFF STUFF LTD,REVENUE,127503
NORTH EAST LINCOLNSHIRE COUNCIL,http://statistics.data.gov.uk/id/local-authority/00FC,People,Schools,Schools,Equip / Furniture / Materials,Goods For Resale,LA123,9/24/2014,305307,302.5,IMPACT PROMOTIONAL MERCHANDISE LTD,REVENUE,109385
NORTH EAST LINCOLNSHIRE COUNCIL,http://statistics.data.gov.uk/id/local-authority/00FC,People,Schools,Schools,Print Stationery / Gen Off Exp,Photocopier - Running Costs,LD102,9/18/2014,303600,425.63,UNITED CARLTON OFFICE SYSTEMS LTD,REVENUE,101652
NORTH EAST LINCOLNSHIRE COUNCIL,http://statistics.data.gov.uk/id/local-authority/00FC,People,Schools,Schools,Print Stationery / Gen Off Exp,Photocopier - Running Costs,LD102,9/24/2014,305304,1451.66,UNITED CARLTON OFFICE SYSTEMS LTD,REVENUE,101652
NORTH EAST LINCOLNSHIRE COUNCIL,http://statistics.data.gov.uk/id/local-authority/00FC,People,Schools,Schools,Communications And Computing,Computer S/Ware - Licences,LF103,9/29/2014,306555,299.99,NICOLAS ROBERTS PUBLICATION .LTD,REVENUE,104522
NORTH EAST LINCOLNSHIRE COUNCIL,http://statistics.data.gov.uk/id/local-authority/00FC,People,Schools,Schools,Communications And Computing,Telephones,LF112,9/15/2014,303597,298.22,UNICOM,REVENUE,103588
NORTH EAST LINCOLNSHIRE COUNCIL,http://statistics.data.gov.uk/id/local-authority/00FC,People,Schools,Schools,Other Agencies,Educational Visits,PJ152,9/24/2014,303588,1035,KINGSWOOD EDUCATIONAL ACTIVITY CENTRE,REVENUE,101287
NORTH EAST LINCOLNSHIRE COUNCIL,http://statistics.data.gov.uk/id/local-authority/00FC,People,Schools,Schools,Other Agencies,Educational Visits,PJ152,9/24/2014,303587,299,M&M PRODUCTIONS,REVENUE,101593
NORTH EAST LINCOLNSHIRE COUNCIL,http://statistics.data.gov.uk/id/local-authority/00FC,People,Schools,Schools,Consultancy,Consultancy - Curriculum,PL102,9/18/2014,303608,2150,LINCS INSPIRE LTD,REVENUE,120610
NORTH EAST LINCOLNSHIRE COUNCIL,http://statistics.data.gov.uk/id/local-authority/00FC,People,Schools,Schools,Rep Alterations Maint Building,Buildings - Repairs And Maint,GA102,09/04/2014,302158,1786.35,EXCELL ELECTRICAL CONTRACTORS,REVENUE,100601
NORTH EAST LINCOLNSHIRE COUNCIL,http://statistics.data.gov.uk/id/local-authority/00FC,People,Schools,Schools,Rep Alterations Maint Building,Buildings - Repairs And Maint,GA102,09/04/2014,302153,7437.77,KES BUILDING MAINTENANCE LIMITED,REVENUE,100786
NORTH EAST LINCOLNSHIRE COUNCIL,http://statistics.data.gov.uk/id/local-authority/00FC,People,Schools,Schools,Rep Alterations Maint Building,Buildings - Repairs And Maint,GA102,09/04/2014,302142,680,J W PLATER LTD,REVENUE,100555
NORTH EAST LINCOLNSHIRE COUNCIL,http://statistics.data.gov.uk/id/local-authority/00FC,People,Schools,Schools,Rep Alterations Maint Building,Buildings - Repairs And Maint,GA102,9/29/2014,306704,2671,FABRIQUE SPECIALIST GLAZING SYSTEMS LTD,REVENUE,101314
NORTH EAST LINCOLNSHIRE COUNCIL,http://statistics.data.gov.uk/id/local-authority/00FC,People,Schools,Schools,Rep Alterations Maint Building,Buildings - Repairs And Maint,GA102,9/29/2014,306577,276,SYLVESTER-KEAL LTD,REVENUE,100593
NORTH EAST LINCOLNSHIRE COUNCIL,http://statistics.data.gov.uk/id/local-authority/00FC,People,Schools,Schools,Energy Costs,Electricity,GB102,9/24/2014,303919,1037.84,NPOWER LIMITED,REVENUE,101414
NORTH EAST LINCOLNSHIRE COUNCIL,http://statistics.data.gov.uk/id/local-authority/00FC,People,Schools,Schools,Energy Costs,Gas,GB101,9/25/2014,305903,-130.87,BRITISH GAS TRADING LTD,REVENUE,101507
NORTH EAST LINCOLNSHIRE COUNCIL,http://statistics.data.gov.uk/id/local-authority/00FC,People,Schools,Schools,Energy Costs,Gas,GB101,9/29/2014,305902,-75.6,BRITISH GAS TRADING LTD,REVENUE,101507
NORTH EAST LINCOLNSHIRE COUNCIL,http://statistics.data.gov.uk/id/local-authority/00FC,People,Schools,Schools,Water Services,Water,GE101,9/16/2014,303915,326.78,ANGLIAN WATER,REVENUE,100508
NORTH EAST LINCOLNSHIRE COUNCIL,http://statistics.data.gov.uk/id/local-authority/00FC,People,Schools,Schools,Consultancy,Consultancy,PL101,9/29/2014,304809,4250,FOCUS ON COMMUNITY,REVENUE,105185
NORTH EAST LINCOLNSHIRE COUNCIL,http://statistics.data.gov.uk/id/local-authority/00FC,People,Schools,Schools,Direct Employee Expenses,Agency Supply Teachers,EA104,9/25/2014,305926,401.35,RANDSTAD EDUCATION LTD,REVENUE,102465
NORTH EAST LINCOLNSHIRE COUNCIL,http://statistics.data.gov.uk/id/local-authority/00FC,People,Schools,Schools,Direct Employee Expenses,Agency Supply Teachers,EA104,9/29/2014,305925,439.74,RANDSTAD EDUCATION LTD,REVENUE,102465
NORTH EAST LINCOLNSHIRE COUNCIL,http://statistics.data.gov.uk/id/local-authority/00FC,People,Schools,Schools,Rep Alterations Maint Building,Buildings - Repairs And Maint,GA102,09/04/2014,302159,1178,RSB FLOORING,REVENUE,103570
NORTH EAST LINCOLNSHIRE COUNCIL,http://statistics.data.gov.uk/id/local-authority/00FC,People,Schools,Schools,Rep Alterations Maint Building,Buildings - Repairs And Maint,GA102,9/30/2014,306934,276,SYLVESTER-KEAL LTD,REVENUE,100593
NORTH EAST LINCOLNSHIRE COUNCIL,http://statistics.data.gov.uk/id/local-authority/00FC,People,Schools,Schools,Cleaning And Domestic Supplies,Cleaning - Domestic Purchases,GH105,9/29/2014,305946,306.26,RENTOKIL PEST CONTROL,REVENUE,100587
NORTH EAST LINCOLNSHIRE COUNCIL,http://statistics.data.gov.uk/id/local-authority/00FC,People,Schools,Schools,Equip / Furniture / Materials,Equipment - Hire,LA102,9/29/2014,305945,2369.51,CIT VENDOR FINANCE (UK) LTD,REVENUE,101579
NORTH EAST LINCOLNSHIRE COUNCIL,http://statistics.data.gov.uk/id/local-authority/00FC,People,Schools,Schools,Equip / Furniture / Materials,Teaching Materials,LA117,9/30/2014,307377,338.58,THE BOOK PEOPLE LTD,REVENUE,100994
NORTH EAST LINCOLNSHIRE COUNCIL,http://statistics.data.gov.uk/id/local-authority/00FC,People,Schools,Schools,Print Stationery / Gen Off Exp,Photocopier - Running Costs,LD102,9/29/2014,305947,556.58,RISO (UK) LTD,REVENUE,101355
NORTH EAST LINCOLNSHIRE COUNCIL,http://statistics.data.gov.uk/id/local-authority/00FC,People,Schools,Schools,Communications And Computing,Computer H/Ware - Teaching,LF104,9/29/2014,305938,1155,GENERICMATHS LTD,REVENUE,124233
NORTH EAST LINCOLNSHIRE COUNCIL,http://statistics.data.gov.uk/id/local-authority/00FC,People,Schools,Schools,Communications And Computing,Computer H/Ware - Teaching,LF104,09/09/2014,291850,585.9,JASON FRANKLIN,REVENUE,101891
NORTH EAST LINCOLNSHIRE COUNCIL,http://statistics.data.gov.uk/id/local-authority/00FC,People,Schools,Schools,Consultancy,Consultancy - Curriculum,PL102,9/29/2014,305944,250,OASIS ACADEMY WINTRINGHAM,REVENUE,101939
NORTH EAST LINCOLNSHIRE COUNCIL,http://statistics.data.gov.uk/id/local-authority/00FC,People,Schools,Schools,Direct Employee Expenses,Agency Supply Teachers,EA104,9/30/2014,307314,300,PRINCIPAL RESOURCING LTD,REVENUE,101601
NORTH EAST LINCOLNSHIRE COUNCIL,http://statistics.data.gov.uk/id/local-authority/00FC,People,Schools,Schools,Indirect Employee Expenses,Staff Training,EB122,9/23/2014,304890,830,READING EXPLORERS LTD,REVENUE,126927
NORTH EAST LINCOLNSHIRE COUNCIL,http://statistics.data.gov.uk/id/local-authority/00FC,People,Schools,Schools,Rep Alterations Maint Building,Buildings - Repairs And Maint,GA102,9/29/2014,306583,276,SYLVESTER-KEAL LTD,REVENUE,100593
NORTH EAST LINCOLNSHIRE COUNCIL,http://statistics.data.gov.uk/id/local-authority/00FC,People,Schools,Schools,Energy Costs,Electricity,GB102,9/23/2014,304891,1911.48,NPOWER LIMITED,REVENUE,101414
NORTH EAST LINCOLNSHIRE COUNCIL,http://statistics.data.gov.uk/id/local-authority/00FC,People,Schools,Schools,Cleaning And Domestic Supplies,Refuse Collection,GH104,9/25/2014,304731,326.17,BIFFA WASTE SERVICES LTD,REVENUE,100515
NORTH EAST LINCOLNSHIRE COUNCIL,http://statistics.data.gov.uk/id/local-authority/00FC,People,Schools,Schools,Communications And Computing,Computer H/Ware - Purchases,LF105,9/30/2014,307335,450,TECHNOLOGY SUPPORT SOLUTIONS LTD,REVENUE,119571
NORTH EAST LINCOLNSHIRE COUNCIL,http://statistics.data.gov.uk/id/local-authority/00FC,People,Schools,Schools,Consultancy,Consultancy - Curriculum,PL102,9/23/2014,304886,533.33,CRAIGLAMB LTD,REVENUE,119755
NORTH EAST LINCOLNSHIRE COUNCIL,http://statistics.data.gov.uk/id/local-authority/00FC,People,Schools,Schools,Consultancy,Consultancy - Curriculum,PL102,9/23/2014,304888,1787.5,TEAM@WORK LTD,REVENUE,111450
NORTH EAST LINCOLNSHIRE COUNCIL,http://statistics.data.gov.uk/id/local-authority/00FC,People,Schools,Schools,Consultancy,Consultancy - Curriculum,PL102,9/25/2014,305896,340,P FENSOM,REVENUE,109006
NORTH EAST LINCOLNSHIRE COUNCIL,http://statistics.data.gov.uk/id/local-authority/00FC,People,Schools,Schools,Direct Employee Expenses,Agency Supply Teachers,EA104,9/30/2014,306951,507,TEACHING PERSONNEL LTD,REVENUE,101305
NORTH EAST LINCOLNSHIRE COUNCIL,http://statistics.data.gov.uk/id/local-authority/00FC,People,Schools,Schools,Direct Employee Expenses,Agency Supply Teachers,EA104,9/30/2014,306949,507,TEACHING PERSONNEL LTD,REVENUE,101305
NORTH EAST LINCOLNSHIRE COUNCIL,http://statistics.data.gov.uk/id/local-authority/00FC,People,Schools,Schools,Indirect Employee Expenses,Staff Training,EB122,9/24/2014,305524,1000,KAPLAN FINANCIAL LTD,REVENUE,102112
NORTH EAST LINCOLNSHIRE COUNCIL,http://statistics.data.gov.uk/id/local-authority/00FC,People,Schools,Schools,Rep Alterations Maint Building,Buildings - Repairs And Maint,GA102,9/29/2014,306582,276,SYLVESTER-KEAL LTD,REVENUE,100593
NORTH EAST LINCOLNSHIRE COUNCIL,http://statistics.data.gov.uk/id/local-authority/00FC,People,Schools,Schools,Cleaning And Domestic Supplies,Cleaning - Domestic Purchases,GH105,9/25/2014,305534,444,ESPO,REVENUE,100745
NORTH EAST LINCOLNSHIRE COUNCIL,http://statistics.data.gov.uk/id/local-authority/00FC,People,Schools,Schools,Grounds Maintenance Costs,Grounds Maintenance,GJ101,9/29/2014,264340,640,REDACTED PERSONAL INFORMATION,REVENUE,REDACTED PERSONAL INFORMATION
NORTH EAST LINCOLNSHIRE COUNCIL,http://statistics.data.gov.uk/id/local-authority/00FC,People,Schools,Schools,Equip / Furniture / Materials,Equipment - Teaching,LA109,9/24/2014,305509,656,ESPO,REVENUE,100745
NORTH EAST LINCOLNSHIRE COUNCIL,http://statistics.data.gov.uk/id/local-authority/00FC,People,Schools,Schools,Equip / Furniture / Materials,Equipment - Teaching,LA109,9/24/2014,305536,604,ESPO,REVENUE,100745
NORTH EAST LINCOLNSHIRE COUNCIL,http://statistics.data.gov.uk/id/local-authority/00FC,People,Schools,Schools,Equip / Furniture / Materials,Equipment - Teaching,LA109,9/25/2014,305522,329.85,FINDEL EDUCATION LTD,REVENUE,101237
NORTH EAST LINCOLNSHIRE COUNCIL,http://statistics.data.gov.uk/id/local-authority/00FC,People,Schools,Schools,Equip / Furniture / Materials,Equipment - Teaching,LA109,9/24/2014,305529,319.9,YORKSHIRE PURCHASING,REVENUE,100573
NORTH EAST LINCOLNSHIRE COUNCIL,http://statistics.data.gov.uk/id/local-authority/00FC,People,Schools,Schools,Equip / Furniture / Materials,Equipment - Teaching,LA109,9/30/2014,305615,337.3,FINDEL EDUCATION LTD,REVENUE,101237
NORTH EAST LINCOLNSHIRE COUNCIL,http://statistics.data.gov.uk/id/local-authority/00FC,People,Schools,Schools,Equip / Furniture / Materials,Teaching Materials,LA117,9/30/2014,305617,363.72,ESPO,REVENUE,100745
NORTH EAST LINCOLNSHIRE COUNCIL,http://statistics.data.gov.uk/id/local-authority/00FC,People,Schools,Schools,Equip / Furniture / Materials,Teaching Materials,LA117,9/30/2014,305619,1977.88,EAST RIDING OF YORKSHIRE COUNCIL,REVENUE,100654
NORTH EAST LINCOLNSHIRE COUNCIL,http://statistics.data.gov.uk/id/local-authority/00FC,People,Schools,Schools,Equip / Furniture / Materials,Teaching Materials,LA117,9/24/2014,305612,630.62,ESPO,REVENUE,100745
NORTH EAST LINCOLNSHIRE COUNCIL,http://statistics.data.gov.uk/id/local-authority/00FC,People,Schools,Schools,Equip / Furniture / Materials,Teaching Materials,LA117,9/25/2014,305652,562.44,ESPO,REVENUE,100745
NORTH EAST LINCOLNSHIRE COUNCIL,http://statistics.data.gov.uk/id/local-authority/00FC,People,Schools,Schools,Print Stationery / Gen Off Exp,Photocopier - Running Costs,LD102,9/30/2014,306944,882.38,UNITED CARLTON OFFICE SYSTEMS LTD,REVENUE,101652
NORTH EAST LINCOLNSHIRE COUNCIL,http://statistics.data.gov.uk/id/local-authority/00FC,People,Schools,Schools,Print Stationery / Gen Off Exp,Photocopier - Running Costs,LD102,9/30/2014,306941,882.39,UNITED CARLTON OFFICE SYSTEMS LTD,REVENUE,101652
NORTH EAST LINCOLNSHIRE COUNCIL,http://statistics.data.gov.uk/id/local-authority/00FC,People,Schools,Schools,Print Stationery / Gen Off Exp,Photocopier - Running Costs,LD102,9/24/2014,305539,1029.06,XOS (UK) LTD,REVENUE,102556
NORTH EAST LINCOLNSHIRE COUNCIL,http://statistics.data.gov.uk/id/local-authority/00FC,People,Schools,Schools,Communications And Computing,Computer S/Ware - Licences,LF103,9/23/2014,303926,5858,LEXIA UK LTD,REVENUE,103420
NORTH EAST LINCOLNSHIRE COUNCIL,http://statistics.data.gov.uk/id/local-authority/00FC,People,Schools,Schools,Other Agencies,Educational Visits,PJ152,9/24/2014,303927,630,THE GRIMSBY INSTITUTE OF FURTHER,REVENUE,102742
NORTH EAST LINCOLNSHIRE COUNCIL,http://statistics.data.gov.uk/id/local-authority/00FC,People,Schools,Schools,Direct Employee Expenses,Agency Supply Teachers,EA104,9/23/2014,304994,336,REED EMPLOYMENT LTD,REVENUE,102225
NORTH EAST LINCOLNSHIRE COUNCIL,http://statistics.data.gov.uk/id/local-authority/00FC,People,Schools,Schools,Direct Employee Expenses,Agency Supply Teachers,EA104,9/23/2014,304977,495,PRINCIPAL RESOURCING LTD,REVENUE,101601
NORTH EAST LINCOLNSHIRE COUNCIL,http://statistics.data.gov.uk/id/local-authority/00FC,People,Schools,Schools,Rep Alterations Maint Building,Buildings - Repairs And Maint,GA102,9/25/2014,305341,395,LINCS ELECTRICAL SERVICES LTD,REVENUE,102044
NORTH EAST LINCOLNSHIRE COUNCIL,http://statistics.data.gov.uk/id/local-authority/00FC,People,Schools,Schools,Rep Alterations Maint Building,Buildings - Repairs And Maint,GA102,9/23/2014,304879,2023,CUPBOARDS DIRECT LTD,REVENUE,124605
NORTH EAST LINCOLNSHIRE COUNCIL,http://statistics.data.gov.uk/id/local-authority/00FC,People,Schools,Schools,Rep Alterations Maint Building,Security Alarms And Cctv,GA101,9/23/2014,304859,303.67,JOHN MOORE SECURITY LTD,REVENUE,100633
NORTH EAST LINCOLNSHIRE COUNCIL,http://statistics.data.gov.uk/id/local-authority/00FC,People,Schools,Schools,Energy Costs,Electricity,GB102,9/29/2014,306697,915.09,NPOWER LIMITED,REVENUE,101414
NORTH EAST LINCOLNSHIRE COUNCIL,http://statistics.data.gov.uk/id/local-authority/00FC,People,Schools,Schools,Water Services,Water,GE101,9/23/2014,304985,356.7,ANGLIAN WATER,REVENUE,100508
NORTH EAST LINCOLNSHIRE COUNCIL,http://statistics.data.gov.uk/id/local-authority/00FC,People,Schools,Schools,Cleaning And Domestic Supplies,Cleaning - Domestic Purchases,GH105,9/23/2014,305109,1080.32,PHS GROUP LTD,REVENUE,100554
NORTH EAST LINCOLNSHIRE COUNCIL,http://statistics.data.gov.uk/id/local-authority/00FC,People,Schools,Schools,Equip / Furniture / Materials,Non-Teaching Resources,LA118,9/23/2014,305113,355.95,IT @ SPECTRUM LTD,REVENUE,100726
NORTH EAST LINCOLNSHIRE COUNCIL,http://statistics.data.gov.uk/id/local-authority/00FC,People,Schools,Schools,Equip / Furniture / Materials,Teaching Materials,LA117,9/23/2014,305120,-16.95,FINDEL EDUCATION LTD,REVENUE,101237
NORTH EAST LINCOLNSHIRE COUNCIL,http://statistics.data.gov.uk/id/local-authority/00FC,People,Schools,Schools,Equip / Furniture / Materials,Teaching Materials,LA117,9/23/2014,305113,830.55,IT @ SPECTRUM LTD,REVENUE,100726
NORTH EAST LINCOLNSHIRE COUNCIL,http://statistics.data.gov.uk/id/local-authority/00FC,People,Schools,Schools,Services,Clerking Governing Bodies,LE101,9/23/2014,304984,380,SERCO SHARED SERVICES CENTRE,REVENUE,101875
NORTH EAST LINCOLNSHIRE COUNCIL,http://statistics.data.gov.uk/id/local-authority/00FC,People,Schools,Schools,Communications And Computing,Computer H/Ware - Purchases,LF105,9/30/2014,306793,1690,TECHNOLOGY SUPPORT SOLUTIONS LTD,REVENUE,119571
NORTH EAST LINCOLNSHIRE COUNCIL,http://statistics.data.gov.uk/id/local-authority/00FC,People,Schools,Schools,Communications And Computing,Computer H/Ware - Teaching,LF104,9/23/2014,304883,250,KRCS (DIGITAL SOLUTIONS) LTD,REVENUE,120979
NORTH EAST LINCOLNSHIRE COUNCIL,http://statistics.data.gov.uk/id/local-authority/00FC,People,Schools,Schools,Other Agencies,Educational Visits,PJ152,9/29/2014,306695,269,PGL TRAVEL LTD,REVENUE,100693
NORTH EAST LINCOLNSHIRE COUNCIL,http://statistics.data.gov.uk/id/local-authority/00FC,People,Schools,Schools,Consultancy,Consultancy - Curriculum,PL102,9/23/2014,304987,2535,TEAM@WORK LTD,REVENUE,111450
NORTH EAST LINCOLNSHIRE COUNCIL,http://statistics.data.gov.uk/id/local-authority/00FC,People,Schools,Schools,Consultancy,Consultancy - Curriculum,PL102,9/23/2014,304988,2145,TEAM@WORK LTD,REVENUE,111450
NORTH EAST LINCOLNSHIRE COUNCIL,http://statistics.data.gov.uk/id/local-authority/00FC,People,Schools,Schools,Rep Alterations Maint Building,Buildings - Repairs And Maint,GA102,09/04/2014,302154,5267.54,KES BUILDING MAINTENANCE LIMITED,REVENUE,100786
NORTH EAST LINCOLNSHIRE COUNCIL,http://statistics.data.gov.uk/id/local-authority/00FC,People,Schools,Schools,Rep Alterations Maint Building,Buildings - Repairs And Maint,GA102,09/04/2014,302168,1347.5,FRED MARGARSON LTD,REVENUE,100592
NORTH EAST LINCOLNSHIRE COUNCIL,http://statistics.data.gov.uk/id/local-authority/00FC,People,Schools,Schools,Rates,Rates,GD101,9/25/2014,305495,3725.27,NORTH EAST LINCOLNSHIRE COUNCIL,REVENUE,100894
NORTH EAST LINCOLNSHIRE COUNCIL,http://statistics.data.gov.uk/id/local-authority/00FC,People,Schools,Schools,Indirect Employee Expenses,Staff Training,EB122,9/15/2014,302734,356,THE ENQUIRE LEARNING TRUST,REVENUE,127421
NORTH EAST LINCOLNSHIRE COUNCIL,http://statistics.data.gov.uk/id/local-authority/00FC,People,Schools,Schools,Rep Alterations Maint Building,Buildings - Repairs And Maint,GA102,9/29/2014,306584,276,SYLVESTER-KEAL LTD,REVENUE,100593
NORTH EAST LINCOLNSHIRE COUNCIL,http://statistics.data.gov.uk/id/local-authority/00FC,People,Schools,Schools,Rep Alterations Maint Building,Buildings - Repairs And Maint,GA102,9/30/2014,307326,9790,UNIBUILD BUILDING CONT LTD,REVENUE,101469
NORTH EAST LINCOLNSHIRE COUNCIL,http://statistics.data.gov.uk/id/local-authority/00FC,People,Schools,Schools,Rep Alterations Maint Building,Buildings - Repairs And Maint,GA102,9/18/2014,303418,9895,ETON-LINCS LIMITED,REVENUE,101510
NORTH EAST LINCOLNSHIRE COUNCIL,http://statistics.data.gov.uk/id/local-authority/00FC,People,Schools,Schools,Rep Alterations Maint Building,Buildings - Repairs And Maint,GA102,9/18/2014,303419,9975,ETON-LINCS LIMITED,REVENUE,101510
NORTH EAST LINCOLNSHIRE COUNCIL,http://statistics.data.gov.uk/id/local-authority/00FC,People,Schools,Schools,Rep Alterations Maint Building,Buildings - Repairs And Maint,GA102,9/29/2014,306589,820,KES BUILDING MAINTENANCE LIMITED,REVENUE,100786
NORTH EAST LINCOLNSHIRE COUNCIL,http://statistics.data.gov.uk/id/local-authority/00FC,People,Schools,Schools,Rep Alterations Maint Building,Buildings - Repairs And Maint,GA102,9/29/2014,306562,520,SYLVESTER-KEAL LTD,REVENUE,100593
NORTH EAST LINCOLNSHIRE COUNCIL,http://statistics.data.gov.uk/id/local-authority/00FC,People,Schools,Schools,Cleaning And Domestic Supplies,Refuse Collection,GH104,09/08/2014,302568,899.73,BIFFA WASTE SERVICES LTD,REVENUE,100515
NORTH EAST LINCOLNSHIRE COUNCIL,http://statistics.data.gov.uk/id/local-authority/00FC,People,Schools,Schools,Cleaning And Domestic Supplies,Refuse Collection,GH104,09/08/2014,302569,320,BIFFA WASTE SERVICES LTD,REVENUE,100515
NORTH EAST LINCOLNSHIRE COUNCIL,http://statistics.data.gov.uk/id/local-authority/00FC,People,Schools,Schools,Equip / Furniture / Materials,Books,LA121,9/18/2014,304118,3819.93,OXFORD UNIVERSITY PRESS,REVENUE,100887
NORTH EAST LINCOLNSHIRE COUNCIL,http://statistics.data.gov.uk/id/local-authority/00FC,People,Schools,Schools,Equip / Furniture / Materials,Books,LA121,09/08/2014,302567,261,FIRST NEWS,REVENUE,101733
NORTH EAST LINCOLNSHIRE COUNCIL,http://statistics.data.gov.uk/id/local-authority/00FC,People,Schools,Schools,Equip / Furniture / Materials,Non-Teaching Resources,LA118,9/15/2014,302900,-150,COMPLETE OFFICE SOLUTIONS (UK) LTD,REVENUE,123664
NORTH EAST LINCOLNSHIRE COUNCIL,http://statistics.data.gov.uk/id/local-authority/00FC,People,Schools,Schools,Equip / Furniture / Materials,Teaching Materials,LA117,9/23/2014,303904,2470.99,EDUCATIONAL PRINTING SERVS LTD,REVENUE,100681
NORTH EAST LINCOLNSHIRE COUNCIL,http://statistics.data.gov.uk/id/local-authority/00FC,People,Schools,Schools,Equip / Furniture / Materials,Teaching Materials,LA117,9/23/2014,303906,325.43,FINDEL EDUCATION LTD,REVENUE,101237
NORTH EAST LINCOLNSHIRE COUNCIL,http://statistics.data.gov.uk/id/local-authority/00FC,People,Schools,Schools,Equip / Furniture / Materials,Teaching Materials,LA117,9/16/2014,303911,270,FOCUS EDUCATION (UK) LTD,REVENUE,101394
NORTH EAST LINCOLNSHIRE COUNCIL,http://statistics.data.gov.uk/id/local-authority/00FC,People,Schools,Schools,Equip / Furniture / Materials,Teaching Materials,LA117,09/08/2014,302582,529.5,FINDEL EDUCATION LTD,REVENUE,101237
NORTH EAST LINCOLNSHIRE COUNCIL,http://statistics.data.gov.uk/id/local-authority/00FC,People,Schools,Schools,Equip / Furniture / Materials,Teaching Materials,LA117,9/30/2014,307000,1101.4,CYGNET CATERING,REVENUE,108880
NORTH EAST LINCOLNSHIRE COUNCIL,http://statistics.data.gov.uk/id/local-authority/00FC,People,Schools,Schools,Communications And Computing,Computer H/Ware - Teaching,LF104,09/08/2014,302564,300,IT SERVICES (GRIMSBY) LTD,REVENUE,101060
NORTH EAST LINCOLNSHIRE COUNCIL,http://statistics.data.gov.uk/id/local-authority/00FC,People,Schools,Schools,Communications And Computing,Computer S/Ware - Licences,LF103,9/24/2014,303923,850,OPTIMUM REPORTS LTD,REVENUE,106132
NORTH EAST LINCOLNSHIRE COUNCIL,http://statistics.data.gov.uk/id/local-authority/00FC,People,Schools,Schools,Consultancy,Consultancy - Curriculum,PL102,9/15/2014,302901,-300,SERCO SHARED SERVICES CENTRE,REVENUE,101875
NORTH EAST LINCOLNSHIRE COUNCIL,http://statistics.data.gov.uk/id/local-authority/00FC,People,Schools,Schools,Direct Employee Expenses,Agency Supply Teachers,EA104,9/18/2014,303653,1074,PRINCIPAL RESOURCING LTD,REVENUE,101601
NORTH EAST LINCOLNSHIRE COUNCIL,http://statistics.data.gov.uk/id/local-authority/00FC,People,Schools,Schools,Direct Employee Expenses,Agency Supply Teachers,EA104,9/29/2014,306009,1268,PRINCIPAL RESOURCING LTD,REVENUE,101601
NORTH EAST LINCOLNSHIRE COUNCIL,http://statistics.data.gov.uk/id/local-authority/00FC,People,Schools,Schools,Direct Employee Expenses,Agency Supply Teachers,EA104,9/29/2014,306013,1815,PRINCIPAL RESOURCING LTD,REVENUE,101601
NORTH EAST LINCOLNSHIRE COUNCIL,http://statistics.data.gov.uk/id/local-authority/00FC,People,Schools,Schools,Indirect Employee Expenses,Staff Training,EB122,9/18/2014,304175,900,RELATE LINCOLNSHIRE,REVENUE,127437
NORTH EAST LINCOLNSHIRE COUNCIL,http://statistics.data.gov.uk/id/local-authority/00FC,People,Schools,Schools,Indirect Employee Expenses,Staff Training,EB122,9/18/2014,303654,1375,TEAM@WORK LTD,REVENUE,111450
NORTH EAST LINCOLNSHIRE COUNCIL,http://statistics.data.gov.uk/id/local-authority/00FC,People,Schools,Schools,Indirect Employee Expenses,Staff Training,EB122,9/24/2014,305359,565,FOCUS EDUCATION (UK) LTD,REVENUE,101394
NORTH EAST LINCOLNSHIRE COUNCIL,http://statistics.data.gov.uk/id/local-authority/00FC,People,Schools,Schools,Indirect Employee Expenses,Staff Training,EB122,9/25/2014,305326,922.5,READING EXPLORERS LTD,REVENUE,126927
NORTH EAST LINCOLNSHIRE COUNCIL,http://statistics.data.gov.uk/id/local-authority/00FC,People,Schools,Schools,Energy Costs,Electricity,GB102,9/18/2014,304181,2811.92,NPOWER LIMITED,REVENUE,101414
NORTH EAST LINCOLNSHIRE COUNCIL,http://statistics.data.gov.uk/id/local-authority/00FC,People,Schools,Schools,Cleaning And Domestic Supplies,Cleaning - Domestic Purchases,GH105,9/25/2014,305325,642,NDA (PACKAGING SERVICES) LTD,REVENUE,108313
NORTH EAST LINCOLNSHIRE COUNCIL,http://statistics.data.gov.uk/id/local-authority/00FC,People,Schools,Schools,Equip / Furniture / Materials,Books,LA121,9/18/2014,304134,650.08,OXFORD UNIVERSITY PRESS,REVENUE,100887
NORTH EAST LINCOLNSHIRE COUNCIL,http://statistics.data.gov.uk/id/local-authority/00FC,People,Schools,Schools,Equip / Furniture / Materials,Equipment - Teaching,LA109,9/15/2014,303657,560,LEGO COMPANY LIMITED,REVENUE,127506
NORTH EAST LINCOLNSHIRE COUNCIL,http://statistics.data.gov.uk/id/local-authority/00FC,People,Schools,Schools,Equip / Furniture / Materials,Goods For Resale,LA123,9/24/2014,305331,1053.6,KATHRYN BILLINGS PRINTING & EMBROIDERY LTD,REVENUE,101457
NORTH EAST LINCOLNSHIRE COUNCIL,http://statistics.data.gov.uk/id/local-authority/00FC,People,Schools,Schools,Equip / Furniture / Materials,Teaching Materials,LA117,9/18/2014,304169,333.33,MANDERS HI-FI LTD,REVENUE,104225
NORTH EAST LINCOLNSHIRE COUNCIL,http://statistics.data.gov.uk/id/local-authority/00FC,People,Schools,Schools,Equip / Furniture / Materials,Teaching Materials,LA117,9/24/2014,304469,387.31,EAST RIDING OF YORKSHIRE COUNCIL,REVENUE,100654
NORTH EAST LINCOLNSHIRE COUNCIL,http://statistics.data.gov.uk/id/local-authority/00FC,People,Schools,Schools,Equip / Furniture / Materials,Teaching Materials,LA117,9/16/2014,303706,427.1,GL EDUCATION GROUP LTD,REVENUE,118819
NORTH EAST LINCOLNSHIRE COUNCIL,http://statistics.data.gov.uk/id/local-authority/00FC,People,Schools,Schools,Equip / Furniture / Materials,Teaching Materials,LA117,9/29/2014,306556,575.15,EAST RIDING OF YORKSHIRE COUNCIL,REVENUE,100654
NORTH EAST LINCOLNSHIRE COUNCIL,http://statistics.data.gov.uk/id/local-authority/00FC,People,Schools,Schools,Communications And Computing,Computer H/Ware - Teaching,LF104,9/15/2014,303659,4653.44,DELL COMPUTER CORPORATION LTD,REVENUE,100892
NORTH EAST LINCOLNSHIRE COUNCIL,http://statistics.data.gov.uk/id/local-authority/00FC,People,Schools,Schools,Communications And Computing,Computer H/Ware - Teaching,LF104,9/24/2014,305314,3084,KRCS (DIGITAL SOLUTIONS) LTD,REVENUE,120979
NORTH EAST LINCOLNSHIRE COUNCIL,http://statistics.data.gov.uk/id/local-authority/00FC,People,Schools,Schools,Communications And Computing,Computer H/Ware - Teaching,LF104,9/29/2014,306561,1433.32,EDUCATION LINCS LTD,REVENUE,101059
NORTH EAST LINCOLNSHIRE COUNCIL,http://statistics.data.gov.uk/id/local-authority/00FC,People,Schools,Schools,Communications And Computing,Computer S/Ware - Licences,LF103,9/18/2014,304177,820,BLUEWAVE INTERNATIONAL LTD,REVENUE,105090
NORTH EAST LINCOLNSHIRE COUNCIL,http://statistics.data.gov.uk/id/local-authority/00FC,People,Schools,Schools,Other Agencies,Educational Visits,PJ152,9/29/2014,306560,665,MILLMAN COACHES,REVENUE,100700
NORTH EAST LINCOLNSHIRE COUNCIL,http://statistics.data.gov.uk/id/local-authority/00FC,People,Schools,Schools,Consultancy,Consultancy,PL101,9/30/2014,306797,12929.35,5PD,REVENUE,119029
NORTH EAST LINCOLNSHIRE COUNCIL,http://statistics.data.gov.uk/id/local-authority/00FC,People,Schools,Schools,Consultancy,Consultancy - Curriculum,PL102,9/18/2014,303661,900,SERCO SHARED SERVICES CENTRE,REVENUE,101875
NORTH EAST LINCOLNSHIRE COUNCIL,http://statistics.data.gov.uk/id/local-authority/00FC,People,Schools,Schools,Consultancy,Consultancy - Curriculum,PL102,9/25/2014,305317,1333.33,CRAIGLAMB LTD,REVENUE,119755
NORTH EAST LINCOLNSHIRE COUNCIL,http://statistics.data.gov.uk/id/local-authority/00FC,People,Schools,Schools,Direct Employee Expenses,Pay Admin & Clerical,EA119,9/18/2014,303649,466.66,MCARTHUR DEAN TRAINING LTD,REVENUE,107184
NORTH EAST LINCOLNSHIRE COUNCIL,http://statistics.data.gov.uk/id/local-authority/00FC,People,Schools,Schools,Direct Employee Expenses,Pay Admin & Clerical,EA119,9/16/2014,303646,466.66,MCARTHUR DEAN TRAINING LTD,REVENUE,107184
NORTH EAST LINCOLNSHIRE COUNCIL,http://statistics.data.gov.uk/id/local-authority/00FC,People,Schools,Schools,Indirect Employee Expenses,Staff Training,EB122,9/29/2014,305137,3548.4,CHRIS QUIGLEY EDUCATION LTD,REVENUE,101997
NORTH EAST LINCOLNSHIRE COUNCIL,http://statistics.data.gov.uk/id/local-authority/00FC,People,Schools,Schools,Indirect Employee Expenses,Staff Training,EB122,9/15/2014,303299,491.79,ESPORTA HEALTH & FITNESS LTD,REVENUE,104500
NORTH EAST LINCOLNSHIRE COUNCIL,http://statistics.data.gov.uk/id/local-authority/00FC,People,Schools,Schools,Indirect Employee Expenses,Staff Training,EB122,9/29/2014,305936,600,HARTSHOLME ACADEMY,REVENUE,125299
NORTH EAST LINCOLNSHIRE COUNCIL,http://statistics.data.gov.uk/id/local-authority/00FC,People,Schools,Schools,Indirect Employee Expenses,Staff Training,EB122,9/30/2014,305627,471.5,HUMBER CHEMICAL FOCUS LTD,REVENUE,101684
NORTH EAST LINCOLNSHIRE COUNCIL,http://statistics.data.gov.uk/id/local-authority/00FC,People,Schools,Schools,Rep Alterations Maint Building,Buildings - Repairs And Maint,GA102,9/25/2014,305941,715,1ST CALL COM LTD,REVENUE,101739
NORTH EAST LINCOLNSHIRE COUNCIL,http://statistics.data.gov.uk/id/local-authority/00FC,People,Schools,Schools,Rep Alterations Maint Building,Buildings - Repairs And Maint,GA102,9/16/2014,303288,2400,PORTLOCK PAINTING,REVENUE,101144
NORTH EAST LINCOLNSHIRE COUNCIL,http://statistics.data.gov.uk/id/local-authority/00FC,People,Schools,Schools,Rep Alterations Maint Building,Buildings - Repairs And Maint,GA102,9/25/2014,305943,4347.24,FRED MARGARSON LTD,REVENUE,100592
NORTH EAST LINCOLNSHIRE COUNCIL,http://statistics.data.gov.uk/id/local-authority/00FC,People,Schools,Schools,Rep Alterations Maint Building,Buildings - Repairs And Maint,GA102,9/29/2014,305924,1290,LINCS ELECTRICAL SERVICES LTD,REVENUE,102044
NORTH EAST LINCOLNSHIRE COUNCIL,http://statistics.data.gov.uk/id/local-authority/00FC,People,Schools,Schools,Cleaning And Domestic Supplies,Cleaning - Consumables,GH103,9/30/2014,306795,293.87,SYLVESTER-KEAL LTD,REVENUE,100593
NORTH EAST LINCOLNSHIRE COUNCIL,http://statistics.data.gov.uk/id/local-authority/00FC,People,Schools,Schools,Cleaning And Domestic Supplies,Refuse Collection,GH104,9/29/2014,306663,411.1,BELL WASTE CONTROL,REVENUE,101433
NORTH EAST LINCOLNSHIRE COUNCIL,http://statistics.data.gov.uk/id/local-authority/00FC,People,Schools,Schools,Equip / Furniture / Materials,Furniture - Teaching,LA107,9/16/2014,303019,663,COMPLETE OFFICE SOLUTIONS (UK) LTD,REVENUE,123664
NORTH EAST LINCOLNSHIRE COUNCIL,http://statistics.data.gov.uk/id/local-authority/00FC,People,Schools,Schools,Equip / Furniture / Materials,Teaching Materials,LA117,9/24/2014,303234,-7.95,COMPLETE OFFICE SOLUTIONS (UK) LTD,REVENUE,123664
NORTH EAST LINCOLNSHIRE COUNCIL,http://statistics.data.gov.uk/id/local-authority/00FC,People,Schools,Schools,Equip / Furniture / Materials,Teaching Materials,LA117,9/29/2014,306448,398.11,EAST RIDING OF YORKSHIRE COUNCIL,REVENUE,100654
NORTH EAST LINCOLNSHIRE COUNCIL,http://statistics.data.gov.uk/id/local-authority/00FC,People,Schools,Schools,Equip / Furniture / Materials,Teaching Materials,LA117,9/29/2014,305935,300,HARTSHOLME ACADEMY,REVENUE,125299
NORTH EAST LINCOLNSHIRE COUNCIL,http://statistics.data.gov.uk/id/local-authority/00FC,People,Schools,Schools,Equip / Furniture / Materials,Teaching Materials,LA117,9/29/2014,305937,298,LENDMEYOURLEARNING LTD,REVENUE,122791
NORTH EAST LINCOLNSHIRE COUNCIL,http://statistics.data.gov.uk/id/local-authority/00FC,People,Schools,Schools,Equip / Furniture / Materials,Teaching Materials,LA117,9/23/2014,304993,4820,SYSTEM SOLUTIONS NE LTD,REVENUE,105205
NORTH EAST LINCOLNSHIRE COUNCIL,http://statistics.data.gov.uk/id/local-authority/00FC,People,Schools,Schools,Equip / Furniture / Materials,Teaching Materials,LA117,9/18/2014,303215,516.33,COMPLETE OFFICE SOLUTIONS (UK) LTD,REVENUE,123664
NORTH EAST LINCOLNSHIRE COUNCIL,http://statistics.data.gov.uk/id/local-authority/00FC,People,Schools,Schools,Communications And Computing,Computer H/Ware - Teaching,LF104,9/29/2014,304805,7000,INFORMATION & DATA NETWORKS SUPPLIES LTD,REVENUE,101911
NORTH EAST LINCOLNSHIRE COUNCIL,http://statistics.data.gov.uk/id/local-authority/00FC,People,Schools,Schools,Communications And Computing,Computer H/Ware - Teaching,LF104,9/29/2014,304794,400,INFORMATION & DATA NETWORKS SUPPLIES LTD,REVENUE,101911
NORTH EAST LINCOLNSHIRE COUNCIL,http://statistics.data.gov.uk/id/local-authority/00FC,People,Schools,Schools,Consultancy,Consultancy,PL101,9/15/2014,303692,532,IT SERVICES (GRIMSBY) LTD,REVENUE,101060
NORTH EAST LINCOLNSHIRE COUNCIL,http://statistics.data.gov.uk/id/local-authority/00FC,People,Schools,Schools,Consultancy,Consultancy,PL101,9/23/2014,305138,1750,FOCUS ON COMMUNITY,REVENUE,105185
NORTH EAST LINCOLNSHIRE COUNCIL,http://statistics.data.gov.uk/id/local-authority/00FC,People,Schools,Schools,Consultancy,Consultancy,PL101,9/18/2014,303093,4176,TECHNOLOGY SUPPORT SOLUTIONS LTD,REVENUE,119571
NORTH EAST LINCOLNSHIRE COUNCIL,http://statistics.data.gov.uk/id/local-authority/00FC,People,Schools,Schools,Consultancy,Consultancy - Curriculum,PL102,09/11/2014,303048,1402.5,TEAM@WORK LTD,REVENUE,111450
NORTH EAST LINCOLNSHIRE COUNCIL,http://statistics.data.gov.uk/id/local-authority/00FC,People,Schools,Schools,Consultancy,Consultancy - Curriculum,PL102,9/29/2014,306796,270,MUSIQUEST,REVENUE,101882
NORTH EAST LINCOLNSHIRE COUNCIL,http://statistics.data.gov.uk/id/local-authority/00FC,People,Schools,Schools,Consultancy,Consultancy - Curriculum,PL102,9/16/2014,303052,396,SERCO SHARED SERVICES CENTRE,REVENUE,101875
NORTH EAST LINCOLNSHIRE COUNCIL,http://statistics.data.gov.uk/id/local-authority/00FC,People,Schools,Schools,Direct Employee Expenses,Agency Supply Teachers,EA104,9/23/2014,305103,826.85,TEACHING PERSONNEL LTD,REVENUE,101305
NORTH EAST LINCOLNSHIRE COUNCIL,http://statistics.data.gov.uk/id/local-authority/00FC,People,Schools,Schools,Indirect Employee Expenses,Staff Training,EB122,9/18/2014,303258,410,SERCO SHARED SERVICES CENTRE,REVENUE,101875
NORTH EAST LINCOLNSHIRE COUNCIL,http://statistics.data.gov.uk/id/local-authority/00FC,People,Schools,Schools,Rep Alterations Maint Building,Buildings - Repairs And Maint,GA102,9/25/2014,305344,752.4,KES BUILDING MAINTENANCE LIMITED,REVENUE,100786
NORTH EAST LINCOLNSHIRE COUNCIL,http://statistics.data.gov.uk/id/local-authority/00FC,People,Schools,Schools,Rep Alterations Maint Building,Buildings - Repairs And Maint,GA102,09/04/2014,302144,480,PORTLOCK PAINTING,REVENUE,101144
NORTH EAST LINCOLNSHIRE COUNCIL,http://statistics.data.gov.uk/id/local-authority/00FC,People,Schools,Schools,Rep Alterations Maint Building,Electrical Testing,GA107,9/24/2014,305480,311.4,EXCELL ELECTRICAL CONTRACTORS,REVENUE,100601
NORTH EAST LINCOLNSHIRE COUNCIL,http://statistics.data.gov.uk/id/local-authority/00FC,People,Schools,Schools,Rep Alterations Maint Building,Internal Decoration,GA119,9/24/2014,305468,288.5,GRIMSBY LOCK AND HARDWARE LTD,REVENUE,102877
NORTH EAST LINCOLNSHIRE COUNCIL,http://statistics.data.gov.uk/id/local-authority/00FC,People,Schools,Schools,Rep Alterations Maint Building,Internal Decoration,GA119,9/15/2014,303300,728,RSB FLOORING,REVENUE,103570
NORTH EAST LINCOLNSHIRE COUNCIL,http://statistics.data.gov.uk/id/local-authority/00FC,People,Schools,Schools,Energy Costs,Electricity,GB102,9/18/2014,303423,650.44,NPOWER LIMITED,REVENUE,101414
NORTH EAST LINCOLNSHIRE COUNCIL,http://statistics.data.gov.uk/id/local-authority/00FC,People,Schools,Schools,Water Services,Water,GE101,9/25/2014,304654,1266.77,ANGLIAN WATER,REVENUE,100508
NORTH EAST LINCOLNSHIRE COUNCIL,http://statistics.data.gov.uk/id/local-authority/00FC,People,Schools,Schools,Cleaning And Domestic Supplies,Cleaning - Consumables,GH103,9/15/2014,303259,275.98,EAST RIDING OF YORKSHIRE COUNCIL,REVENUE,100654
NORTH EAST LINCOLNSHIRE COUNCIL,http://statistics.data.gov.uk/id/local-authority/00FC,People,Schools,Schools,Cleaning And Domestic Supplies,Refuse Collection,GH104,9/30/2014,305477,329.42,BELL WASTE CONTROL,REVENUE,101433
NORTH EAST LINCOLNSHIRE COUNCIL,http://statistics.data.gov.uk/id/local-authority/00FC,People,Schools,Schools,Equip / Furniture / Materials,Teaching Materials,LA117,9/18/2014,303594,1224.32,EAST RIDING OF YORKSHIRE COUNCIL,REVENUE,100654
NORTH EAST LINCOLNSHIRE COUNCIL,http://statistics.data.gov.uk/id/local-authority/00FC,People,Schools,Schools,Equip / Furniture / Materials,Teaching Materials,LA117,9/16/2014,303279,273.98,WATERSTONES,REVENUE,101738
NORTH EAST LINCOLNSHIRE COUNCIL,http://statistics.data.gov.uk/id/local-authority/00FC,People,Schools,Schools,Equip / Furniture / Materials,Teaching Materials,LA117,9/30/2014,305458,314.5,YORKSHIRE PURCHASING,REVENUE,100573
NORTH EAST LINCOLNSHIRE COUNCIL,http://statistics.data.gov.uk/id/local-authority/00FC,People,Schools,Schools,Communications And Computing,Computer S/Ware - Licences,LF103,9/25/2014,305483,1047,TECINTERACTIVE,REVENUE,127651
NORTH EAST LINCOLNSHIRE COUNCIL,http://statistics.data.gov.uk/id/local-authority/00FC,People,Schools,Schools,Rep Alterations Maint Building,Buildings - Repairs And Maint,GA102,09/08/2014,300184,1342,LUDAFLORS,REVENUE,100547
NORTH EAST LINCOLNSHIRE COUNCIL,http://statistics.data.gov.uk/id/local-authority/00FC,People,Schools,Schools,Catering,Provisions,LB101,9/25/2014,305638,654.71,CYGNET CATERING,REVENUE,108880
NORTH EAST LINCOLNSHIRE COUNCIL,http://statistics.data.gov.uk/id/local-authority/00FC,People,Schools,Schools,Communications And Computing,Computer H/Ware - Teaching,LF104,9/25/2014,304814,599,TECHNOLOGY SUPPORT SOLUTIONS LTD,REVENUE,119571
NORTH EAST LINCOLNSHIRE COUNCIL,http://statistics.data.gov.uk/id/local-authority/00FC,People,Schools,Schools,Direct Employee Expenses,Agency Supply Teachers,EA104,9/30/2014,305373,495,PRINCIPAL RESOURCING LTD,REVENUE,101601
NORTH EAST LINCOLNSHIRE COUNCIL,http://statistics.data.gov.uk/id/local-authority/00FC,People,Schools,Schools,Direct Employee Expenses,Agency Supply Teachers,EA104,9/16/2014,303637,927,TEACHING PERSONNEL LTD,REVENUE,101305
NORTH EAST LINCOLNSHIRE COUNCIL,http://statistics.data.gov.uk/id/local-authority/00FC,People,Schools,Schools,Direct Employee Expenses,Agency Supply Teachers,EA104,9/18/2014,303611,738,TEACHING PERSONNEL LTD,REVENUE,101305
NORTH EAST LINCOLNSHIRE COUNCIL,http://statistics.data.gov.uk/id/local-authority/00FC,People,Schools,Schools,Direct Employee Expenses,Agency Supply Teachers,EA104,9/16/2014,303690,495,PRINCIPAL RESOURCING LTD,REVENUE,101601
NORTH EAST LINCOLNSHIRE COUNCIL,http://statistics.data.gov.uk/id/local-authority/00FC,People,Schools,Schools,Indirect Employee Expenses,Staff Training,EB122,9/16/2014,303623,457.4,THE GRIMSBY INSTITUTE OF FURTHER,REVENUE,102742
NORTH EAST LINCOLNSHIRE COUNCIL,http://statistics.data.gov.uk/id/local-authority/00FC,People,Schools,Schools,Energy Costs,Electricity,GB102,9/16/2014,303882,-2952.29,NPOWER LIMITED,REVENUE,101414
NORTH EAST LINCOLNSHIRE COUNCIL,http://statistics.data.gov.uk/id/local-authority/00FC,People,Schools,Schools,Energy Costs,Electricity,GB102,9/23/2014,303889,-2630.8,NPOWER LIMITED,REVENUE,101414
NORTH EAST LINCOLNSHIRE COUNCIL,http://statistics.data.gov.uk/id/local-authority/00FC,People,Schools,Schools,Energy Costs,Electricity,GB102,9/23/2014,303893,-906.03,NPOWER LIMITED,REVENUE,101414
NORTH EAST LINCOLNSHIRE COUNCIL,http://statistics.data.gov.uk/id/local-authority/00FC,People,Schools,Schools,Energy Costs,Electricity,GB102,9/24/2014,303582,436.15,NPOWER LIMITED,REVENUE,101414
NORTH EAST LINCOLNSHIRE COUNCIL,http://statistics.data.gov.uk/id/local-authority/00FC,People,Schools,Schools,Energy Costs,Electricity,GB102,9/24/2014,303583,328.95,NPOWER LIMITED,REVENUE,101414
NORTH EAST LINCOLNSHIRE COUNCIL,http://statistics.data.gov.uk/id/local-authority/00FC,People,Schools,Schools,Energy Costs,Electricity,GB102,9/16/2014,303645,955.26,NPOWER LIMITED,REVENUE,101414
NORTH EAST LINCOLNSHIRE COUNCIL,http://statistics.data.gov.uk/id/local-authority/00FC,People,Schools,Schools,Energy Costs,Electricity,GB102,9/15/2014,303627,1072.11,NPOWER LIMITED,REVENUE,101414
NORTH EAST LINCOLNSHIRE COUNCIL,http://statistics.data.gov.uk/id/local-authority/00FC,People,Schools,Schools,Energy Costs,Gas,GB101,9/24/2014,305362,642.11,BRITISH GAS TRADING LTD,REVENUE,101507
NORTH EAST LINCOLNSHIRE COUNCIL,http://statistics.data.gov.uk/id/local-authority/00FC,People,Schools,Schools,Energy Costs,Gas,GB101,9/16/2014,303624,674.38,BRITISH GAS TRADING LTD,REVENUE,101507
NORTH EAST LINCOLNSHIRE COUNCIL,http://statistics.data.gov.uk/id/local-authority/00FC,People,Schools,Schools,Cleaning And Domestic Supplies,Cleaning - Domestic Purchases,GH105,9/30/2014,305442,-2030.93,PHS GROUP LTD,REVENUE,100554
NORTH EAST LINCOLNSHIRE COUNCIL,http://statistics.data.gov.uk/id/local-authority/00FC,People,Schools,Schools,Cleaning And Domestic Supplies,Cleaning - Domestic Purchases,GH105,9/25/2014,305361,2107.04,PHS GROUP LTD,REVENUE,100554
NORTH EAST LINCOLNSHIRE COUNCIL,http://statistics.data.gov.uk/id/local-authority/00FC,People,Schools,Schools,Cleaning And Domestic Supplies,Refuse Collection,GH104,9/29/2014,306599,623.33,BELL WASTE CONTROL,REVENUE,101433
NORTH EAST LINCOLNSHIRE COUNCIL,http://statistics.data.gov.uk/id/local-authority/00FC,People,Schools,Schools,Equip / Furniture / Materials,Equipment - Teaching,LA109,9/25/2014,305357,535.4,FINDEL EDUCATION LTD,REVENUE,101237
NORTH EAST LINCOLNSHIRE COUNCIL,http://statistics.data.gov.uk/id/local-authority/00FC,People,Schools,Schools,Equip / Furniture / Materials,Non-Teaching Resources,LA118,9/15/2014,303603,3429.57,ALLINSON PRINT & SUPPLIES,REVENUE,105561
NORTH EAST LINCOLNSHIRE COUNCIL,http://statistics.data.gov.uk/id/local-authority/00FC,People,Schools,Schools,Equip / Furniture / Materials,Non-Teaching Resources,LA118,9/15/2014,303686,285.68,WESTFIELD ADVERTISING,REVENUE,100797
NORTH EAST LINCOLNSHIRE COUNCIL,http://statistics.data.gov.uk/id/local-authority/00FC,People,Schools,Schools,Equip / Furniture / Materials,Non-Teaching Resources,LA118,9/16/2014,303625,348,ESPO,REVENUE,100745
NORTH EAST LINCOLNSHIRE COUNCIL,http://statistics.data.gov.uk/id/local-authority/00FC,People,Schools,Schools,Equip / Furniture / Materials,Non-Teaching Resources,LA118,9/16/2014,303699,462.65,EAST RIDING OF YORKSHIRE COUNCIL,REVENUE,100654
NORTH EAST LINCOLNSHIRE COUNCIL,http://statistics.data.gov.uk/id/local-authority/00FC,People,Schools,Schools,Equip / Furniture / Materials,Non-Teaching Resources,LA118,9/16/2014,303634,569.85,FINDEL EDUCATION LTD,REVENUE,101237
NORTH EAST LINCOLNSHIRE COUNCIL,http://statistics.data.gov.uk/id/local-authority/00FC,People,Schools,Schools,Equip / Furniture / Materials,Non-Teaching Resources,LA118,9/25/2014,305372,4395.6,STAGE SYSTEMS,REVENUE,127649
NORTH EAST LINCOLNSHIRE COUNCIL,http://statistics.data.gov.uk/id/local-authority/00FC,People,Schools,Schools,Equip / Furniture / Materials,Teaching Materials,LA117,9/24/2014,305371,562.5,HERITAGE MUSIC & CASWELLS STRINGS,REVENUE,103524
NORTH EAST LINCOLNSHIRE COUNCIL,http://statistics.data.gov.uk/id/local-authority/00FC,People,Schools,Schools,Print Stationery / Gen Off Exp,Photocopier - Running Costs,LD102,9/15/2014,303718,927.73,XOS (UK) LTD,REVENUE,102556
NORTH EAST LINCOLNSHIRE COUNCIL,http://statistics.data.gov.uk/id/local-authority/00FC,People,Schools,Schools,Print Stationery / Gen Off Exp,Photocopier - Running Costs,LD102,9/16/2014,303700,2096,XEROX FINANCE,REVENUE,100572
NORTH EAST LINCOLNSHIRE COUNCIL,http://statistics.data.gov.uk/id/local-authority/00FC,People,Schools,Schools,Print Stationery / Gen Off Exp,Photocopier - Running Costs,LD102,9/15/2014,303620,306.28,XOS (UK) LTD,REVENUE,102556
NORTH EAST LINCOLNSHIRE COUNCIL,http://statistics.data.gov.uk/id/local-authority/00FC,People,Schools,Schools,Communications And Computing,Computer S/Ware - Purchases,LF101,9/16/2014,303635,259.39,BRITISH TELECOMMUNICATIONS PLC,REVENUE,100974
NORTH EAST LINCOLNSHIRE COUNCIL,http://statistics.data.gov.uk/id/local-authority/00FC,People,Schools,Schools,Communications And Computing,Internet Connection,LF110,9/23/2014,304686,-24.07,VIRGIN MEDIA,REVENUE,107612
NORTH EAST LINCOLNSHIRE COUNCIL,http://statistics.data.gov.uk/id/local-authority/00FC,People,Schools,Schools,Communications And Computing,Telephones,LF112,9/25/2014,305356,740.29,VIRGIN MEDIA,REVENUE,107612
NORTH EAST LINCOLNSHIRE COUNCIL,http://statistics.data.gov.uk/id/local-authority/00FC,People,Schools,Schools,Other Agencies,Educational Visits,PJ152,9/24/2014,305364,290,MILLMAN COACHES,REVENUE,100700
NORTH EAST LINCOLNSHIRE COUNCIL,http://statistics.data.gov.uk/id/local-authority/00FC,People,Schools,Schools,Other Agencies,Educational Visits,PJ152,9/24/2014,304625,515,JOSEPH ROWNTREE SCHOOL,REVENUE,127545
NORTH EAST LINCOLNSHIRE COUNCIL,http://statistics.data.gov.uk/id/local-authority/00FC,People,Schools,Schools,Consultancy,Consultancy - Curriculum,PL102,9/24/2014,305363,510,HOBGOBLIN THEATRE COMPANY,REVENUE,102868
NORTH EAST LINCOLNSHIRE COUNCIL,http://statistics.data.gov.uk/id/local-authority/00FC,People,Schools,Schools,Consultancy,Consultancy - Curriculum,PL102,9/29/2014,306595,300,KEVIN ROGERS,REVENUE,101480
NORTH EAST LINCOLNSHIRE COUNCIL,http://statistics.data.gov.uk/id/local-authority/00FC,People,Schools,Schools,Direct Employee Expenses,Agency Supply Teachers,EA104,9/25/2014,304841,880.2,REED EMPLOYMENT LTD,REVENUE,102225
NORTH EAST LINCOLNSHIRE COUNCIL,http://statistics.data.gov.uk/id/local-authority/00FC,People,Schools,Schools,Rep Alterations Maint Building,Buildings - Repairs And Maint,GA102,9/29/2014,305914,7720,HAITHS HEATING LTD,REVENUE,101342
NORTH EAST LINCOLNSHIRE COUNCIL,http://statistics.data.gov.uk/id/local-authority/00FC,People,Schools,Schools,Rep Alterations Maint Building,Buildings - Repairs And Maint,GA102,9/25/2014,305322,393,EXCELL ELECTRICAL CONTRACTORS,REVENUE,100601
NORTH EAST LINCOLNSHIRE COUNCIL,http://statistics.data.gov.uk/id/local-authority/00FC,People,Schools,Schools,Rep Alterations Maint Building,Buildings - Repairs And Maint,GA102,9/25/2014,305334,431.5,HAITHS HEATING LTD,REVENUE,101342
NORTH EAST LINCOLNSHIRE COUNCIL,http://statistics.data.gov.uk/id/local-authority/00FC,People,Schools,Schools,Rep Alterations Maint Building,Buildings - Repairs And Maint,GA102,09/04/2014,302148,276,SYLVESTER-KEAL LTD,REVENUE,100593
NORTH EAST LINCOLNSHIRE COUNCIL,http://statistics.data.gov.uk/id/local-authority/00FC,People,Schools,Schools,Water Services,Water,GE101,9/25/2014,304860,599.44,ANGLIAN WATER,REVENUE,100508
NORTH EAST LINCOLNSHIRE COUNCIL,http://statistics.data.gov.uk/id/local-authority/00FC,People,Schools,Schools,Cleaning And Domestic Supplies,Cleaning - Consumables,GH103,9/29/2014,306108,403.03,PETER HOGARTH & SONS LTD,REVENUE,100815
NORTH EAST LINCOLNSHIRE COUNCIL,http://statistics.data.gov.uk/id/local-authority/00FC,People,Schools,Schools,Cleaning And Domestic Supplies,Refuse Collection,GH104,9/25/2014,304732,962.52,BIFFA WASTE SERVICES LTD,REVENUE,100515
NORTH EAST LINCOLNSHIRE COUNCIL,http://statistics.data.gov.uk/id/local-authority/00FC,People,Schools,Schools,Equip / Furniture / Materials,Non-Teaching Resources,LA118,9/24/2014,304449,289.28,EAST RIDING OF YORKSHIRE COUNCIL,REVENUE,100654
NORTH EAST LINCOLNSHIRE COUNCIL,http://statistics.data.gov.uk/id/local-authority/00FC,People,Schools,Schools,Equip / Furniture / Materials,Teaching Materials,LA117,9/25/2014,304838,765.04,THE CONSORTIUM,REVENUE,101025
NORTH EAST LINCOLNSHIRE COUNCIL,http://statistics.data.gov.uk/id/local-authority/00FC,People,Schools,Schools,Catering,Provisions,LB101,9/25/2014,304766,413,HARFIELD COMPONENTS LTD,REVENUE,127589
NORTH EAST LINCOLNSHIRE COUNCIL,http://statistics.data.gov.uk/id/local-authority/00FC,People,Schools,Schools,Services,Clerking Governing Bodies,LE101,9/29/2014,304829,310,SERCO SHARED SERVICES CENTRE,REVENUE,101875
NORTH EAST LINCOLNSHIRE COUNCIL,http://statistics.data.gov.uk/id/local-authority/00FC,People,Schools,Schools,Consultancy,Consultancy - Curriculum,PL102,9/23/2014,304767,610,LINCOLNSHIRE SPORTS PARTNERSHIP LIMITED,REVENUE,125191
NORTH EAST LINCOLNSHIRE COUNCIL,http://statistics.data.gov.uk/id/local-authority/00FC,People,Schools,Schools,Consultancy,Consultancy - Curriculum,PL102,9/23/2014,304765,1300,LINCS INSPIRE LTD,REVENUE,120610
NORTH EAST LINCOLNSHIRE COUNCIL,http://statistics.data.gov.uk/id/local-authority/00FC,People,Schools,Schools,Rep Alterations Maint Building,Buildings - Repairs And Maint,GA102,9/23/2014,304870,322,EXCELL ELECTRICAL CONTRACTORS,REVENUE,100601
NORTH EAST LINCOLNSHIRE COUNCIL,http://statistics.data.gov.uk/id/local-authority/00FC,People,Schools,Schools,Cleaning And Domestic Supplies,Refuse Collection,GH104,9/23/2014,304866,688.87,BIFFA WASTE SERVICES LTD,REVENUE,100515
NORTH EAST LINCOLNSHIRE COUNCIL,http://statistics.data.gov.uk/id/local-authority/00FC,People,Schools,Schools,Equip / Furniture / Materials,Equipment - Teaching,LA109,9/23/2014,304863,342,LINCS INSPIRE LTD,REVENUE,120610
NORTH EAST LINCOLNSHIRE COUNCIL,http://statistics.data.gov.uk/id/local-authority/00FC,People,Schools,Schools,Equip / Furniture / Materials,Non-Teaching Resources,LA118,9/29/2014,305148,250.01,SIEMENS FINANCIAL SERVICES LTD,REVENUE,101161
NORTH EAST LINCOLNSHIRE COUNCIL,http://statistics.data.gov.uk/id/local-authority/00FC,People,Schools,Schools,Equip / Furniture / Materials,Teaching Materials,LA117,9/23/2014,304983,302.25,COMPLETE OFFICE SOLUTIONS (UK) LTD,REVENUE,123664
NORTH EAST LINCOLNSHIRE COUNCIL,http://statistics.data.gov.uk/id/local-authority/00FC,People,Schools,Schools,Equip / Furniture / Materials,Teaching Materials,LA117,9/25/2014,304684,286.15,ELLISTON PRIMARY SCHOOL FOR PETTY CASH,REVENUE,103081
NORTH EAST LINCOLNSHIRE COUNCIL,http://statistics.data.gov.uk/id/local-authority/00FC,People,Schools,Schools,Equip / Furniture / Materials,Teaching Materials,LA117,9/23/2014,305099,1771.66,EAST RIDING OF YORKSHIRE COUNCIL,REVENUE,100654
NORTH EAST LINCOLNSHIRE COUNCIL,http://statistics.data.gov.uk/id/local-authority/00FC,People,Schools,Schools,Print Stationery / Gen Off Exp,Photocopier - Running Costs,LD102,9/29/2014,305141,589.44,KONICA MINOLTA BUSINESS SOLUTIONS (UK) LTD,REVENUE,124920
NORTH EAST LINCOLNSHIRE COUNCIL,http://statistics.data.gov.uk/id/local-authority/00FC,People,Schools,Schools,Print Stationery / Gen Off Exp,Photocopier - Running Costs,LD102,9/29/2014,305142,342.16,KONICA MINOLTA BUSINESS SOLUTIONS (UK) LTD,REVENUE,124920
NORTH EAST LINCOLNSHIRE COUNCIL,http://statistics.data.gov.uk/id/local-authority/00FC,People,Schools,Schools,Print Stationery / Gen Off Exp,Photocopier - Running Costs,LD102,9/29/2014,305148,1000.04,SIEMENS FINANCIAL SERVICES LTD,REVENUE,101161
NORTH EAST LINCOLNSHIRE COUNCIL,http://statistics.data.gov.uk/id/local-authority/00FC,People,Schools,Schools,Communications And Computing,Computer S/Ware - Licences,LF103,9/23/2014,304843,300,2SIMPLE SOFTWARE LTD,REVENUE,103727
NORTH EAST LINCOLNSHIRE COUNCIL,http://statistics.data.gov.uk/id/local-authority/00FC,People,Schools,Schools,Communications And Computing,Telephones,LF112,9/23/2014,304851,1545,TEACHERS 2 PARENTS LTD,REVENUE,102022
NORTH EAST LINCOLNSHIRE COUNCIL,http://statistics.data.gov.uk/id/local-authority/00FC,People,Schools,Schools,Consultancy,Consultancy - Curriculum,PL102,9/23/2014,304849,666.67,CRAIGLAMB LTD,REVENUE,119755
NORTH EAST LINCOLNSHIRE COUNCIL,http://statistics.data.gov.uk/id/local-authority/00FC,People,Schools,Schools,Cleaning And Domestic Supplies,Cleaning - Domestic Purchases,GH105,9/29/2014,306639,791.96,BELL WASTE CONTROL,REVENUE,101433
NORTH EAST LINCOLNSHIRE COUNCIL,http://statistics.data.gov.uk/id/local-authority/00FC,People,Schools,Schools,Cleaning And Domestic Supplies,Cleaning - Services,GH102,9/15/2014,303615,590,RAINBOW INTERNATIONAL,REVENUE,111399
NORTH EAST LINCOLNSHIRE COUNCIL,http://statistics.data.gov.uk/id/local-authority/00FC,People,Schools,Schools,Grounds Maintenance Costs,Grounds Maintenance,GJ101,9/29/2014,306564,2910,SUNNYSIDE GROUNDS MAINTENANCE LTD,REVENUE,101730
NORTH EAST LINCOLNSHIRE COUNCIL,http://statistics.data.gov.uk/id/local-authority/00FC,People,Schools,Schools,Equip / Furniture / Materials,Teaching Materials,LA117,9/16/2014,302855,444.5,YORKSHIRE PURCHASING,REVENUE,100573
NORTH EAST LINCOLNSHIRE COUNCIL,http://statistics.data.gov.uk/id/local-authority/00FC,People,Schools,Schools,Print Stationery / Gen Off Exp,Photocopier - Running Costs,LD102,09/08/2014,302594,1671.14,DANWOOD CONTRACT RENTALS,REVENUE,101417
NORTH EAST LINCOLNSHIRE COUNCIL,http://statistics.data.gov.uk/id/local-authority/00FC,People,Schools,Schools,Other Agencies,Educational Visits,PJ152,9/25/2014,305535,1350,MILLMAN COACHES,REVENUE,100700
NORTH EAST LINCOLNSHIRE COUNCIL,http://statistics.data.gov.uk/id/local-authority/00FC,People,Schools,Schools,Consultancy,Consultancy - Curriculum,PL102,9/29/2014,305698,2236,SWIMMING4SCHOOLS LTD,REVENUE,107232
NORTH EAST LINCOLNSHIRE COUNCIL,http://statistics.data.gov.uk/id/local-authority/00FC,People,Schools,Schools,Consultancy,Consultancy - Curriculum,PL102,09/11/2014,303035,600,SERCO SHARED SERVICES CENTRE,REVENUE,101875
NORTH EAST LINCOLNSHIRE COUNCIL,http://statistics.data.gov.uk/id/local-authority/00FC,People,Schools,Schools,Consultancy,Consultancy - Curriculum,PL102,9/18/2014,304227,675,M&M PRODUCTIONS,REVENUE,101593
NORTH EAST LINCOLNSHIRE COUNCIL,http://statistics.data.gov.uk/id/local-authority/00FC,People,Schools,Schools,Consultancy,Consultancy - Curriculum,PL102,9/23/2014,304184,2160.5,PHS GROUP LTD,REVENUE,100554
NORTH EAST LINCOLNSHIRE COUNCIL,http://statistics.data.gov.uk/id/local-authority/00FC,People,Schools,Schools,Consultancy,Consultancy - Curriculum,PL102,9/29/2014,305453,4730,SOLAR SPORTS COACHING LTD,REVENUE,101797
NORTH EAST LINCOLNSHIRE COUNCIL,http://statistics.data.gov.uk/id/local-authority/00FC,People,Schools,Schools,Rates,Rates,GD101,9/19/2014,304502,-1856.72,NORTH EAST LINCOLNSHIRE COUNCIL,REVENUE,100894
NORTH EAST LINCOLNSHIRE COUNCIL,http://statistics.data.gov.uk/id/local-authority/00FC,People,Schools,Schools,Government Grants,Grants,VA101,9/30/2014,307004,6123,HUMBERSTON C OF E PRIMARY SCHOOL,REVENUE,101566
NORTH EAST LINCOLNSHIRE COUNCIL,http://statistics.data.gov.uk/id/local-authority/00FC,People,Early Intervention,Integrated Youth Services,Contributions To Provisions,Contributions - Other,LK103,9/25/2014,305594,390,MELIOR COMMUNITY ACADEMY,REVENUE,127242
NORTH EAST LINCOLNSHIRE COUNCIL,http://statistics.data.gov.uk/id/local-authority/00FC,People,Early Intervention,Integrated Youth Services,Contributions To Provisions,Contributions - Other,LK103,09/09/2014,302756,2000,GHETTOPARK LIMITED,REVENUE,123682
NORTH EAST LINCOLNSHIRE COUNCIL,http://statistics.data.gov.uk/id/local-authority/00FC,People,Early Intervention,Integrated Youth Services,Miscellaneous Expenses,Activities - Service Users,LL114,9/24/2014,304924,2000,MILLMAN COACHES,REVENUE,100700
NORTH EAST LINCOLNSHIRE COUNCIL,http://statistics.data.gov.uk/id/local-authority/00FC,People,Early Intervention,Integrated Youth Services,Miscellaneous Expenses,Activities - Service Users,LL114,9/24/2014,304925,580,MILLMAN COACHES,REVENUE,100700
NORTH EAST LINCOLNSHIRE COUNCIL,http://statistics.data.gov.uk/id/local-authority/00FC,People,Early Intervention,Integrated Youth Services,Indirect Employee Expenses,Staff Training,EB122,09/04/2014,302085,1234.2,BTC BIRNIE TRAINING CONSULTANCY,REVENUE,127314
NORTH EAST LINCOLNSHIRE COUNCIL,http://statistics.data.gov.uk/id/local-authority/00FC,People,Early Intervention,Integrated Youth Services,Miscellaneous Expenses,Licences,LL116,09/04/2014,302080,4999,EDU FOCUS LTD,REVENUE,111169
NORTH EAST LINCOLNSHIRE COUNCIL,http://statistics.data.gov.uk/id/local-authority/00FC,People,Early Intervention,Integrated Youth Services,Indirect Employee Expenses,Staff Training,EB122,9/15/2014,303149,360,VOLUNTARY ACTION NORTH EAST LINCOLNSHIRE,REVENUE,103631
NORTH EAST LINCOLNSHIRE COUNCIL,http://statistics.data.gov.uk/id/local-authority/00FC,People,Early Intervention,Integrated Youth Services,Public Transport,Public Transport - Serv User,JD102,9/18/2014,303212,403.5,YOUTH OFFENDING SERVICES,REVENUE,110694
NORTH EAST LINCOLNSHIRE COUNCIL,http://statistics.data.gov.uk/id/local-authority/00FC,People,Early Intervention,Integrated Youth Services,Voluntary Associations,Third Pp - Third Sector,PF101,9/22/2014,302757,1200,GHETTOPARK LIMITED,REVENUE,123682
NORTH EAST LINCOLNSHIRE COUNCIL,http://statistics.data.gov.uk/id/local-authority/00FC,People,Early Intervention,Integrated Youth Services,Voluntary Associations,Third Pp - Third Sector,PF101,09/09/2014,302592,25000,HUMBERSIDE POLICE AUTHORITY,REVENUE,100762
NORTH EAST LINCOLNSHIRE COUNCIL,http://statistics.data.gov.uk/id/local-authority/00FC,People,Early Intervention,Integrated Youth Services,Direct Employee Expenses,Agency Staff,EA105,09/12/2014,303519,1520.48,VOLUNTARY ACTION NORTH EAST LINCOLNSHIRE,REVENUE,103631
NORTH EAST LINCOLNSHIRE COUNCIL,http://statistics.data.gov.uk/id/local-authority/00FC,People,Early Intervention,Integrated Youth Services,Miscellaneous Expenses,Activities - Service Users,LL114,09/04/2014,302354,1960,PARK RETAIL LTD - LOVE2REWARD,REVENUE,111869
NORTH EAST LINCOLNSHIRE COUNCIL,http://statistics.data.gov.uk/id/local-authority/00FC,People,Early Intervention,Childrens Health Provision,Miscellaneous Expenses,Other Supplies & Services,LL110,9/16/2014,303891,-7.98,OCS LIMITED,REVENUE,101291
NORTH EAST LINCOLNSHIRE COUNCIL,http://statistics.data.gov.uk/id/local-authority/00FC,People,Early Intervention,Childrens Health Provision,Communications And Computing,Postage,LF111,9/22/2014,302385,265,LYRECO UK LIMITED,REVENUE,101120
NORTH EAST LINCOLNSHIRE COUNCIL,http://statistics.data.gov.uk/id/local-authority/00FC,People,Early Intervention,Childrens Centre Development,Rep Alterations Maint Building,Buildings - Repairs And Maint,GA102,9/24/2014,305345,251,FRED MARGARSON LTD,REVENUE,100592
NORTH EAST LINCOLNSHIRE COUNCIL,http://statistics.data.gov.uk/id/local-authority/00FC,People,Early Intervention,Childrens Centre Development,Rep Alterations Maint Building,Buildings - Repairs And Maint,GA102,09/04/2014,302143,780,NEWBY LEISURE LTD,REVENUE,101227
NORTH EAST LINCOLNSHIRE COUNCIL,http://statistics.data.gov.uk/id/local-authority/00FC,People,Early Intervention,Childrens Centre Development,Energy Costs,Gas,GB101,9/22/2014,304585,373.19,BRITISH GAS TRADING LTD,REVENUE,101507
NORTH EAST LINCOLNSHIRE COUNCIL,http://statistics.data.gov.uk/id/local-authority/00FC,People,Early Intervention,Childrens Centre Development,Rep Alterations Maint Building,Buildings - Repairs And Maint,GA102,9/26/2014,304552,1625,GRIMSBY CARPET WAREHOUSE,REVENUE,100159
NORTH EAST LINCOLNSHIRE COUNCIL,http://statistics.data.gov.uk/id/local-authority/00FC,People,Early Intervention,Childrens Centre Development,Cleaning And Domestic Supplies,Cleaning - Services,GH102,9/25/2014,304770,541,EASY CLEAN MARSHCHAPEL LTD,REVENUE,104531
NORTH EAST LINCOLNSHIRE COUNCIL,http://statistics.data.gov.uk/id/local-authority/00FC,People,Early Intervention,Childrens Centre Development,Equip / Furniture / Materials,Non-Teaching Resources,LA118,9/26/2014,304550,767.5,FOR UNDER FIVES,REVENUE,101931
NORTH EAST LINCOLNSHIRE COUNCIL,http://statistics.data.gov.uk/id/local-authority/00FC,People,Early Intervention,Childrens Centre Development,Other Agencies,Child Care Payments,PJ104,9/22/2014,303253,650,FIRST STEPS GRIMSBY LIMITED,REVENUE,101411
NORTH EAST LINCOLNSHIRE COUNCIL,http://statistics.data.gov.uk/id/local-authority/00FC,People,Early Intervention,Childrens Centre Development,Other Agencies,Child Care Payments,PJ104,9/22/2014,303252,800,FIRST STEPS GRIMSBY LIMITED,REVENUE,101411
NORTH EAST LINCOLNSHIRE COUNCIL,http://statistics.data.gov.uk/id/local-authority/00FC,People,Early Intervention,Childrens Centre Development,Other Agencies,Child Care Payments,PJ104,9/25/2014,305414,650,FIRST STEPS GRIMSBY LIMITED,REVENUE,101411
NORTH EAST LINCOLNSHIRE COUNCIL,http://statistics.data.gov.uk/id/local-authority/00FC,People,Early Intervention,Childrens Centre Development,Private Contractors,Third Party Prov - Private,PH101,9/29/2014,306155,1684,N LINCS & GOOLE HOSPITALS NHS,REVENUE,111074
NORTH EAST LINCOLNSHIRE COUNCIL,http://statistics.data.gov.uk/id/local-authority/00FC,People,Early Intervention,Childrens Centre Development,Rep Alterations Maint Building,Buildings - Repairs And Maint,GA102,9/25/2014,305332,319,HAITHS HEATING LTD,REVENUE,101342
NORTH EAST LINCOLNSHIRE COUNCIL,http://statistics.data.gov.uk/id/local-authority/00FC,People,Early Intervention,Childrens Centre Development,Cleaning And Domestic Supplies,Cleaning - Services,GH102,9/16/2014,303142,660.8,TULIP HEALTHCARE,REVENUE,101042
NORTH EAST LINCOLNSHIRE COUNCIL,http://statistics.data.gov.uk/id/local-authority/00FC,People,Early Intervention,Childrens Centre Development,Cleaning And Domestic Supplies,Refuse Collection,GH104,9/22/2014,303217,329.29,BIFFA WASTE SERVICES LTD,REVENUE,100515
NORTH EAST LINCOLNSHIRE COUNCIL,http://statistics.data.gov.uk/id/local-authority/00FC,People,Early Intervention,Childrens Centre Development,Energy Costs,Electricity,GB102,9/30/2014,306084,315.47,EDWARD HENEAGE PRIMARY (ACADEMY),REVENUE,111742
NORTH EAST LINCOLNSHIRE COUNCIL,http://statistics.data.gov.uk/id/local-authority/00FC,People,Early Intervention,Childrens Centre Development,Equip / Furniture / Materials,Non-Teaching Resources,LA118,9/18/2014,303140,250,MILLMAN COACHES,REVENUE,100700
NORTH EAST LINCOLNSHIRE COUNCIL,http://statistics.data.gov.uk/id/local-authority/00FC,People,Early Intervention,Childrens Centre Development,Equip / Furniture / Materials,Non-Teaching Resources,LA118,9/15/2014,303139,250,MILLMAN COACHES,REVENUE,100700
NORTH EAST LINCOLNSHIRE COUNCIL,http://statistics.data.gov.uk/id/local-authority/00FC,People,Early Intervention,Childrens Centre Development,Equip / Furniture / Materials,Non-Teaching Resources,LA118,9/18/2014,304256,250,MILLMAN COACHES,REVENUE,100700
NORTH EAST LINCOLNSHIRE COUNCIL,http://statistics.data.gov.uk/id/local-authority/00FC,People,Early Intervention,Childrens Centre Development,Equip / Furniture / Materials,Non-Teaching Resources,LA118,9/18/2014,304257,250,MILLMAN COACHES,REVENUE,100700
NORTH EAST LINCOLNSHIRE COUNCIL,http://statistics.data.gov.uk/id/local-authority/00FC,People,Early Intervention,Childrens Centre Development,Other Agencies,Child Care Payments,PJ104,9/30/2014,305910,543.65,FOR UNDER FIVES,REVENUE,101931
NORTH EAST LINCOLNSHIRE COUNCIL,http://statistics.data.gov.uk/id/local-authority/00FC,People,Early Intervention,Childrens Centre Development,Rep Alterations Maint Building,Buildings - Repairs And Maint,GA102,9/25/2014,305342,544.5,KES BUILDING MAINTENANCE LIMITED,REVENUE,100786
NORTH EAST LINCOLNSHIRE COUNCIL,http://statistics.data.gov.uk/id/local-authority/00FC,People,Early Intervention,Childrens Centre Development,Equip / Furniture / Materials,Furniture - Purchase,LA105,9/25/2014,305390,299.95,TECHNOLOGY TEACHING SYSTEMS LTD,REVENUE,100996
NORTH EAST LINCOLNSHIRE COUNCIL,http://statistics.data.gov.uk/id/local-authority/00FC,People,Early Intervention,Childrens Centre Development,Equip / Furniture / Materials,Non-Teaching Resources,LA118,9/29/2014,305136,325.6,TECHNOLOGY TEACHING SYSTEMS LTD,REVENUE,100996
NORTH EAST LINCOLNSHIRE COUNCIL,http://statistics.data.gov.uk/id/local-authority/00FC,People,Early Intervention,Childrens Centre Development,Other Agencies,Child Care Payments,PJ104,9/22/2014,304566,879.02,PRE SCHOOL LEARNING ALLIANCE,REVENUE,101437
NORTH EAST LINCOLNSHIRE COUNCIL,http://statistics.data.gov.uk/id/local-authority/00FC,People,Early Intervention,Childrens Centre Development,Other Agencies,Educational Visits,PJ152,9/25/2014,305406,275,COOPERS TOURS,REVENUE,101503
NORTH EAST LINCOLNSHIRE COUNCIL,http://statistics.data.gov.uk/id/local-authority/00FC,People,Early Intervention,Childrens Centre Development,Rep Alterations Maint Building,Buildings - Repairs And Maint,GA102,9/29/2014,306569,605,FUTURE CLEANING SERVICES LTD,REVENUE,102557
NORTH EAST LINCOLNSHIRE COUNCIL,http://statistics.data.gov.uk/id/local-authority/00FC,People,Early Intervention,Childrens Centre Development,Other Agencies,Child Care Payments,PJ104,9/30/2014,306086,844,IMMINGHAM DAY NURSERY,REVENUE,100998
NORTH EAST LINCOLNSHIRE COUNCIL,http://statistics.data.gov.uk/id/local-authority/00FC,People,Early Intervention,Childrens Centre Development,Other Agencies,Child Care Payments,PJ104,9/30/2014,306092,480,IMMINGHAM DAY NURSERY,REVENUE,100998
NORTH EAST LINCOLNSHIRE COUNCIL,http://statistics.data.gov.uk/id/local-authority/00FC,People,Early Intervention,Childrens Centre Development,Cleaning And Domestic Supplies,Cleaning - Services,GH102,9/23/2014,304730,796.06,FUTURE CLEANING SERVICES LTD,REVENUE,102557
NORTH EAST LINCOLNSHIRE COUNCIL,http://statistics.data.gov.uk/id/local-authority/00FC,People,Early Intervention,Childrens Centre Development,Cleaning And Domestic Supplies,Cleaning - Services,GH102,9/29/2014,304753,796.06,FUTURE CLEANING SERVICES LTD,REVENUE,102557
NORTH EAST LINCOLNSHIRE COUNCIL,http://statistics.data.gov.uk/id/local-authority/00FC,People,Early Intervention,Childrens Centre Development,Cleaning And Domestic Supplies,Cleaning - Services,GH102,9/18/2014,303171,690.08,FUTURE CLEANING SERVICES LTD,REVENUE,102557
NORTH EAST LINCOLNSHIRE COUNCIL,http://statistics.data.gov.uk/id/local-authority/00FC,People,Early Intervention,Childrens Centre Development,Cleaning And Domestic Supplies,Refuse Collection,GH104,9/15/2014,303187,313.82,BIFFA WASTE SERVICES LTD,REVENUE,100515
NORTH EAST LINCOLNSHIRE COUNCIL,http://statistics.data.gov.uk/id/local-authority/00FC,People,Early Intervention,Childrens Centre Development,Rep Alterations Maint Building,Buildings - Repairs And Maint,GA102,9/30/2014,307307,815.3,FRED MARGARSON LTD,REVENUE,100592
NORTH EAST LINCOLNSHIRE COUNCIL,http://statistics.data.gov.uk/id/local-authority/00FC,People,Early Intervention,Childrens Centre Development,Rep Alterations Maint Building,Buildings - Repairs And Maint,GA102,9/30/2014,307359,316.29,FRED MARGARSON LTD,REVENUE,100592
NORTH EAST LINCOLNSHIRE COUNCIL,http://statistics.data.gov.uk/id/local-authority/00FC,People,Early Intervention,Childrens Centre Development,Cleaning And Domestic Supplies,Cleaning - Services,GH102,9/18/2014,303170,860,FUTURE CLEANING SERVICES LTD,REVENUE,102557
NORTH EAST LINCOLNSHIRE COUNCIL,http://statistics.data.gov.uk/id/local-authority/00FC,People,Early Intervention,Childrens Centre Development,Cleaning And Domestic Supplies,Refuse Collection,GH104,9/25/2014,305395,356.98,BELL WASTE CONTROL,REVENUE,101433
NORTH EAST LINCOLNSHIRE COUNCIL,http://statistics.data.gov.uk/id/local-authority/00FC,People,Early Intervention,Childrens Centre Development,Other Agencies,Educational Visits,PJ152,09/09/2014,302188,315,J R DENT COACHES,REVENUE,121435
NORTH EAST LINCOLNSHIRE COUNCIL,http://statistics.data.gov.uk/id/local-authority/00FC,People,Early Intervention,Childrens Centre Development,Cleaning And Domestic Supplies,Refuse Collection,GH104,9/29/2014,300127,-267.8,PHS GROUP LTD,REVENUE,100554
NORTH EAST LINCOLNSHIRE COUNCIL,http://statistics.data.gov.uk/id/local-authority/00FC,People,Early Intervention,Childrens Centre Development,Cleaning And Domestic Supplies,Refuse Collection,GH104,9/29/2014,300128,-125.32,PHS GROUP LTD,REVENUE,100554
NORTH EAST LINCOLNSHIRE COUNCIL,http://statistics.data.gov.uk/id/local-authority/00FC,People,Early Intervention,Childrens Centre Development,Cleaning And Domestic Supplies,Refuse Collection,GH104,9/29/2014,303207,1110.76,PHS GROUP LTD,REVENUE,100554
NORTH EAST LINCOLNSHIRE COUNCIL,http://statistics.data.gov.uk/id/local-authority/00FC,People,Early Intervention,Child Protection / Safeguardin,Direct Employee Expenses,Agency Staff,EA105,09/01/2014,299055,1056,NONSTOP RECRUITMENT,REVENUE,120715
NORTH EAST LINCOLNSHIRE COUNCIL,http://statistics.data.gov.uk/id/local-authority/00FC,People,Early Intervention,Child Protection / Safeguardin,Direct Employee Expenses,Agency Staff,EA105,09/09/2014,302849,2289.17,ESP LTD,REVENUE,101231
NORTH EAST LINCOLNSHIRE COUNCIL,http://statistics.data.gov.uk/id/local-authority/00FC,People,Early Intervention,Child Protection / Safeguardin,Direct Employee Expenses,Agency Staff,EA105,9/25/2014,305604,2575.97,ESP LTD,REVENUE,101231
NORTH EAST LINCOLNSHIRE COUNCIL,http://statistics.data.gov.uk/id/local-authority/00FC,People,Early Intervention,Child Protection / Safeguardin,Direct Employee Expenses,Agency Staff,EA105,09/08/2014,302204,1056,NONSTOP RECRUITMENT,REVENUE,120715
NORTH EAST LINCOLNSHIRE COUNCIL,http://statistics.data.gov.uk/id/local-authority/00FC,People,Early Intervention,Child Protection / Safeguardin,Direct Employee Expenses,Agency Staff,EA105,09/08/2014,302206,1012.5,NONSTOP RECRUITMENT,REVENUE,120715
NORTH EAST LINCOLNSHIRE COUNCIL,http://statistics.data.gov.uk/id/local-authority/00FC,People,Early Intervention,Child Protection / Safeguardin,Direct Employee Expenses,Agency Staff,EA105,09/08/2014,302207,912,NONSTOP RECRUITMENT,REVENUE,120715
NORTH EAST LINCOLNSHIRE COUNCIL,http://statistics.data.gov.uk/id/local-authority/00FC,People,Early Intervention,Child Protection / Safeguardin,Direct Employee Expenses,Agency Staff,EA105,09/08/2014,302202,1056,NONSTOP RECRUITMENT,REVENUE,120715
NORTH EAST LINCOLNSHIRE COUNCIL,http://statistics.data.gov.uk/id/local-authority/00FC,People,Early Intervention,Child Protection / Safeguardin,Direct Employee Expenses,Agency Staff,EA105,09/08/2014,302203,1056,NONSTOP RECRUITMENT,REVENUE,120715
NORTH EAST LINCOLNSHIRE COUNCIL,http://statistics.data.gov.uk/id/local-authority/00FC,People,Early Intervention,Child Protection / Safeguardin,Direct Employee Expenses,Agency Staff,EA105,9/29/2014,304772,1056,NONSTOP RECRUITMENT,REVENUE,120715
NORTH EAST LINCOLNSHIRE COUNCIL,http://statistics.data.gov.uk/id/local-authority/00FC,People,Early Intervention,Child Protection / Safeguardin,Direct Employee Expenses,Agency Staff,EA105,9/18/2014,303249,2125.84,ESP LTD,REVENUE,101231
NORTH EAST LINCOLNSHIRE COUNCIL,http://statistics.data.gov.uk/id/local-authority/00FC,People,Early Intervention,Child Protection / Safeguardin,Direct Employee Expenses,Agency Staff,EA105,9/16/2014,302916,2032.61,ESP LTD,REVENUE,101231
NORTH EAST LINCOLNSHIRE COUNCIL,http://statistics.data.gov.uk/id/local-authority/00FC,People,Early Intervention,Child Protection / Safeguardin,Private Contractors,Third Party Prov - Private,PH101,09/08/2014,302210,466.28,HE WORDS,REVENUE,122711
NORTH EAST LINCOLNSHIRE COUNCIL,http://statistics.data.gov.uk/id/local-authority/00FC,People,Early Intervention,Child Protection / Safeguardin,Private Contractors,Contract Payments,PH105,09/09/2014,302350,4400,TRI.X,REVENUE,126174
NORTH EAST LINCOLNSHIRE COUNCIL,http://statistics.data.gov.uk/id/local-authority/00FC,People,Early Intervention,Child Protection / Safeguardin,Private Contractors,Third Party Prov - Private,PH101,09/09/2014,302349,1638.22,SIMUL LTD,REVENUE,122141
NORTH EAST LINCOLNSHIRE COUNCIL,http://statistics.data.gov.uk/id/local-authority/00FC,People,Early Intervention,Child Protection / Safeguardin,Private Contractors,Third Party Prov - Private,PH101,09/08/2014,302209,1900,SANCTUARY PERSONNEL LTD,REVENUE,125055
NORTH EAST LINCOLNSHIRE COUNCIL,http://statistics.data.gov.uk/id/local-authority/00FC,People,Early Intervention,Child Protection / Safeguardin,Private Contractors,Third Party Prov - Private,PH101,09/08/2014,302347,2375,SANCTUARY PERSONNEL LTD,REVENUE,125055
NORTH EAST LINCOLNSHIRE COUNCIL,http://statistics.data.gov.uk/id/local-authority/00FC,People,Early Intervention,Child Protection / Safeguardin,Consultancy,Consultancy,PL101,09/08/2014,302197,2375,SANCTUARY PERSONNEL LTD,REVENUE,125055
NORTH EAST LINCOLNSHIRE COUNCIL,http://statistics.data.gov.uk/id/local-authority/00FC,People,Early Intervention,Child Protection / Safeguardin,Consultancy,Consultancy,PL101,09/08/2014,302198,2375,SANCTUARY PERSONNEL LTD,REVENUE,125055
NORTH EAST LINCOLNSHIRE COUNCIL,http://statistics.data.gov.uk/id/local-authority/00FC,People,Early Intervention,Child Protection / Safeguardin,Consultancy,Consultancy,PL101,09/08/2014,302201,1900,SANCTUARY PERSONNEL LTD,REVENUE,125055
NORTH EAST LINCOLNSHIRE COUNCIL,http://statistics.data.gov.uk/id/local-authority/00FC,People,Early Intervention,Child Protection / Safeguardin,Consultancy,Consultancy,PL101,9/23/2014,304842,2375,SANCTUARY PERSONNEL LTD,REVENUE,125055
NORTH EAST LINCOLNSHIRE COUNCIL,http://statistics.data.gov.uk/id/local-authority/00FC,People,Early Intervention,Child Protection / Safeguardin,Consultancy,Consultancy,PL101,09/08/2014,302208,2375,SANCTUARY PERSONNEL LTD,REVENUE,125055
NORTH EAST LINCOLNSHIRE COUNCIL,http://statistics.data.gov.uk/id/local-authority/00FC,People,Early Intervention,Head Of Child Hlth - Fam Supp,Rents,Service Charge,GC102,9/29/2014,305487,6637.5,PHP INVESTMENTS NO. 1 LTD,REVENUE,121299
NORTH EAST LINCOLNSHIRE COUNCIL,http://statistics.data.gov.uk/id/local-authority/00FC,People,Adult Serv & Hlth Improvement,Supporting People,Other Agencies,Third Pp - Block Gross,PJ103,9/25/2014,306137,426.66,ANCHOR TRUST,REVENUE,100327
NORTH EAST LINCOLNSHIRE COUNCIL,http://statistics.data.gov.uk/id/local-authority/00FC,People,Adult Serv & Hlth Improvement,Supporting People,Other Agencies,Third Pp - Block Gross,PJ103,9/25/2014,306132,7745.4,CARE LTD,REVENUE,100314
NORTH EAST LINCOLNSHIRE COUNCIL,http://statistics.data.gov.uk/id/local-authority/00FC,People,Adult Serv & Hlth Improvement,Supporting People,Other Agencies,Third Pp - Block Gross,PJ103,9/25/2014,306145,17510.04,CARE PLUS GROUP,REVENUE,106467
NORTH EAST LINCOLNSHIRE COUNCIL,http://statistics.data.gov.uk/id/local-authority/00FC,People,Adult Serv & Hlth Improvement,Supporting People,Other Agencies,Third Pp - Block Gross,PJ103,9/25/2014,306146,6825.05,CREATIVE SUPPORT LTD,REVENUE,107198
NORTH EAST LINCOLNSHIRE COUNCIL,http://statistics.data.gov.uk/id/local-authority/00FC,People,Adult Serv & Hlth Improvement,Supporting People,Other Agencies,Third Pp - Block Gross,PJ103,9/25/2014,306129,15753.87,DOORSTEP,REVENUE,100310
NORTH EAST LINCOLNSHIRE COUNCIL,http://statistics.data.gov.uk/id/local-authority/00FC,People,Adult Serv & Hlth Improvement,Supporting People,Other Agencies,Third Pp - Block Gross,PJ103,9/25/2014,306126,29598.05,GRIMSBY CLEETHORPES & HUMBER REGION YMCA,REVENUE,100305
NORTH EAST LINCOLNSHIRE COUNCIL,http://statistics.data.gov.uk/id/local-authority/00FC,People,Adult Serv & Hlth Improvement,Supporting People,Other Agencies,Third Pp - Block Gross,PJ103,9/25/2014,306127,295.5,HANOVER HOUSING ASSOCIATION,REVENUE,100307
NORTH EAST LINCOLNSHIRE COUNCIL,http://statistics.data.gov.uk/id/local-authority/00FC,People,Adult Serv & Hlth Improvement,Supporting People,Other Agencies,Third Pp - Block Gross,PJ103,9/25/2014,306135,25111.55,HOUSING & SUPPORT SOLUTIONS,REVENUE,100321
NORTH EAST LINCOLNSHIRE COUNCIL,http://statistics.data.gov.uk/id/local-authority/00FC,People,Adult Serv & Hlth Improvement,Supporting People,Other Agencies,Third Pp - Block Gross,PJ103,9/25/2014,306133,4535.71,HICA,REVENUE,100319
NORTH EAST LINCOLNSHIRE COUNCIL,http://statistics.data.gov.uk/id/local-authority/00FC,People,Adult Serv & Hlth Improvement,Supporting People,Other Agencies,Third Pp - Block Gross,PJ103,9/25/2014,306134,642.34,HOUSING 21,REVENUE,100320
NORTH EAST LINCOLNSHIRE COUNCIL,http://statistics.data.gov.uk/id/local-authority/00FC,People,Adult Serv & Hlth Improvement,Supporting People,Other Agencies,Third Pp - Block Gross,PJ103,9/25/2014,306130,7910.85,HUMBERCARE LTD,REVENUE,100311
NORTH EAST LINCOLNSHIRE COUNCIL,http://statistics.data.gov.uk/id/local-authority/00FC,People,Adult Serv & Hlth Improvement,Supporting People,Other Agencies,Third Pp - Block Gross,PJ103,9/25/2014,306131,5822.23,HUMBERCARE LTD,REVENUE,100311
NORTH EAST LINCOLNSHIRE COUNCIL,http://statistics.data.gov.uk/id/local-authority/00FC,People,Adult Serv & Hlth Improvement,Supporting People,Other Agencies,Third Pp - Block Gross,PJ103,9/25/2014,306140,72018.97,LONGHURST AND HAVELOK HOMES LTD,REVENUE,100342
NORTH EAST LINCOLNSHIRE COUNCIL,http://statistics.data.gov.uk/id/local-authority/00FC,People,Adult Serv & Hlth Improvement,Supporting People,Other Agencies,Third Pp - Block Gross,PJ103,9/25/2014,306141,8063.97,LONGHURST AND HAVELOK HOMES LTD,REVENUE,100342
NORTH EAST LINCOLNSHIRE COUNCIL,http://statistics.data.gov.uk/id/local-authority/00FC,People,Adult Serv & Hlth Improvement,Supporting People,Other Agencies,Third Pp - Block Gross,PJ103,9/25/2014,306144,12790.05,NAVIGO,REVENUE,104262
NORTH EAST LINCOLNSHIRE COUNCIL,http://statistics.data.gov.uk/id/local-authority/00FC,People,Adult Serv & Hlth Improvement,Supporting People,Other Agencies,Third Pp - Block Gross,PJ103,9/25/2014,306142,5612.94,OPEN DOOR,REVENUE,103147
NORTH EAST LINCOLNSHIRE COUNCIL,http://statistics.data.gov.uk/id/local-authority/00FC,People,Adult Serv & Hlth Improvement,Supporting People,Other Agencies,Third Pp - Block Gross,PJ103,9/25/2014,306143,4063.82,SANCTUARY HOUSING ASSOCIATION,REVENUE,103289
NORTH EAST LINCOLNSHIRE COUNCIL,http://statistics.data.gov.uk/id/local-authority/00FC,People,Adult Serv & Hlth Improvement,Supporting People,Other Agencies,Third Pp - Block Gross,PJ103,9/25/2014,306128,13512.09,THE SALVATION ARMY,REVENUE,100309
NORTH EAST LINCOLNSHIRE COUNCIL,http://statistics.data.gov.uk/id/local-authority/00FC,People,Adult Serv & Hlth Improvement,Supporting People,Other Agencies,Third Pp - Block Gross,PJ103,9/25/2014,306136,14677.89,WOMENS AID,REVENUE,100326
NORTH EAST LINCOLNSHIRE COUNCIL,http://statistics.data.gov.uk/id/local-authority/00FC,People,Adult Serv & Hlth Improvement,Supporting People,Other Agencies,Third Pp - Block Gross,PJ103,9/25/2014,306139,3846.08,YORK HOUSING ASSOCIATION LTD,REVENUE,100341
NORTH EAST LINCOLNSHIRE COUNCIL,http://statistics.data.gov.uk/id/local-authority/00FC,People,Adult Serv & Hlth Improvement,Home Options,Private Contractors,Third Party Prov - Private,PH101,09/08/2014,302250,270.75,REGIONAL PUBLICATIONS LTD,REVENUE,102757
NORTH EAST LINCOLNSHIRE COUNCIL,http://statistics.data.gov.uk/id/local-authority/00FC,People,Adult Serv & Hlth Improvement,Home Options,Private Contractors,Third Party Prov - Private,PH101,09/08/2014,302222,264,CARE PLUS GROUP,REVENUE,106467
NORTH EAST LINCOLNSHIRE COUNCIL,http://statistics.data.gov.uk/id/local-authority/00FC,People,Adult Serv & Hlth Improvement,Home Options,Private Contractors,Third Party Prov - Private,PH101,09/08/2014,302223,264,CARE PLUS GROUP,REVENUE,106467
NORTH EAST LINCOLNSHIRE COUNCIL,http://statistics.data.gov.uk/id/local-authority/00FC,People,Adult Serv & Hlth Improvement,Home Options,Private Contractors,Third Party Prov - Private,PH101,09/09/2014,302355,475,LOVELLE BACONS,REVENUE,103583
NORTH EAST LINCOLNSHIRE COUNCIL,http://statistics.data.gov.uk/id/local-authority/00FC,People,Adult Serv & Hlth Improvement,Home Options,Private Contractors,Third Party Prov - Private,PH101,09/08/2014,302251,367.12,SHORELINE HOUSING PARTNERSHIP LTD,REVENUE,100139
NORTH EAST LINCOLNSHIRE COUNCIL,http://statistics.data.gov.uk/id/local-authority/00FC,People,Adult Serv & Hlth Improvement,Home Options,Rents,Rent,GC101,9/15/2014,303648,-91.98,NORTH EAST LINCOLNSHIRE COUNCIL,REVENUE,100894
NORTH EAST LINCOLNSHIRE COUNCIL,http://statistics.data.gov.uk/id/local-authority/00FC,People,Adult Serv & Hlth Improvement,Home Options,Rents,Rent,GC101,9/15/2014,303726,1215,LONGHURST AND HAVELOK HOMES LTD,REVENUE,100342
NORTH EAST LINCOLNSHIRE COUNCIL,http://statistics.data.gov.uk/id/local-authority/00FC,People,Adult Serv & Hlth Improvement,Home Options,Rents,Rent,GC101,9/18/2014,303488,11073.7,LONGHURST AND HAVELOK HOMES LTD,REVENUE,100342
NORTH EAST LINCOLNSHIRE COUNCIL,http://statistics.data.gov.uk/id/local-authority/00FC,People,Adult Serv & Hlth Improvement,Home Options,Rents,Service Charge,GC102,9/30/2014,306775,-28.29,GOODWINS OF LINCOLNSHIRE LTD,REVENUE,102744
NORTH EAST LINCOLNSHIRE COUNCIL,http://statistics.data.gov.uk/id/local-authority/00FC,People,Adult Serv & Hlth Improvement,Home Options,Rents,Service Charge,GC102,9/30/2014,306775,-2.2,GOODWINS OF LINCOLNSHIRE LTD,REVENUE,102744
NORTH EAST LINCOLNSHIRE COUNCIL,http://statistics.data.gov.uk/id/local-authority/00FC,People,Adult Serv & Hlth Improvement,Home Options,Rents,Rent,GC101,9/15/2014,303677,-436.48,NORTH EAST LINCOLNSHIRE COUNCIL,REVENUE,100894
NORTH EAST LINCOLNSHIRE COUNCIL,http://statistics.data.gov.uk/id/local-authority/00FC,People,Adult Serv & Hlth Improvement,Home Options,Rents,Rent,GC101,9/15/2014,303708,436.48,NORTH EAST LINCOLNSHIRE COUNCIL,REVENUE,100894
NORTH EAST LINCOLNSHIRE COUNCIL,http://statistics.data.gov.uk/id/local-authority/00FC,People,Adult Serv & Hlth Improvement,Home Options,Rents,Rent,GC101,09/04/2014,302104,1280,REDACTED PERSONAL INFORMATION,REVENUE,REDACTED PERSONAL INFORMATION
NORTH EAST LINCOLNSHIRE COUNCIL,http://statistics.data.gov.uk/id/local-authority/00FC,People,Adult Serv & Hlth Improvement,Home Options,Rents,Rent,GC101,09/04/2014,302109,896,REDACTED PERSONAL INFORMATION,REVENUE,REDACTED PERSONAL INFORMATION
NORTH EAST LINCOLNSHIRE COUNCIL,http://statistics.data.gov.uk/id/local-authority/00FC,People,Adult Serv & Hlth Improvement,Home Options,Rents,Rent,GC101,09/08/2014,302229,420,REDACTED PERSONAL INFORMATION,REVENUE,REDACTED PERSONAL INFORMATION
NORTH EAST LINCOLNSHIRE COUNCIL,http://statistics.data.gov.uk/id/local-authority/00FC,People,Adult Serv & Hlth Improvement,Home Options,Rents,Rent,GC101,09/08/2014,302123,350,REDACTED PERSONAL INFORMATION,REVENUE,REDACTED PERSONAL INFORMATION
NORTH EAST LINCOLNSHIRE COUNCIL,http://statistics.data.gov.uk/id/local-authority/00FC,People,Adult Serv & Hlth Improvement,Home Options,Rents,Rent,GC101,09/08/2014,302359,450,REDACTED PERSONAL INFORMATION,REVENUE,REDACTED PERSONAL INFORMATION
NORTH EAST LINCOLNSHIRE COUNCIL,http://statistics.data.gov.uk/id/local-authority/00FC,People,Adult Serv & Hlth Improvement,Home Options,Rents,Rent,GC101,09/08/2014,302367,280,REDACTED PERSONAL INFORMATION,REVENUE,REDACTED PERSONAL INFORMATION
NORTH EAST LINCOLNSHIRE COUNCIL,http://statistics.data.gov.uk/id/local-authority/00FC,People,Adult Serv & Hlth Improvement,Home Options,Rents,Rent,GC101,09/08/2014,302363,280,REDACTED PERSONAL INFORMATION,REVENUE,REDACTED PERSONAL INFORMATION
NORTH EAST LINCOLNSHIRE COUNCIL,http://statistics.data.gov.uk/id/local-authority/00FC,People,Adult Serv & Hlth Improvement,Home Options,Rents,Rent,GC101,09/09/2014,302368,660,REDACTED PERSONAL INFORMATION,REVENUE,REDACTED PERSONAL INFORMATION
NORTH EAST LINCOLNSHIRE COUNCIL,http://statistics.data.gov.uk/id/local-authority/00FC,People,Adult Serv & Hlth Improvement,Home Options,Rents,Rent,GC101,09/09/2014,302366,350,REDACTED PERSONAL INFORMATION,REVENUE,REDACTED PERSONAL INFORMATION
NORTH EAST LINCOLNSHIRE COUNCIL,http://statistics.data.gov.uk/id/local-authority/00FC,People,Adult Serv & Hlth Improvement,Home Options,Rents,Rent,GC101,09/09/2014,302365,350,REDACTED PERSONAL INFORMATION,REVENUE,REDACTED PERSONAL INFORMATION
NORTH EAST LINCOLNSHIRE COUNCIL,http://statistics.data.gov.uk/id/local-authority/00FC,People,Adult Serv & Hlth Improvement,Home Options,Rents,Rent,GC101,9/18/2014,303493,600,REDACTED PERSONAL INFORMATION,REVENUE,REDACTED PERSONAL INFORMATION
NORTH EAST LINCOLNSHIRE COUNCIL,http://statistics.data.gov.uk/id/local-authority/00FC,People,Adult Serv & Hlth Improvement,Home Options,Rents,Rent,GC101,9/18/2014,303494,408.33,REDACTED PERSONAL INFORMATION,REVENUE,REDACTED PERSONAL INFORMATION
NORTH EAST LINCOLNSHIRE COUNCIL,http://statistics.data.gov.uk/id/local-authority/00FC,People,Adult Serv & Hlth Improvement,Home Options,Rents,Rent,GC101,9/18/2014,303495,408.33,REDACTED PERSONAL INFORMATION,REVENUE,REDACTED PERSONAL INFORMATION
NORTH EAST LINCOLNSHIRE COUNCIL,http://statistics.data.gov.uk/id/local-authority/00FC,People,Adult Serv & Hlth Improvement,Home Options,Rents,Rent,GC101,9/18/2014,303496,262.5,REDACTED PERSONAL INFORMATION,REVENUE,REDACTED PERSONAL INFORMATION
NORTH EAST LINCOLNSHIRE COUNCIL,http://statistics.data.gov.uk/id/local-authority/00FC,People,Adult Serv & Hlth Improvement,Home Options,Rents,Rent,GC101,9/30/2014,305999,2280,REDACTED PERSONAL INFORMATION,REVENUE,REDACTED PERSONAL INFORMATION
NORTH EAST LINCOLNSHIRE COUNCIL,http://statistics.data.gov.uk/id/local-authority/00FC,People,Adult Serv & Hlth Improvement,Home Options,Rents,Rent,GC101,9/30/2014,306004,300,REDACTED PERSONAL INFORMATION,REVENUE,REDACTED PERSONAL INFORMATION
NORTH EAST LINCOLNSHIRE COUNCIL,http://statistics.data.gov.uk/id/local-authority/00FC,People,Adult Serv & Hlth Improvement,Home Options,Contributions To Provisions,Bad Debt Provision,LK104,9/16/2014,301659,400,1ST CALL PROPERTY SERVICES,REVENUE,123788
NORTH EAST LINCOLNSHIRE COUNCIL,http://statistics.data.gov.uk/id/local-authority/00FC,People,Adult Serv & Hlth Improvement,Home Options,Private Contractors,Third Party Prov - Private,PH101,09/09/2014,302356,680,LOVELLE BACONS,REVENUE,103583
NORTH EAST LINCOLNSHIRE COUNCIL,http://statistics.data.gov.uk/id/local-authority/00FC,People,Adult Serv & Hlth Improvement,Improved Health Operational,Equip / Furniture / Materials,Health & Safety Supplies,LA116,9/24/2014,304722,346.6,R S COMPONENTS LTD,REVENUE,100556
NORTH EAST LINCOLNSHIRE COUNCIL,http://statistics.data.gov.uk/id/local-authority/00FC,People,Adult Serv & Hlth Improvement,Improved Health Operational,Equip / Furniture / Materials,Health & Safety Supplies,LA116,9/29/2014,306043,495.3,SUNRISE MEDICAL LTD,REVENUE,100990
NORTH EAST LINCOLNSHIRE COUNCIL,http://statistics.data.gov.uk/id/local-authority/00FC,People,Adult Serv & Hlth Improvement,Improved Health Operational,Equip / Furniture / Materials,Health & Safety Supplies,LA116,09/11/2014,301521,413.25,PATTERSON MEDICAL LTD,REVENUE,104008
NORTH EAST LINCOLNSHIRE COUNCIL,http://statistics.data.gov.uk/id/local-authority/00FC,People,Adult Serv & Hlth Improvement,Improved Health Operational,Equip / Furniture / Materials,Health & Safety Supplies,LA116,9/16/2014,303191,975,PRISM MEDICAL UK,REVENUE,119507
NORTH EAST LINCOLNSHIRE COUNCIL,http://statistics.data.gov.uk/id/local-authority/00FC,People,Adult Serv & Hlth Improvement,Improved Health Operational,Equip / Furniture / Materials,Health & Safety Supplies,LA116,09/04/2014,299677,3973,THE HELPING HAND COMPANY (LEDBURY) LTD,REVENUE,101134
NORTH EAST LINCOLNSHIRE COUNCIL,http://statistics.data.gov.uk/id/local-authority/00FC,People,Adult Serv & Hlth Improvement,Improved Health Operational,Equip / Furniture / Materials,Health & Safety Supplies,LA116,09/04/2014,299677,336,THE HELPING HAND COMPANY (LEDBURY) LTD,REVENUE,101134
NORTH EAST LINCOLNSHIRE COUNCIL,http://statistics.data.gov.uk/id/local-authority/00FC,People,Adult Serv & Hlth Improvement,Improved Health Operational,Equip / Furniture / Materials,Health & Safety Supplies,LA116,09/11/2014,302572,-50,DRIVE MEDICAL,REVENUE,101627
NORTH EAST LINCOLNSHIRE COUNCIL,http://statistics.data.gov.uk/id/local-authority/00FC,People,Adult Serv & Hlth Improvement,Improved Health Operational,Equip / Furniture / Materials,Health & Safety Supplies,LA116,9/30/2014,306097,485,MANGAR INTERNATIONAL,REVENUE,101004
NORTH EAST LINCOLNSHIRE COUNCIL,http://statistics.data.gov.uk/id/local-authority/00FC,People,Adult Serv & Hlth Improvement,Improved Health Operational,Equip / Furniture / Materials,Health & Safety Supplies,LA116,9/24/2014,303962,280.8,SMITCARE LTD,REVENUE,101070
NORTH EAST LINCOLNSHIRE COUNCIL,http://statistics.data.gov.uk/id/local-authority/00FC,People,Adult Serv & Hlth Improvement,Improved Health Operational,Equip / Furniture / Materials,Health & Safety Supplies,LA116,9/26/2014,305907,-156,NOTTINGHAM REHAB LIMITED,REVENUE,101715
NORTH EAST LINCOLNSHIRE COUNCIL,http://statistics.data.gov.uk/id/local-authority/00FC,People,Adult Serv & Hlth Improvement,Improved Health Operational,Equip / Furniture / Materials,Health & Safety Supplies,LA116,9/24/2014,303944,585,NOTTINGHAM REHAB LIMITED,REVENUE,101715
NORTH EAST LINCOLNSHIRE COUNCIL,http://statistics.data.gov.uk/id/local-authority/00FC,People,Adult Serv & Hlth Improvement,Improved Health Operational,Equip / Furniture / Materials,Health & Safety Supplies,LA116,9/22/2014,303567,449.9,DIRECT HEALTHCARE,REVENUE,102678
NORTH EAST LINCOLNSHIRE COUNCIL,http://statistics.data.gov.uk/id/local-authority/00FC,People,Adult Serv & Hlth Improvement,Improved Health Operational,Equip / Furniture / Materials,Health & Safety Supplies,LA116,9/24/2014,303980,991.2,CLARK & PARTNERS LTD,REVENUE,101269
NORTH EAST LINCOLNSHIRE COUNCIL,http://statistics.data.gov.uk/id/local-authority/00FC,People,Adult Serv & Hlth Improvement,Improved Health Operational,Equip / Furniture / Materials,Health & Safety Supplies,LA116,9/24/2014,303981,991.2,CLARK & PARTNERS LTD,REVENUE,101269
NORTH EAST LINCOLNSHIRE COUNCIL,http://statistics.data.gov.uk/id/local-authority/00FC,People,Adult Serv & Hlth Improvement,Improved Health Operational,Equip / Furniture / Materials,Health & Safety Supplies,LA116,9/24/2014,303982,991.2,CLARK & PARTNERS LTD,REVENUE,101269
NORTH EAST LINCOLNSHIRE COUNCIL,http://statistics.data.gov.uk/id/local-authority/00FC,People,Adult Serv & Hlth Improvement,Improved Health Operational,Equip / Furniture / Materials,Health & Safety Supplies,LA116,09/08/2014,302184,570,KAROMED LTD,REVENUE,111508
NORTH EAST LINCOLNSHIRE COUNCIL,http://statistics.data.gov.uk/id/local-authority/00FC,People,Adult Serv & Hlth Improvement,Improved Health Operational,Equip / Furniture / Materials,Health & Safety Supplies,LA116,9/29/2014,306042,1330,KAROMED LTD,REVENUE,111508
NORTH EAST LINCOLNSHIRE COUNCIL,http://statistics.data.gov.uk/id/local-authority/00FC,People,Adult Serv & Hlth Improvement,Improved Health Operational,Equip / Furniture / Materials,Health & Safety Supplies,LA116,9/15/2014,303193,1169.06,PRISM MEDICAL UK,REVENUE,119507
NORTH EAST LINCOLNSHIRE COUNCIL,http://statistics.data.gov.uk/id/local-authority/00FC,People,Adult Serv & Hlth Improvement,Improved Health Operational,Equip / Furniture / Materials,Health & Safety Supplies,LA116,09/08/2014,302439,347.15,GREEN OF LINCOLN,REVENUE,100533
NORTH EAST LINCOLNSHIRE COUNCIL,http://statistics.data.gov.uk/id/local-authority/00FC,People,Adult Serv & Hlth Improvement,Improved Health Operational,Equip / Furniture / Materials,Health & Safety Supplies,LA116,09/02/2014,301606,2329,R82 UK LTD,REVENUE,101710
NORTH EAST LINCOLNSHIRE COUNCIL,http://statistics.data.gov.uk/id/local-authority/00FC,People,Adult Serv & Hlth Improvement,Improved Health Operational,Equip / Furniture / Materials,Health & Safety Supplies,LA116,09/09/2014,302450,2149,R82 UK LTD,REVENUE,101710
NORTH EAST LINCOLNSHIRE COUNCIL,http://statistics.data.gov.uk/id/local-authority/00FC,People,Adult Serv & Hlth Improvement,Improved Health Operational,Equip / Furniture / Materials,Health & Safety Supplies,LA116,9/25/2014,302903,-80,QUEST 88 LIMITED,REVENUE,101257
NORTH EAST LINCOLNSHIRE COUNCIL,http://statistics.data.gov.uk/id/local-authority/00FC,People,Adult Serv & Hlth Improvement,Improved Health Operational,Equip / Furniture / Materials,Health & Safety Supplies,LA116,09/08/2014,302575,2612.5,QUEST 88 LIMITED,REVENUE,101257
NORTH EAST LINCOLNSHIRE COUNCIL,http://statistics.data.gov.uk/id/local-authority/00FC,People,Adult Serv & Hlth Improvement,Improved Health Operational,Equip / Furniture / Materials,Health & Safety Supplies,LA116,9/23/2014,303578,529.9,PICKERINGS EUROPE LIMITED,REVENUE,100897
NORTH EAST LINCOLNSHIRE COUNCIL,http://statistics.data.gov.uk/id/local-authority/00FC,People,Adult Serv & Hlth Improvement,Improved Health Operational,Equip / Furniture / Materials,Health & Safety Supplies,LA116,9/23/2014,303579,1096.07,PICKERINGS EUROPE LIMITED,REVENUE,100897
NORTH EAST LINCOLNSHIRE COUNCIL,http://statistics.data.gov.uk/id/local-authority/00FC,People,Adult Serv & Hlth Improvement,Improved Health Operational,Equip / Furniture / Materials,Health & Safety Supplies,LA116,9/15/2014,303098,338.5,SILVALEA LTD,REVENUE,101260
NORTH EAST LINCOLNSHIRE COUNCIL,http://statistics.data.gov.uk/id/local-authority/00FC,People,Adult Serv & Hlth Improvement,Improved Health Operational,Equip / Furniture / Materials,Health & Safety Supplies,LA116,9/30/2014,305982,504.24,PICKERINGS EUROPE LIMITED,REVENUE,100897
NORTH EAST LINCOLNSHIRE COUNCIL,http://statistics.data.gov.uk/id/local-authority/00FC,People,Adult Serv & Hlth Improvement,Improved Health Operational,Equip / Furniture / Materials,Health & Safety Supplies,LA116,9/24/2014,303972,1200,INVACARE (UK) LTD,REVENUE,101008
NORTH EAST LINCOLNSHIRE COUNCIL,http://statistics.data.gov.uk/id/local-authority/00FC,People,Adult Serv & Hlth Improvement,Improved Health Operational,Equip / Furniture / Materials,Health & Safety Supplies,LA116,09/08/2014,302183,1405,SIDHIL LTD,REVENUE,101166
NORTH EAST LINCOLNSHIRE COUNCIL,http://statistics.data.gov.uk/id/local-authority/00FC,People,Adult Serv & Hlth Improvement,Improved Health Operational,Equip / Furniture / Materials,Health & Safety Supplies,LA116,09/08/2014,302183,2700,SIDHIL LTD,REVENUE,101166
NORTH EAST LINCOLNSHIRE COUNCIL,http://statistics.data.gov.uk/id/local-authority/00FC,People,Adult Serv & Hlth Improvement,Improved Health Operational,Equip / Furniture / Materials,Health & Safety Supplies,LA116,9/25/2014,305415,252,INVACARE (UK) LTD,REVENUE,101008
NORTH EAST LINCOLNSHIRE COUNCIL,http://statistics.data.gov.uk/id/local-authority/00FC,People,Adult Serv & Hlth Improvement,Improved Health Operational,Equip / Furniture / Materials,Health & Safety Supplies,LA116,9/24/2014,304719,2750,ULTIMATE CARE GROUP LTD,REVENUE,103469
NORTH EAST LINCOLNSHIRE COUNCIL,http://statistics.data.gov.uk/id/local-authority/00FC,People,Adult Serv & Hlth Improvement,Improved Health Operational,Equip / Furniture / Materials,Health & Safety Supplies,LA116,9/23/2014,303572,429.4,NORTHGATE VEHICLE HIRE LTD,REVENUE,109432
NORTH EAST LINCOLNSHIRE COUNCIL,http://statistics.data.gov.uk/id/local-authority/00FC,People,Adult Serv & Hlth Improvement,Lifestyle Services Team,Rents,Room Hire,GC103,9/18/2014,304238,379.5,ST JAMES CHURCHWARDENS MAIN ACCOUNT,REVENUE,106502
NORTH EAST LINCOLNSHIRE COUNCIL,http://statistics.data.gov.uk/id/local-authority/00FC,People,Adult Serv & Hlth Improvement,Lifestyle Services Team,Miscellaneous Expenses,Medical Supplies And Services,LL109,09/11/2014,303239,923.58,BOOTS THE CHEMIST,REVENUE,103919
NORTH EAST LINCOLNSHIRE COUNCIL,http://statistics.data.gov.uk/id/local-authority/00FC,People,Adult Serv & Hlth Improvement,Lifestyle Services Team,Miscellaneous Expenses,Medical Supplies And Services,LL109,09/11/2014,303241,584.64,PERIVILLE CHEMIST,REVENUE,103960
NORTH EAST LINCOLNSHIRE COUNCIL,http://statistics.data.gov.uk/id/local-authority/00FC,People,Adult Serv & Hlth Improvement,Lifestyle Services Team,Private Contractors,Third Party Prov - Private,PH101,9/18/2014,304236,555,CLEE MEDICAL CENTRE,REVENUE,105319
NORTH EAST LINCOLNSHIRE COUNCIL,http://statistics.data.gov.uk/id/local-authority/00FC,People,Adult Serv & Hlth Improvement,Developing Healthier Comm,Indirect Employee Expenses,Staff Training,EB122,09/02/2014,301598,-16.71,NYS CORPORATE,REVENUE,102444
NORTH EAST LINCOLNSHIRE COUNCIL,http://statistics.data.gov.uk/id/local-authority/00FC,People,Adult Serv & Hlth Improvement,Developing Healthier Comm,Indirect Employee Expenses,Staff Training,EB122,9/29/2014,306040,600,CERTA,REVENUE,101705
NORTH EAST LINCOLNSHIRE COUNCIL,http://statistics.data.gov.uk/id/local-authority/00FC,People,Childrens Services,School Access Governor Student,Grants And Subscriptions,Subscriptions,LJ101,09/11/2014,302452,540,LEXISNEXIS UK,REVENUE,101447
NORTH EAST LINCOLNSHIRE COUNCIL,http://statistics.data.gov.uk/id/local-authority/00FC,People,Childrens Services,School Access Governor Student,Private Contractors,Concessionary Fares,PH104,9/30/2014,306054,537.3,STAGECOACH SERVICES,REVENUE,101404
NORTH EAST LINCOLNSHIRE COUNCIL,http://statistics.data.gov.uk/id/local-authority/00FC,People,Childrens Services,School Access Governor Student,Private Contractors,Concessionary Fares,PH104,9/30/2014,306054,1021.5,STAGECOACH SERVICES,REVENUE,101404
NORTH EAST LINCOLNSHIRE COUNCIL,http://statistics.data.gov.uk/id/local-authority/00FC,People,Childrens Services,School Access Governor Student,Contract Hire-Operating Leases,Vehicles - Contract Hire,JC101,9/15/2014,303732,820,AMVALE LIMITED,REVENUE,101030
NORTH EAST LINCOLNSHIRE COUNCIL,http://statistics.data.gov.uk/id/local-authority/00FC,People,Childrens Services,School Access Governor Student,Contract Hire-Operating Leases,Vehicles - Contract Hire,JC101,9/26/2014,305854,320,LINKS TAXIS,REVENUE,100546
NORTH EAST LINCOLNSHIRE COUNCIL,http://statistics.data.gov.uk/id/local-authority/00FC,People,Childrens Services,School Access Governor Student,Contract Hire-Operating Leases,Vehicles - Contract Hire,JC101,09/02/2014,301854,384,AA RADIO CARS LTD,REVENUE,101222
NORTH EAST LINCOLNSHIRE COUNCIL,http://statistics.data.gov.uk/id/local-authority/00FC,People,Childrens Services,School Access Governor Student,Contract Hire-Operating Leases,Vehicles - Contract Hire,JC101,09/01/2014,301662,820,AMVALE LIMITED,REVENUE,101030
NORTH EAST LINCOLNSHIRE COUNCIL,http://statistics.data.gov.uk/id/local-authority/00FC,People,Childrens Services,School Access Governor Student,Contract Hire-Operating Leases,Vehicles - Contract Hire,JC101,9/22/2014,303556,931,MINICABS CLEETHORPES (LINCS) LTD,REVENUE,102124
NORTH EAST LINCOLNSHIRE COUNCIL,http://statistics.data.gov.uk/id/local-authority/00FC,People,Childrens Services,School Access Governor Student,Contract Hire-Operating Leases,Vehicles - Contract Hire,JC101,9/26/2014,305832,2413,AMVALE LIMITED,REVENUE,101030
NORTH EAST LINCOLNSHIRE COUNCIL,http://statistics.data.gov.uk/id/local-authority/00FC,People,Childrens Services,School Access Governor Student,Contract Hire-Operating Leases,Vehicles - Contract Hire,JC101,09/01/2014,301661,1520,REDACTED PERSONAL INFORMATION,REVENUE,REDACTED PERSONAL INFORMATION
NORTH EAST LINCOLNSHIRE COUNCIL,http://statistics.data.gov.uk/id/local-authority/00FC,People,Childrens Services,School Access Governor Student,Contract Hire-Operating Leases,Vehicles - Contract Hire,JC101,09/08/2014,302189,1235,WHEELCHAIR FRIENDLY TAXI SERVICE,REVENUE,101915
NORTH EAST LINCOLNSHIRE COUNCIL,http://statistics.data.gov.uk/id/local-authority/00FC,People,Childrens Services,School Access Governor Student,Contract Hire-Operating Leases,Vehicles - Contract Hire,JC101,9/22/2014,303555,1349,MINICABS CLEETHORPES (LINCS) LTD,REVENUE,102124
NORTH EAST LINCOLNSHIRE COUNCIL,http://statistics.data.gov.uk/id/local-authority/00FC,People,Childrens Services,School Access Governor Student,Contract Hire-Operating Leases,Vehicles - Contract Hire,JC101,9/24/2014,305118,886.5,LINKS TAXIS,REVENUE,100546
NORTH EAST LINCOLNSHIRE COUNCIL,http://statistics.data.gov.uk/id/local-authority/00FC,People,Childrens Services,School Access Governor Student,Contract Hire-Operating Leases,Vehicles - Contract Hire,JC101,9/26/2014,305673,3420,AMVALE LIMITED,REVENUE,101030
NORTH EAST LINCOLNSHIRE COUNCIL,http://statistics.data.gov.uk/id/local-authority/00FC,People,Childrens Services,School Access Governor Student,Contract Hire-Operating Leases,Vehicles - Contract Hire,JC101,9/26/2014,305687,3420,AMVALE LIMITED,REVENUE,101030
NORTH EAST LINCOLNSHIRE COUNCIL,http://statistics.data.gov.uk/id/local-authority/00FC,People,Childrens Services,School Access Governor Student,Contract Hire-Operating Leases,Vehicles - Contract Hire,JC101,9/26/2014,305681,3420,AMVALE LIMITED,REVENUE,101030
NORTH EAST LINCOLNSHIRE COUNCIL,http://statistics.data.gov.uk/id/local-authority/00FC,People,Childrens Services,School Access Governor Student,Contract Hire-Operating Leases,Vehicles - Contract Hire,JC101,9/24/2014,305115,1140,LINKS TAXIS,REVENUE,100546
NORTH EAST LINCOLNSHIRE COUNCIL,http://statistics.data.gov.uk/id/local-authority/00FC,People,Childrens Services,School Access Governor Student,Contract Hire-Operating Leases,Vehicles - Contract Hire,JC101,9/24/2014,305116,1140,LINKS TAXIS,REVENUE,100546
NORTH EAST LINCOLNSHIRE COUNCIL,http://statistics.data.gov.uk/id/local-authority/00FC,People,Childrens Services,Sen/Inclusion,Direct Employee Expenses,Agency Staff,EA105,9/18/2014,303152,4425,ALAN STEWART,REVENUE,126468
NORTH EAST LINCOLNSHIRE COUNCIL,http://statistics.data.gov.uk/id/local-authority/00FC,People,Childrens Services,Sen/Inclusion,Direct Employee Expenses,Agency Staff,EA105,9/16/2014,303145,1281,IDM CONSULTING,REVENUE,119926
NORTH EAST LINCOLNSHIRE COUNCIL,http://statistics.data.gov.uk/id/local-authority/00FC,People,Childrens Services,Sen/Inclusion,Consultancy,Consultancy,PL101,9/25/2014,305566,2450,GLENN ALLGOOD,REVENUE,109255
NORTH EAST LINCOLNSHIRE COUNCIL,http://statistics.data.gov.uk/id/local-authority/00FC,People,Childrens Services,Sen/Inclusion,Other Local Authorities,Third Pp - Other Local Auth,PC101,9/30/2014,306115,35733.46,BARNARDO SERVICES LTD,REVENUE,101050
NORTH EAST LINCOLNSHIRE COUNCIL,http://statistics.data.gov.uk/id/local-authority/00FC,People,Childrens Services,Sen/Inclusion,Other Local Authorities,Third Pp - Other Local Auth,PC101,9/30/2014,306116,26144.16,BARNARDO SERVICES LTD,REVENUE,101050
NORTH EAST LINCOLNSHIRE COUNCIL,http://statistics.data.gov.uk/id/local-authority/00FC,People,Childrens Services,Sen/Inclusion,Private Contractors,Third Party Prov - Private,PH101,9/18/2014,303185,12842.99,ADVANCED CHILDCARE,REVENUE,119448
NORTH EAST LINCOLNSHIRE COUNCIL,http://statistics.data.gov.uk/id/local-authority/00FC,People,Childrens Services,Sen/Inclusion,Private Contractors,Third Party Prov - Private,PH101,9/18/2014,303177,19463.56,REFLEXION CARE GROUP LIMITED,REVENUE,106975
NORTH EAST LINCOLNSHIRE COUNCIL,http://statistics.data.gov.uk/id/local-authority/00FC,People,Childrens Services,Sen/Inclusion,Private Contractors,Third Party Prov - Private,PH101,9/15/2014,303184,3900,MOVING UP CARE LTD,REVENUE,127296
NORTH EAST LINCOLNSHIRE COUNCIL,http://statistics.data.gov.uk/id/local-authority/00FC,People,Childrens Services,Sen/Inclusion,Private Contractors,Third Party Prov - Private,PH101,9/18/2014,303176,5750,MOVING UP CARE LTD,REVENUE,127296
NORTH EAST LINCOLNSHIRE COUNCIL,http://statistics.data.gov.uk/id/local-authority/00FC,People,Childrens Services,Sen/Inclusion,Private Contractors,Third Party Prov - Private,PH101,9/18/2014,303180,3456.5,MOVING UP CARE LTD,REVENUE,127296
NORTH EAST LINCOLNSHIRE COUNCIL,http://statistics.data.gov.uk/id/local-authority/00FC,People,Childrens Services,Sen/Inclusion,Private Contractors,Third Party Prov - Private,PH101,9/22/2014,303554,1780,MOVING UP CARE LTD,REVENUE,127296
NORTH EAST LINCOLNSHIRE COUNCIL,http://statistics.data.gov.uk/id/local-authority/00FC,People,Childrens Services,Sen/Inclusion,Private Contractors,Third Party Prov - Private,PH101,9/15/2014,303179,21478.66,PHYSIS QUANTUM,REVENUE,118777
NORTH EAST LINCOLNSHIRE COUNCIL,http://statistics.data.gov.uk/id/local-authority/00FC,People,Childrens Services,Sen/Inclusion,Private Contractors,Third Party Prov - Private,PH101,9/25/2014,305580,8414.33,KEYS CHILDCARE LTD,REVENUE,122934
NORTH EAST LINCOLNSHIRE COUNCIL,http://statistics.data.gov.uk/id/local-authority/00FC,People,Childrens Services,Sen/Inclusion,Private Contractors,Third Party Prov - Private,PH101,9/18/2014,303178,15057.14,MEADOWS CARE LTD,REVENUE,120773
NORTH EAST LINCOLNSHIRE COUNCIL,http://statistics.data.gov.uk/id/local-authority/00FC,People,Childrens Services,Sen/Inclusion,Private Contractors,Third Party Prov - Private,PH101,9/18/2014,303174,21899.48,REFLEXION CARE GROUP LIMITED,REVENUE,106975
NORTH EAST LINCOLNSHIRE COUNCIL,http://statistics.data.gov.uk/id/local-authority/00FC,People,Childrens Services,Sen/Inclusion,Private Contractors,Third Party Prov - Private,PH101,9/16/2014,303181,1400,SEMAPHORE PSYCHOLOGY & CONSULTANCY,REVENUE,122343
NORTH EAST LINCOLNSHIRE COUNCIL,http://statistics.data.gov.uk/id/local-authority/00FC,People,Childrens Services,Sen/Inclusion,Private Contractors,Third Party Prov - Private,PH101,9/26/2014,305882,8414.33,KEYS CHILDCARE LTD,REVENUE,122934
NORTH EAST LINCOLNSHIRE COUNCIL,http://statistics.data.gov.uk/id/local-authority/00FC,People,Childrens Services,Sen/Inclusion,Contributions To Provisions,Contributions - Other,LK103,9/22/2014,304562,4200,WIZ KIDZ,REVENUE,102424
NORTH EAST LINCOLNSHIRE COUNCIL,http://statistics.data.gov.uk/id/local-authority/00FC,People,Childrens Services,Sen/Inclusion,Direct Employee Expenses,Agency Staff,EA105,9/15/2014,302919,868.75,CASH FRIDAY,REVENUE,124740
NORTH EAST LINCOLNSHIRE COUNCIL,http://statistics.data.gov.uk/id/local-authority/00FC,People,Childrens Services,Sen/Inclusion,Direct Employee Expenses,Agency Staff,EA105,09/11/2014,302820,682,INCLUSIVE SOLUTIONS UK LTD,REVENUE,126756
NORTH EAST LINCOLNSHIRE COUNCIL,http://statistics.data.gov.uk/id/local-authority/00FC,People,Childrens Services,Sen/Inclusion,Contributions To Provisions,Contributions - Other,LK103,9/24/2014,304560,900,N LINCS & GOOLE HOSPITALS NHS,REVENUE,111074
NORTH EAST LINCOLNSHIRE COUNCIL,http://statistics.data.gov.uk/id/local-authority/00FC,People,Childrens Services,Sen/Inclusion,Direct Employee Expenses,Agency Staff,EA105,9/22/2014,303461,1588.32,NORTH LINCOLNSHIRE COUNCIL,REVENUE,101186
NORTH EAST LINCOLNSHIRE COUNCIL,http://statistics.data.gov.uk/id/local-authority/00FC,People,Childrens Services,Sen/Inclusion,Private Contractors,Third Party Prov - Private,PH101,9/22/2014,304689,3876,A4E CONSULT LTD,REVENUE,101656
NORTH EAST LINCOLNSHIRE COUNCIL,http://statistics.data.gov.uk/id/local-authority/00FC,People,Childrens Services,Sen/Inclusion,Direct Employee Expenses,Agency Staff,EA105,9/23/2014,304707,1631.4,IRWIN EDUCATION LTD,REVENUE,106910
NORTH EAST LINCOLNSHIRE COUNCIL,http://statistics.data.gov.uk/id/local-authority/00FC,People,Childrens Services,Sen/Inclusion,Direct Employee Expenses,Agency Staff,EA105,9/18/2014,303160,1631.4,IRWIN EDUCATION LTD,REVENUE,106910
NORTH EAST LINCOLNSHIRE COUNCIL,http://statistics.data.gov.uk/id/local-authority/00FC,People,Childrens Services,Sen/Inclusion,Direct Employee Expenses,Agency Staff,EA105,9/24/2014,305640,563.75,TEACHING PERSONNEL LTD,REVENUE,101305
NORTH EAST LINCOLNSHIRE COUNCIL,http://statistics.data.gov.uk/id/local-authority/00FC,People,Childrens Services,Sen/Inclusion,Print Stationery / Gen Off Exp,Photocopier - Running Costs,LD102,9/24/2014,305156,1381.3,KINGSTON UPON HULL CITY COUNCIL,REVENUE,100541
NORTH EAST LINCOLNSHIRE COUNCIL,http://statistics.data.gov.uk/id/local-authority/00FC,People,Childrens Services,Sen/Inclusion,Private Contractors,Third Party Prov - Private,PH101,09/04/2014,259591,593.68,REDACTED PERSONAL INFORMATION,REVENUE,REDACTED PERSONAL INFORMATION
NORTH EAST LINCOLNSHIRE COUNCIL,http://statistics.data.gov.uk/id/local-authority/00FC,People,Childrens Services,Sen/Inclusion,Private Contractors,Third Party Prov - Private,PH101,09/08/2014,302102,-11689.78,LINKAGE COMMUNITY TRUST LTD,REVENUE,104471
NORTH EAST LINCOLNSHIRE COUNCIL,http://statistics.data.gov.uk/id/local-authority/00FC,People,Childrens Services,Sen/Inclusion,Miscellaneous Expenses,Contingency Reserve,LL123,9/23/2014,305123,131143,THE CAMBRIDGE PARK ACADEMY,REVENUE,107472
NORTH EAST LINCOLNSHIRE COUNCIL,http://statistics.data.gov.uk/id/local-authority/00FC,People,Childrens Services,Sen/Inclusion,Miscellaneous Expenses,Contingency Reserve,LL123,9/23/2014,305122,98713,HUMBERSTON PARK SPECIAL SCHOOL,REVENUE,107911
NORTH EAST LINCOLNSHIRE COUNCIL,http://statistics.data.gov.uk/id/local-authority/00FC,People,Childrens Services,Placement & Support,Rents,Rent,GC101,09/02/2014,301554,1059.48,SHORELINE HOUSING PARTNERSHIP LTD,REVENUE,100139
NORTH EAST LINCOLNSHIRE COUNCIL,http://statistics.data.gov.uk/id/local-authority/00FC,People,Childrens Services,Placement & Support,Direct Transport Costs,Vehicles - Running Costs,JA104,9/18/2014,303696,286.78,ALLSTAR BUSINESS SOLUTIONS LTD,REVENUE,108278
NORTH EAST LINCOLNSHIRE COUNCIL,http://statistics.data.gov.uk/id/local-authority/00FC,People,Childrens Services,Placement & Support,Miscellaneous Expenses,Activities - Service Users,LL114,9/19/2014,304459,439.94,VULNERABLE YOUNG PEOPLE PROJECT HENEAGE,REVENUE,110637
NORTH EAST LINCOLNSHIRE COUNCIL,http://statistics.data.gov.uk/id/local-authority/00FC,People,Childrens Services,Placement & Support,Other Agencies,Additional Cost,PJ114,09/09/2014,261022,250,REDACTED PERSONAL INFORMATION,REVENUE,REDACTED PERSONAL INFORMATION
NORTH EAST LINCOLNSHIRE COUNCIL,http://statistics.data.gov.uk/id/local-authority/00FC,People,Childrens Services,Placement & Support,Other Agencies,Additional Cost,PJ114,9/22/2014,304628,450,READY RENT A CAR (GRIMSBY) LTD,REVENUE,100557
NORTH EAST LINCOLNSHIRE COUNCIL,http://statistics.data.gov.uk/id/local-authority/00FC,People,Childrens Services,Placement & Support,Other Agencies,Additional Cost,PJ114,9/22/2014,303539,450,READY RENT A CAR (GRIMSBY) LTD,REVENUE,100557
NORTH EAST LINCOLNSHIRE COUNCIL,http://statistics.data.gov.uk/id/local-authority/00FC,People,Childrens Services,Placement & Support,Other Agencies,Child Care Payments,PJ104,09/02/2014,258624,316,REDACTED PERSONAL INFORMATION,REVENUE,REDACTED PERSONAL INFORMATION
NORTH EAST LINCOLNSHIRE COUNCIL,http://statistics.data.gov.uk/id/local-authority/00FC,People,Childrens Services,Placement & Support,Other Agencies,Child Care Payments,PJ104,09/02/2014,258628,336,REDACTED PERSONAL INFORMATION,REVENUE,REDACTED PERSONAL INFORMATION
NORTH EAST LINCOLNSHIRE COUNCIL,http://statistics.data.gov.uk/id/local-authority/00FC,People,Childrens Services,Placement & Support,Other Agencies,Child Care Payments,PJ104,09/02/2014,258631,632,REDACTED PERSONAL INFORMATION,REVENUE,REDACTED PERSONAL INFORMATION
NORTH EAST LINCOLNSHIRE COUNCIL,http://statistics.data.gov.uk/id/local-authority/00FC,People,Childrens Services,Placement & Support,Other Agencies,Child Care Payments,PJ104,09/02/2014,258632,336,REDACTED PERSONAL INFORMATION,REVENUE,REDACTED PERSONAL INFORMATION
NORTH EAST LINCOLNSHIRE COUNCIL,http://statistics.data.gov.uk/id/local-authority/00FC,People,Childrens Services,Placement & Support,Other Agencies,Child Care Payments,PJ104,09/02/2014,258633,1013,REDACTED PERSONAL INFORMATION,REVENUE,REDACTED PERSONAL INFORMATION
NORTH EAST LINCOLNSHIRE COUNCIL,http://statistics.data.gov.uk/id/local-authority/00FC,People,Childrens Services,Placement & Support,Other Agencies,Child Care Payments,PJ104,09/02/2014,258635,336,REDACTED PERSONAL INFORMATION,REVENUE,REDACTED PERSONAL INFORMATION
NORTH EAST LINCOLNSHIRE COUNCIL,http://statistics.data.gov.uk/id/local-authority/00FC,People,Childrens Services,Placement & Support,Other Agencies,Child Care Payments,PJ104,09/02/2014,258636,316,REDACTED PERSONAL INFORMATION,REVENUE,REDACTED PERSONAL INFORMATION
NORTH EAST LINCOLNSHIRE COUNCIL,http://statistics.data.gov.uk/id/local-authority/00FC,People,Childrens Services,Placement & Support,Other Agencies,Child Care Payments,PJ104,09/02/2014,258640,968,REDACTED PERSONAL INFORMATION,REVENUE,REDACTED PERSONAL INFORMATION
NORTH EAST LINCOLNSHIRE COUNCIL,http://statistics.data.gov.uk/id/local-authority/00FC,People,Childrens Services,Placement & Support,Other Agencies,Child Care Payments,PJ104,09/02/2014,258642,924,REDACTED PERSONAL INFORMATION,REVENUE,REDACTED PERSONAL INFORMATION
NORTH EAST LINCOLNSHIRE COUNCIL,http://statistics.data.gov.uk/id/local-authority/00FC,People,Childrens Services,Placement & Support,Other Agencies,Child Care Payments,PJ104,09/02/2014,258643,316,REDACTED PERSONAL INFORMATION,REVENUE,REDACTED PERSONAL INFORMATION
NORTH EAST LINCOLNSHIRE COUNCIL,http://statistics.data.gov.uk/id/local-authority/00FC,People,Childrens Services,Placement & Support,Other Agencies,Child Care Payments,PJ104,09/02/2014,258644,672,REDACTED PERSONAL INFORMATION,REVENUE,REDACTED PERSONAL INFORMATION
NORTH EAST LINCOLNSHIRE COUNCIL,http://statistics.data.gov.uk/id/local-authority/00FC,People,Childrens Services,Placement & Support,Other Agencies,Child Care Payments,PJ104,09/02/2014,258652,576,REDACTED PERSONAL INFORMATION,REVENUE,REDACTED PERSONAL INFORMATION
NORTH EAST LINCOLNSHIRE COUNCIL,http://statistics.data.gov.uk/id/local-authority/00FC,People,Childrens Services,Placement & Support,Other Agencies,Child Care Payments,PJ104,09/02/2014,258653,697,REDACTED PERSONAL INFORMATION,REVENUE,REDACTED PERSONAL INFORMATION
NORTH EAST LINCOLNSHIRE COUNCIL,http://statistics.data.gov.uk/id/local-authority/00FC,People,Childrens Services,Placement & Support,Other Agencies,Child Care Payments,PJ104,09/02/2014,258655,316,REDACTED PERSONAL INFORMATION,REVENUE,REDACTED PERSONAL INFORMATION
NORTH EAST LINCOLNSHIRE COUNCIL,http://statistics.data.gov.uk/id/local-authority/00FC,People,Childrens Services,Placement & Support,Other Agencies,Child Care Payments,PJ104,09/02/2014,258656,304,REDACTED PERSONAL INFORMATION,REVENUE,REDACTED PERSONAL INFORMATION
NORTH EAST LINCOLNSHIRE COUNCIL,http://statistics.data.gov.uk/id/local-authority/00FC,People,Childrens Services,Placement & Support,Other Agencies,Child Care Payments,PJ104,09/02/2014,258666,1013,REDACTED PERSONAL INFORMATION,REVENUE,REDACTED PERSONAL INFORMATION
NORTH EAST LINCOLNSHIRE COUNCIL,http://statistics.data.gov.uk/id/local-authority/00FC,People,Childrens Services,Placement & Support,Other Agencies,Child Care Payments,PJ104,09/02/2014,258670,936,REDACTED PERSONAL INFORMATION,REVENUE,REDACTED PERSONAL INFORMATION
NORTH EAST LINCOLNSHIRE COUNCIL,http://statistics.data.gov.uk/id/local-authority/00FC,People,Childrens Services,Placement & Support,Other Agencies,Child Care Payments,PJ104,09/02/2014,258673,968,REDACTED PERSONAL INFORMATION,REVENUE,REDACTED PERSONAL INFORMATION
NORTH EAST LINCOLNSHIRE COUNCIL,http://statistics.data.gov.uk/id/local-authority/00FC,People,Childrens Services,Placement & Support,Other Agencies,Child Care Payments,PJ104,09/02/2014,258674,912,REDACTED PERSONAL INFORMATION,REVENUE,REDACTED PERSONAL INFORMATION
NORTH EAST LINCOLNSHIRE COUNCIL,http://statistics.data.gov.uk/id/local-authority/00FC,People,Childrens Services,Placement & Support,Other Agencies,Child Care Payments,PJ104,09/02/2014,258676,1033,REDACTED PERSONAL INFORMATION,REVENUE,REDACTED PERSONAL INFORMATION
NORTH EAST LINCOLNSHIRE COUNCIL,http://statistics.data.gov.uk/id/local-authority/00FC,People,Childrens Services,Placement & Support,Other Agencies,Child Care Payments,PJ104,09/02/2014,258677,632,REDACTED PERSONAL INFORMATION,REVENUE,REDACTED PERSONAL INFORMATION
NORTH EAST LINCOLNSHIRE COUNCIL,http://statistics.data.gov.uk/id/local-authority/00FC,People,Childrens Services,Placement & Support,Other Agencies,Child Care Payments,PJ104,09/02/2014,258679,316,REDACTED PERSONAL INFORMATION,REVENUE,REDACTED PERSONAL INFORMATION
NORTH EAST LINCOLNSHIRE COUNCIL,http://statistics.data.gov.uk/id/local-authority/00FC,People,Childrens Services,Placement & Support,Other Agencies,Child Care Payments,PJ104,09/02/2014,258681,1033,REDACTED PERSONAL INFORMATION,REVENUE,REDACTED PERSONAL INFORMATION
NORTH EAST LINCOLNSHIRE COUNCIL,http://statistics.data.gov.uk/id/local-authority/00FC,People,Childrens Services,Placement & Support,Other Agencies,Child Care Payments,PJ104,09/02/2014,258686,936,REDACTED PERSONAL INFORMATION,REVENUE,REDACTED PERSONAL INFORMATION
NORTH EAST LINCOLNSHIRE COUNCIL,http://statistics.data.gov.uk/id/local-authority/00FC,People,Childrens Services,Placement & Support,Other Agencies,Child Care Payments,PJ104,09/02/2014,258689,304,REDACTED PERSONAL INFORMATION,REVENUE,REDACTED PERSONAL INFORMATION
NORTH EAST LINCOLNSHIRE COUNCIL,http://statistics.data.gov.uk/id/local-authority/00FC,People,Childrens Services,Placement & Support,Other Agencies,Child Care Payments,PJ104,09/02/2014,258701,620,REDACTED PERSONAL INFORMATION,REVENUE,REDACTED PERSONAL INFORMATION
NORTH EAST LINCOLNSHIRE COUNCIL,http://statistics.data.gov.uk/id/local-authority/00FC,People,Childrens Services,Placement & Support,Other Agencies,Child Care Payments,PJ104,09/02/2014,258710,576,REDACTED PERSONAL INFORMATION,REVENUE,REDACTED PERSONAL INFORMATION
NORTH EAST LINCOLNSHIRE COUNCIL,http://statistics.data.gov.uk/id/local-authority/00FC,People,Childrens Services,Placement & Support,Other Agencies,Child Care Payments,PJ104,09/02/2014,258712,361,REDACTED PERSONAL INFORMATION,REVENUE,REDACTED PERSONAL INFORMATION
NORTH EAST LINCOLNSHIRE COUNCIL,http://statistics.data.gov.uk/id/local-authority/00FC,People,Childrens Services,Placement & Support,Other Agencies,Child Care Payments,PJ104,09/02/2014,258714,968,REDACTED PERSONAL INFORMATION,REVENUE,REDACTED PERSONAL INFORMATION
NORTH EAST LINCOLNSHIRE COUNCIL,http://statistics.data.gov.uk/id/local-authority/00FC,People,Childrens Services,Placement & Support,Other Agencies,Child Care Payments,PJ104,09/02/2014,258716,640,REDACTED PERSONAL INFORMATION,REVENUE,REDACTED PERSONAL INFORMATION
NORTH EAST LINCOLNSHIRE COUNCIL,http://statistics.data.gov.uk/id/local-authority/00FC,People,Childrens Services,Placement & Support,Other Agencies,Child Care Payments,PJ104,09/02/2014,258720,944,REDACTED PERSONAL INFORMATION,REVENUE,REDACTED PERSONAL INFORMATION
NORTH EAST LINCOLNSHIRE COUNCIL,http://statistics.data.gov.uk/id/local-authority/00FC,People,Childrens Services,Placement & Support,Other Agencies,Child Care Payments,PJ104,09/02/2014,258723,316,REDACTED PERSONAL INFORMATION,REVENUE,REDACTED PERSONAL INFORMATION
NORTH EAST LINCOLNSHIRE COUNCIL,http://statistics.data.gov.uk/id/local-authority/00FC,People,Childrens Services,Placement & Support,Other Agencies,Child Care Payments,PJ104,09/02/2014,258729,608,REDACTED PERSONAL INFORMATION,REVENUE,REDACTED PERSONAL INFORMATION
NORTH EAST LINCOLNSHIRE COUNCIL,http://statistics.data.gov.uk/id/local-authority/00FC,People,Childrens Services,Placement & Support,Other Agencies,Child Care Payments,PJ104,09/02/2014,258733,672,REDACTED PERSONAL INFORMATION,REVENUE,REDACTED PERSONAL INFORMATION
NORTH EAST LINCOLNSHIRE COUNCIL,http://statistics.data.gov.uk/id/local-authority/00FC,People,Childrens Services,Placement & Support,Other Agencies,Child Care Payments,PJ104,09/02/2014,258738,632,REDACTED PERSONAL INFORMATION,REVENUE,REDACTED PERSONAL INFORMATION
NORTH EAST LINCOLNSHIRE COUNCIL,http://statistics.data.gov.uk/id/local-authority/00FC,People,Childrens Services,Placement & Support,Other Agencies,Child Care Payments,PJ104,09/02/2014,258746,620,REDACTED PERSONAL INFORMATION,REVENUE,REDACTED PERSONAL INFORMATION
NORTH EAST LINCOLNSHIRE COUNCIL,http://statistics.data.gov.uk/id/local-authority/00FC,People,Childrens Services,Placement & Support,Other Agencies,Child Care Payments,PJ104,09/02/2014,258757,620,REDACTED PERSONAL INFORMATION,REVENUE,REDACTED PERSONAL INFORMATION
NORTH EAST LINCOLNSHIRE COUNCIL,http://statistics.data.gov.uk/id/local-authority/00FC,People,Childrens Services,Placement & Support,Other Agencies,Child Care Payments,PJ104,09/02/2014,258763,936,REDACTED PERSONAL INFORMATION,REVENUE,REDACTED PERSONAL INFORMATION
NORTH EAST LINCOLNSHIRE COUNCIL,http://statistics.data.gov.uk/id/local-authority/00FC,People,Childrens Services,Placement & Support,Other Agencies,Child Care Payments,PJ104,09/02/2014,258768,620,REDACTED PERSONAL INFORMATION,REVENUE,REDACTED PERSONAL INFORMATION
NORTH EAST LINCOLNSHIRE COUNCIL,http://statistics.data.gov.uk/id/local-authority/00FC,People,Childrens Services,Placement & Support,Other Agencies,Child Care Payments,PJ104,09/02/2014,258784,316,REDACTED PERSONAL INFORMATION,REVENUE,REDACTED PERSONAL INFORMATION
NORTH EAST LINCOLNSHIRE COUNCIL,http://statistics.data.gov.uk/id/local-authority/00FC,People,Childrens Services,Placement & Support,Other Agencies,Child Care Payments,PJ104,09/02/2014,258812,1392,REDACTED PERSONAL INFORMATION,REVENUE,REDACTED PERSONAL INFORMATION
NORTH EAST LINCOLNSHIRE COUNCIL,http://statistics.data.gov.uk/id/local-authority/00FC,People,Childrens Services,Placement & Support,Other Agencies,Child Care Payments,PJ104,09/02/2014,258816,640,REDACTED PERSONAL INFORMATION,REVENUE,REDACTED PERSONAL INFORMATION
NORTH EAST LINCOLNSHIRE COUNCIL,http://statistics.data.gov.uk/id/local-authority/00FC,People,Childrens Services,Placement & Support,Other Agencies,Child Care Payments,PJ104,09/02/2014,258819,968,REDACTED PERSONAL INFORMATION,REVENUE,REDACTED PERSONAL INFORMATION
NORTH EAST LINCOLNSHIRE COUNCIL,http://statistics.data.gov.uk/id/local-authority/00FC,People,Childrens Services,Placement & Support,Other Agencies,Child Care Payments,PJ104,09/02/2014,258820,336,REDACTED PERSONAL INFORMATION,REVENUE,REDACTED PERSONAL INFORMATION
NORTH EAST LINCOLNSHIRE COUNCIL,http://statistics.data.gov.uk/id/local-authority/00FC,People,Childrens Services,Placement & Support,Other Agencies,Child Care Payments,PJ104,09/02/2014,258830,608,REDACTED PERSONAL INFORMATION,REVENUE,REDACTED PERSONAL INFORMATION
NORTH EAST LINCOLNSHIRE COUNCIL,http://statistics.data.gov.uk/id/local-authority/00FC,People,Childrens Services,Placement & Support,Other Agencies,Child Care Payments,PJ104,09/02/2014,258835,936,REDACTED PERSONAL INFORMATION,REVENUE,REDACTED PERSONAL INFORMATION
NORTH EAST LINCOLNSHIRE COUNCIL,http://statistics.data.gov.uk/id/local-authority/00FC,People,Childrens Services,Placement & Support,Other Agencies,Child Care Payments,PJ104,09/02/2014,258845,608,REDACTED PERSONAL INFORMATION,REVENUE,REDACTED PERSONAL INFORMATION
NORTH EAST LINCOLNSHIRE COUNCIL,http://statistics.data.gov.uk/id/local-authority/00FC,People,Childrens Services,Placement & Support,Other Agencies,Child Care Payments,PJ104,09/09/2014,261189,516.58,REDACTED PERSONAL INFORMATION,REVENUE,REDACTED PERSONAL INFORMATION
NORTH EAST LINCOLNSHIRE COUNCIL,http://statistics.data.gov.uk/id/local-authority/00FC,People,Childrens Services,Placement & Support,Other Agencies,Child Care Payments,PJ104,09/09/2014,261191,640,REDACTED PERSONAL INFORMATION,REVENUE,REDACTED PERSONAL INFORMATION
NORTH EAST LINCOLNSHIRE COUNCIL,http://statistics.data.gov.uk/id/local-authority/00FC,People,Childrens Services,Placement & Support,Other Agencies,Child Care Payments,PJ104,09/09/2014,261194,968,REDACTED PERSONAL INFORMATION,REVENUE,REDACTED PERSONAL INFORMATION
NORTH EAST LINCOLNSHIRE COUNCIL,http://statistics.data.gov.uk/id/local-authority/00FC,People,Childrens Services,Placement & Support,Other Agencies,Child Care Payments,PJ104,09/09/2014,261195,336,REDACTED PERSONAL INFORMATION,REVENUE,REDACTED PERSONAL INFORMATION
NORTH EAST LINCOLNSHIRE COUNCIL,http://statistics.data.gov.uk/id/local-authority/00FC,People,Childrens Services,Placement & Support,Other Agencies,Child Care Payments,PJ104,09/09/2014,261205,608,REDACTED PERSONAL INFORMATION,REVENUE,REDACTED PERSONAL INFORMATION
NORTH EAST LINCOLNSHIRE COUNCIL,http://statistics.data.gov.uk/id/local-authority/00FC,People,Childrens Services,Placement & Support,Other Agencies,Child Care Payments,PJ104,09/09/2014,261209,936,REDACTED PERSONAL INFORMATION,REVENUE,REDACTED PERSONAL INFORMATION
NORTH EAST LINCOLNSHIRE COUNCIL,http://statistics.data.gov.uk/id/local-authority/00FC,People,Childrens Services,Placement & Support,Other Agencies,Child Care Payments,PJ104,09/09/2014,261218,608,REDACTED PERSONAL INFORMATION,REVENUE,REDACTED PERSONAL INFORMATION
NORTH EAST LINCOLNSHIRE COUNCIL,http://statistics.data.gov.uk/id/local-authority/00FC,People,Childrens Services,Placement & Support,Other Agencies,Child Care Payments,PJ104,09/09/2014,261242,316,REDACTED PERSONAL INFORMATION,REVENUE,REDACTED PERSONAL INFORMATION
NORTH EAST LINCOLNSHIRE COUNCIL,http://statistics.data.gov.uk/id/local-authority/00FC,People,Childrens Services,Placement & Support,Other Agencies,Child Care Payments,PJ104,09/09/2014,261003,316,REDACTED PERSONAL INFORMATION,REVENUE,REDACTED PERSONAL INFORMATION
NORTH EAST LINCOLNSHIRE COUNCIL,http://statistics.data.gov.uk/id/local-authority/00FC,People,Childrens Services,Placement & Support,Other Agencies,Child Care Payments,PJ104,09/09/2014,261007,683.43,REDACTED PERSONAL INFORMATION,REVENUE,REDACTED PERSONAL INFORMATION
NORTH EAST LINCOLNSHIRE COUNCIL,http://statistics.data.gov.uk/id/local-authority/00FC,People,Childrens Services,Placement & Support,Other Agencies,Child Care Payments,PJ104,09/09/2014,261010,632,REDACTED PERSONAL INFORMATION,REVENUE,REDACTED PERSONAL INFORMATION
NORTH EAST LINCOLNSHIRE COUNCIL,http://statistics.data.gov.uk/id/local-authority/00FC,People,Childrens Services,Placement & Support,Other Agencies,Child Care Payments,PJ104,09/09/2014,261011,336,REDACTED PERSONAL INFORMATION,REVENUE,REDACTED PERSONAL INFORMATION
NORTH EAST LINCOLNSHIRE COUNCIL,http://statistics.data.gov.uk/id/local-authority/00FC,People,Childrens Services,Placement & Support,Other Agencies,Child Care Payments,PJ104,09/09/2014,261012,1013,REDACTED PERSONAL INFORMATION,REVENUE,REDACTED PERSONAL INFORMATION
NORTH EAST LINCOLNSHIRE COUNCIL,http://statistics.data.gov.uk/id/local-authority/00FC,People,Childrens Services,Placement & Support,Other Agencies,Child Care Payments,PJ104,09/09/2014,261015,316,REDACTED PERSONAL INFORMATION,REVENUE,REDACTED PERSONAL INFORMATION
NORTH EAST LINCOLNSHIRE COUNCIL,http://statistics.data.gov.uk/id/local-authority/00FC,People,Childrens Services,Placement & Support,Other Agencies,Child Care Payments,PJ104,09/09/2014,261019,581.72,REDACTED PERSONAL INFORMATION,REVENUE,REDACTED PERSONAL INFORMATION
NORTH EAST LINCOLNSHIRE COUNCIL,http://statistics.data.gov.uk/id/local-authority/00FC,People,Childrens Services,Placement & Support,Other Agencies,Child Care Payments,PJ104,09/09/2014,261020,920,REDACTED PERSONAL INFORMATION,REVENUE,REDACTED PERSONAL INFORMATION
NORTH EAST LINCOLNSHIRE COUNCIL,http://statistics.data.gov.uk/id/local-authority/00FC,People,Childrens Services,Placement & Support,Other Agencies,Child Care Payments,PJ104,09/09/2014,261022,924,REDACTED PERSONAL INFORMATION,REVENUE,REDACTED PERSONAL INFORMATION
NORTH EAST LINCOLNSHIRE COUNCIL,http://statistics.data.gov.uk/id/local-authority/00FC,People,Childrens Services,Placement & Support,Other Agencies,Child Care Payments,PJ104,09/09/2014,261023,316,REDACTED PERSONAL INFORMATION,REVENUE,REDACTED PERSONAL INFORMATION
NORTH EAST LINCOLNSHIRE COUNCIL,http://statistics.data.gov.uk/id/local-authority/00FC,People,Childrens Services,Placement & Support,Other Agencies,Child Care Payments,PJ104,09/09/2014,261024,672,REDACTED PERSONAL INFORMATION,REVENUE,REDACTED PERSONAL INFORMATION
NORTH EAST LINCOLNSHIRE COUNCIL,http://statistics.data.gov.uk/id/local-authority/00FC,People,Childrens Services,Placement & Support,Other Agencies,Child Care Payments,PJ104,09/09/2014,261032,336,REDACTED PERSONAL INFORMATION,REVENUE,REDACTED PERSONAL INFORMATION
NORTH EAST LINCOLNSHIRE COUNCIL,http://statistics.data.gov.uk/id/local-authority/00FC,People,Childrens Services,Placement & Support,Other Agencies,Child Care Payments,PJ104,09/09/2014,261033,697,REDACTED PERSONAL INFORMATION,REVENUE,REDACTED PERSONAL INFORMATION
NORTH EAST LINCOLNSHIRE COUNCIL,http://statistics.data.gov.uk/id/local-authority/00FC,People,Childrens Services,Placement & Support,Other Agencies,Child Care Payments,PJ104,09/09/2014,261035,316,REDACTED PERSONAL INFORMATION,REVENUE,REDACTED PERSONAL INFORMATION
NORTH EAST LINCOLNSHIRE COUNCIL,http://statistics.data.gov.uk/id/local-authority/00FC,People,Childrens Services,Placement & Support,Other Agencies,Child Care Payments,PJ104,09/09/2014,261036,304,REDACTED PERSONAL INFORMATION,REVENUE,REDACTED PERSONAL INFORMATION
NORTH EAST LINCOLNSHIRE COUNCIL,http://statistics.data.gov.uk/id/local-authority/00FC,People,Childrens Services,Placement & Support,Other Agencies,Child Care Payments,PJ104,09/09/2014,261043,1013,REDACTED PERSONAL INFORMATION,REVENUE,REDACTED PERSONAL INFORMATION
NORTH EAST LINCOLNSHIRE COUNCIL,http://statistics.data.gov.uk/id/local-authority/00FC,People,Childrens Services,Placement & Support,Other Agencies,Child Care Payments,PJ104,09/09/2014,261047,936,REDACTED PERSONAL INFORMATION,REVENUE,REDACTED PERSONAL INFORMATION
NORTH EAST LINCOLNSHIRE COUNCIL,http://statistics.data.gov.uk/id/local-authority/00FC,People,Childrens Services,Placement & Support,Other Agencies,Child Care Payments,PJ104,09/09/2014,261050,968,REDACTED PERSONAL INFORMATION,REVENUE,REDACTED PERSONAL INFORMATION
NORTH EAST LINCOLNSHIRE COUNCIL,http://statistics.data.gov.uk/id/local-authority/00FC,People,Childrens Services,Placement & Support,Other Agencies,Child Care Payments,PJ104,09/09/2014,261051,912,REDACTED PERSONAL INFORMATION,REVENUE,REDACTED PERSONAL INFORMATION
NORTH EAST LINCOLNSHIRE COUNCIL,http://statistics.data.gov.uk/id/local-authority/00FC,People,Childrens Services,Placement & Support,Other Agencies,Child Care Payments,PJ104,09/09/2014,261053,1033,REDACTED PERSONAL INFORMATION,REVENUE,REDACTED PERSONAL INFORMATION
NORTH EAST LINCOLNSHIRE COUNCIL,http://statistics.data.gov.uk/id/local-authority/00FC,People,Childrens Services,Placement & Support,Other Agencies,Child Care Payments,PJ104,09/09/2014,261054,632,REDACTED PERSONAL INFORMATION,REVENUE,REDACTED PERSONAL INFORMATION
NORTH EAST LINCOLNSHIRE COUNCIL,http://statistics.data.gov.uk/id/local-authority/00FC,People,Childrens Services,Placement & Support,Other Agencies,Child Care Payments,PJ104,09/09/2014,261056,316,REDACTED PERSONAL INFORMATION,REVENUE,REDACTED PERSONAL INFORMATION
NORTH EAST LINCOLNSHIRE COUNCIL,http://statistics.data.gov.uk/id/local-authority/00FC,People,Childrens Services,Placement & Support,Other Agencies,Child Care Payments,PJ104,09/09/2014,261058,1033,REDACTED PERSONAL INFORMATION,REVENUE,REDACTED PERSONAL INFORMATION
NORTH EAST LINCOLNSHIRE COUNCIL,http://statistics.data.gov.uk/id/local-authority/00FC,People,Childrens Services,Placement & Support,Other Agencies,Child Care Payments,PJ104,09/09/2014,261063,936,REDACTED PERSONAL INFORMATION,REVENUE,REDACTED PERSONAL INFORMATION
NORTH EAST LINCOLNSHIRE COUNCIL,http://statistics.data.gov.uk/id/local-authority/00FC,People,Childrens Services,Placement & Support,Other Agencies,Child Care Payments,PJ104,09/09/2014,261066,304,REDACTED PERSONAL INFORMATION,REVENUE,REDACTED PERSONAL INFORMATION
NORTH EAST LINCOLNSHIRE COUNCIL,http://statistics.data.gov.uk/id/local-authority/00FC,People,Childrens Services,Placement & Support,Other Agencies,Child Care Payments,PJ104,09/09/2014,261078,620,REDACTED PERSONAL INFORMATION,REVENUE,REDACTED PERSONAL INFORMATION
NORTH EAST LINCOLNSHIRE COUNCIL,http://statistics.data.gov.uk/id/local-authority/00FC,People,Childrens Services,Placement & Support,Other Agencies,Child Care Payments,PJ104,09/09/2014,261085,336,REDACTED PERSONAL INFORMATION,REVENUE,REDACTED PERSONAL INFORMATION
NORTH EAST LINCOLNSHIRE COUNCIL,http://statistics.data.gov.uk/id/local-authority/00FC,People,Childrens Services,Placement & Support,Other Agencies,Child Care Payments,PJ104,09/09/2014,261087,361,REDACTED PERSONAL INFORMATION,REVENUE,REDACTED PERSONAL INFORMATION
NORTH EAST LINCOLNSHIRE COUNCIL,http://statistics.data.gov.uk/id/local-authority/00FC,People,Childrens Services,Placement & Support,Other Agencies,Child Care Payments,PJ104,09/09/2014,261089,968,REDACTED PERSONAL INFORMATION,REVENUE,REDACTED PERSONAL INFORMATION
NORTH EAST LINCOLNSHIRE COUNCIL,http://statistics.data.gov.uk/id/local-authority/00FC,People,Childrens Services,Placement & Support,Other Agencies,Child Care Payments,PJ104,09/09/2014,261092,640,REDACTED PERSONAL INFORMATION,REVENUE,REDACTED PERSONAL INFORMATION
NORTH EAST LINCOLNSHIRE COUNCIL,http://statistics.data.gov.uk/id/local-authority/00FC,People,Childrens Services,Placement & Support,Other Agencies,Child Care Payments,PJ104,09/09/2014,261096,944,REDACTED PERSONAL INFORMATION,REVENUE,REDACTED PERSONAL INFORMATION
NORTH EAST LINCOLNSHIRE COUNCIL,http://statistics.data.gov.uk/id/local-authority/00FC,People,Childrens Services,Placement & Support,Other Agencies,Child Care Payments,PJ104,09/09/2014,261099,316,REDACTED PERSONAL INFORMATION,REVENUE,REDACTED PERSONAL INFORMATION
NORTH EAST LINCOLNSHIRE COUNCIL,http://statistics.data.gov.uk/id/local-authority/00FC,People,Childrens Services,Placement & Support,Other Agencies,Child Care Payments,PJ104,09/09/2014,261105,608,REDACTED PERSONAL INFORMATION,REVENUE,REDACTED PERSONAL INFORMATION
NORTH EAST LINCOLNSHIRE COUNCIL,http://statistics.data.gov.uk/id/local-authority/00FC,People,Childrens Services,Placement & Support,Other Agencies,Child Care Payments,PJ104,09/09/2014,261110,672,REDACTED PERSONAL INFORMATION,REVENUE,REDACTED PERSONAL INFORMATION
NORTH EAST LINCOLNSHIRE COUNCIL,http://statistics.data.gov.uk/id/local-authority/00FC,People,Childrens Services,Placement & Support,Other Agencies,Child Care Payments,PJ104,09/09/2014,261115,632,REDACTED PERSONAL INFORMATION,REVENUE,REDACTED PERSONAL INFORMATION
NORTH EAST LINCOLNSHIRE COUNCIL,http://statistics.data.gov.uk/id/local-authority/00FC,People,Childrens Services,Placement & Support,Other Agencies,Child Care Payments,PJ104,09/09/2014,261124,620,REDACTED PERSONAL INFORMATION,REVENUE,REDACTED PERSONAL INFORMATION
NORTH EAST LINCOLNSHIRE COUNCIL,http://statistics.data.gov.uk/id/local-authority/00FC,People,Childrens Services,Placement & Support,Other Agencies,Child Care Payments,PJ104,09/09/2014,261133,620,REDACTED PERSONAL INFORMATION,REVENUE,REDACTED PERSONAL INFORMATION
NORTH EAST LINCOLNSHIRE COUNCIL,http://statistics.data.gov.uk/id/local-authority/00FC,People,Childrens Services,Placement & Support,Other Agencies,Child Care Payments,PJ104,09/09/2014,261139,936,REDACTED PERSONAL INFORMATION,REVENUE,REDACTED PERSONAL INFORMATION
NORTH EAST LINCOLNSHIRE COUNCIL,http://statistics.data.gov.uk/id/local-authority/00FC,People,Childrens Services,Placement & Support,Other Agencies,Child Care Payments,PJ104,09/09/2014,261143,620,REDACTED PERSONAL INFORMATION,REVENUE,REDACTED PERSONAL INFORMATION
NORTH EAST LINCOLNSHIRE COUNCIL,http://statistics.data.gov.uk/id/local-authority/00FC,People,Childrens Services,Placement & Support,Other Agencies,Child Care Payments,PJ104,09/09/2014,261159,316,REDACTED PERSONAL INFORMATION,REVENUE,REDACTED PERSONAL INFORMATION
NORTH EAST LINCOLNSHIRE COUNCIL,http://statistics.data.gov.uk/id/local-authority/00FC,People,Childrens Services,Placement & Support,Other Agencies,Child Care Payments,PJ104,9/16/2014,262063,316,REDACTED PERSONAL INFORMATION,REVENUE,REDACTED PERSONAL INFORMATION
NORTH EAST LINCOLNSHIRE COUNCIL,http://statistics.data.gov.uk/id/local-authority/00FC,People,Childrens Services,Placement & Support,Other Agencies,Child Care Payments,PJ104,9/16/2014,262067,336,REDACTED PERSONAL INFORMATION,REVENUE,REDACTED PERSONAL INFORMATION
NORTH EAST LINCOLNSHIRE COUNCIL,http://statistics.data.gov.uk/id/local-authority/00FC,People,Childrens Services,Placement & Support,Other Agencies,Child Care Payments,PJ104,9/16/2014,262070,632,REDACTED PERSONAL INFORMATION,REVENUE,REDACTED PERSONAL INFORMATION
NORTH EAST LINCOLNSHIRE COUNCIL,http://statistics.data.gov.uk/id/local-authority/00FC,People,Childrens Services,Placement & Support,Other Agencies,Child Care Payments,PJ104,9/16/2014,262071,1296.57,REDACTED PERSONAL INFORMATION,REVENUE,REDACTED PERSONAL INFORMATION
NORTH EAST LINCOLNSHIRE COUNCIL,http://statistics.data.gov.uk/id/local-authority/00FC,People,Childrens Services,Placement & Support,Other Agencies,Child Care Payments,PJ104,9/16/2014,262072,1013,REDACTED PERSONAL INFORMATION,REVENUE,REDACTED PERSONAL INFORMATION
NORTH EAST LINCOLNSHIRE COUNCIL,http://statistics.data.gov.uk/id/local-authority/00FC,People,Childrens Services,Placement & Support,Other Agencies,Child Care Payments,PJ104,9/16/2014,262075,316,REDACTED PERSONAL INFORMATION,REVENUE,REDACTED PERSONAL INFORMATION
NORTH EAST LINCOLNSHIRE COUNCIL,http://statistics.data.gov.uk/id/local-authority/00FC,People,Childrens Services,Placement & Support,Other Agencies,Child Care Payments,PJ104,9/16/2014,262297,316,REDACTED PERSONAL INFORMATION,REVENUE,REDACTED PERSONAL INFORMATION
NORTH EAST LINCOLNSHIRE COUNCIL,http://statistics.data.gov.uk/id/local-authority/00FC,People,Childrens Services,Placement & Support,Other Agencies,Child Care Payments,PJ104,9/16/2014,262079,632,REDACTED PERSONAL INFORMATION,REVENUE,REDACTED PERSONAL INFORMATION
NORTH EAST LINCOLNSHIRE COUNCIL,http://statistics.data.gov.uk/id/local-authority/00FC,People,Childrens Services,Placement & Support,Other Agencies,Child Care Payments,PJ104,9/16/2014,262081,924,REDACTED PERSONAL INFORMATION,REVENUE,REDACTED PERSONAL INFORMATION
